Body Name,Vendor Number,Vendor Name,Cost Centre,Service Label,BV Code,Amount,Period
Slough Borough Council,806901,4way Consulting Ltd,P209,Capital,Capital Charges,566.19,Jan-24
Slough Borough Council,3963,50:50 Sync Cic,C424,AD Public Protection & Communities - Public Health,Supplies and Services,"15,000.00",Jan-24
Slough Borough Council,809183,Aamay Resource Management Ltd,H205,AD Housing,Supplies and Services,"10,695.00",Jan-24
Slough Borough Council,536,Ability Housing Association,M42E,AD People Strategy & Commissioning,Supplies and Services,"3,023.04",Jan-24
Slough Borough Council,536,Ability Housing Association,M42E,AD People Strategy & Commissioning,Supplies and Services,"3,490.51",Jan-24
Slough Borough Council,536,Ability Housing Association,M42E,AD People Strategy & Commissioning,Supplies and Services,"2,788.84",Jan-24
Slough Borough Council,536,Ability Housing Association,M42E,AD People Strategy & Commissioning,Supplies and Services,"2,895.29",Jan-24
Slough Borough Council,536,Ability Housing Association,M42E,AD People Strategy & Commissioning,Supplies and Services,"2,852.71",Jan-24
Slough Borough Council,536,Ability Housing Association,M42E,AD People Strategy & Commissioning,Supplies and Services,"2,682.39",Jan-24
Slough Borough Council,536,Ability Housing Association,M42E,AD People Strategy & Commissioning,Supplies and Services,"1,532.71",Jan-24
Slough Borough Council,536,Ability Housing Association,M42E,AD People Strategy & Commissioning,Supplies and Services,"2,010.66",Jan-24
Slough Borough Council,536,Ability Housing Association,M42E,AD People Strategy & Commissioning,Supplies and Services,"2,585.50",Jan-24
Slough Borough Council,536,Ability Housing Association,M42E,AD People Strategy & Commissioning,Supplies and Services,"2,968.73",Jan-24
Slough Borough Council,536,Ability Housing Association,M42E,AD People Strategy & Commissioning,Supplies and Services,"2,670.66",Jan-24
Slough Borough Council,536,Ability Housing Association,M42E,AD People Strategy & Commissioning,Supplies and Services,"3,224.21",Jan-24
Slough Borough Council,536,Ability Housing Association,M42E,AD People Strategy & Commissioning,Supplies and Services,"2,862.28",Jan-24
Slough Borough Council,536,Ability Housing Association,M42E,AD People Strategy & Commissioning,Supplies and Services,"2,835.72",Jan-24
Slough Borough Council,536,Ability Housing Association,M42E,AD People Strategy & Commissioning,Supplies and Services,"2,861.24",Jan-24
Slough Borough Council,536,Ability Housing Association,M42E,AD People Strategy & Commissioning,Supplies and Services,"1,967.08",Jan-24
Slough Borough Council,536,Ability Housing Association,M42E,AD People Strategy & Commissioning,Supplies and Services,"3,261.53",Jan-24
Slough Borough Council,536,Ability Housing Association,M42E,AD People Strategy & Commissioning,Supplies and Services,"2,008.57",Jan-24
Slough Borough Council,536,Ability Housing Association,M42E,AD People Strategy & Commissioning,Supplies and Services,"2,583.40",Jan-24
Slough Borough Council,536,Ability Housing Association,M42E,AD People Strategy & Commissioning,Supplies and Services,"2,924.06",Jan-24
Slough Borough Council,536,Ability Housing Association,M42E,AD People Strategy & Commissioning,Supplies and Services,"2,668.57",Jan-24
Slough Borough Council,536,Ability Housing Association,M42E,AD People Strategy & Commissioning,Supplies and Services,"3,222.12",Jan-24
Slough Borough Council,536,Ability Housing Association,M42E,AD People Strategy & Commissioning,Supplies and Services,"2,860.19",Jan-24
Slough Borough Council,536,Ability Housing Association,M42E,AD People Strategy & Commissioning,Supplies and Services,"-2,010.66",Jan-24
Slough Borough Council,536,Ability Housing Association,M42E,AD People Strategy & Commissioning,Supplies and Services,"-2,585.50",Jan-24
Slough Borough Council,536,Ability Housing Association,M42E,AD People Strategy & Commissioning,Supplies and Services,"-2,968.73",Jan-24
Slough Borough Council,536,Ability Housing Association,M42E,AD People Strategy & Commissioning,Supplies and Services,"-2,670.66",Jan-24
Slough Borough Council,536,Ability Housing Association,M42E,AD People Strategy & Commissioning,Supplies and Services,"-3,224.21",Jan-24
Slough Borough Council,536,Ability Housing Association,M42E,AD People Strategy & Commissioning,Supplies and Services,"-2,862.28",Jan-24
Slough Borough Council,536,Ability Housing Association,M44E,AD People Strategy & Commissioning,Supplies and Services,"1,924.65",Jan-24
Slough Borough Council,536,Ability Housing Association,M44E,AD People Strategy & Commissioning,Supplies and Services,"1,997.04",Jan-24
Slough Borough Council,536,Ability Housing Association,M44E,AD People Strategy & Commissioning,Supplies and Services,"2,354.72",Jan-24
Slough Borough Council,536,Ability Housing Association,M44E,AD People Strategy & Commissioning,Supplies and Services,"2,439.88",Jan-24
Slough Borough Council,2898,Achieve Together t/a The Regard Partnership Ltd,M42E,AD People Strategy & Commissioning,Supplies and Services,"5,601.57",Jan-24
Slough Borough Council,807554,Acorn Care & Education Ltd,F462,AD Children & Families,Supplies and Services,"75,763.32",Jan-24
Slough Borough Council,807554,Acorn Care & Education Ltd,F462,AD Children & Families,Supplies and Services,"44,468.34",Jan-24
Slough Borough Council,805529,Action First Recrutiment Ltd,A02A,AD People Strategy & Commissioning,Supplies and Services,"3,040.00",Jan-24
Slough Borough Council,805529,Action First Recrutiment Ltd,A02A,AD People Strategy & Commissioning,Supplies and Services,"4,675.00",Jan-24
Slough Borough Council,2855,Advance Housing & Support Ltd,M42F,AD People Strategy & Commissioning,Supplies and Services,"1,141.32",Jan-24
Slough Borough Council,2855,Advance Housing & Support Ltd,M42F,AD People Strategy & Commissioning,Supplies and Services,"1,673.90",Jan-24
Slough Borough Council,2855,Advance Housing & Support Ltd,M42F,AD People Strategy & Commissioning,Supplies and Services,760.86,Jan-24
Slough Borough Council,2855,Advance Housing & Support Ltd,M42F,AD People Strategy & Commissioning,Supplies and Services,"1,217.38",Jan-24
Slough Borough Council,2855,Advance Housing & Support Ltd,M42F,AD People Strategy & Commissioning,Supplies and Services,"1,978.25",Jan-24
Slough Borough Council,2135,Adventure Learning Childcare Limited,F909,AD Children & Families,Supplies and Services,"12,339.77",Jan-24
Slough Borough Council,2135,Adventure Learning Childcare Limited,F909,AD Children & Families,Supplies and Services,710.49,Jan-24
Slough Borough Council,1603,Advision Security Ltd,A07M,AD People Strategy & Commissioning,Premises,"10,000.00",Jan-24
Slough Borough Council,2301,Aik Saath,F382,AD Children & Families,Supplies and Services,"1,543.68",Jan-24
Slough Borough Council,2301,Aik Saath,D006,AD Public Protection & Communities - Children Services,Supplies and Services,"7,500.00",Jan-24
Slough Borough Council,2197,Altwood Housing Ltd,H205,AD Housing,Supplies and Services,"1,798.00",Jan-24
Slough Borough Council,2197,Altwood Housing Ltd,H205,AD Housing,Supplies and Services,"1,426.00",Jan-24
Slough Borough Council,2197,Altwood Housing Ltd,H205,AD Housing,Supplies and Services,"1,116.00",Jan-24
Slough Borough Council,2197,Altwood Housing Ltd,H205,AD Housing,Supplies and Services,"1,116.00",Jan-24
Slough Borough Council,2197,Altwood Housing Ltd,H205,AD Housing,Supplies and Services,"1,116.00",Jan-24
Slough Borough Council,2197,Altwood Housing Ltd,H205,AD Housing,Supplies and Services,930.00,Jan-24
Slough Borough Council,2197,Altwood Housing Ltd,H205,AD Housing,Supplies and Services,"1,116.00",Jan-24
Slough Borough Council,86,Altwood Properties Ltd,H205,AD Housing,Premises,"43,577.50",Jan-24
Slough Borough Council,86,Altwood Properties Ltd,H205,AD Housing,Supplies and Services,"47,112.91",Jan-24
Slough Borough Council,807515,Always Growing Together Community Interest Company Limited,F909,AD Children & Families,Supplies and Services,"9,357.37",Jan-24
Slough Borough Council,807515,Always Growing Together Community Interest Company Limited,F909,AD Children & Families,Supplies and Services,557.15,Jan-24
Slough Borough Council,809280,Ambassadors Lettings Estates,H218,AD Housing,Supplies and Services,"10,432.76",Jan-24
Slough Borough Council,808191,Ambrose Adrian Healthcare Ltd,M44E,AD People Strategy & Commissioning,Supplies and Services,"4,750.00",Jan-24
Slough Borough Council,808718,Andel Ltd,D900,AD Place Operations,Premises,"1,255.15",Jan-24
Slough Borough Council,807893,Antz Kidz Activity Centre,F382,AD Children & Families,Supplies and Services,"2,964.75",Jan-24
Slough Borough Council,3137,Applegarth Care Home Ltd,M25C,AD Adult Social Care Operations,Supplies and Services,"3,200.00",Jan-24
Slough Borough Council,3137,Applegarth Care Home Ltd,M25C,AD Adult Social Care Operations,Supplies and Services,"3,600.00",Jan-24
Slough Borough Council,3137,Applegarth Care Home Ltd,M29C,AD Adult Social Care Operations,Supplies and Services,"2,578.49",Jan-24
Slough Borough Council,3137,Applegarth Care Home Ltd,M29C,AD Adult Social Care Operations,Supplies and Services,"1,357.10",Jan-24
Slough Borough Council,808415,APTUS EA LTD,H205,AD Housing,Supplies and Services,"299,340.00",Jan-24
Slough Borough Council,511,Aquaneed Limited,P006,Capital,Capital Charges,849.50,Jan-24
Slough Borough Council,511,Aquaneed Limited,P006,Capital,Capital Charges,"8,049.80",Jan-24
Slough Borough Council,511,Aquaneed Limited,P006,Capital,Capital Charges,"6,431.00",Jan-24
Slough Borough Council,3350,Arbour Vale School,E610,AD Children & Families,Supplies and Services,"467,412.22",Jan-24
Slough Borough Council,2073,Arc Preschool,F909,AD Children & Families,Supplies and Services,"7,750.20",Jan-24
Slough Borough Council,2073,Arc Preschool,F909,AD Children & Families,Supplies and Services,702.45,Jan-24
Slough Borough Council,785,Artifax Software Ltd,B064,AD Building Management,Premises,"8,880.00",Jan-24
Slough Borough Council,804353,Arts Class,F382,AD Children & Families,Supplies and Services,"2,653.20",Jan-24
Slough Borough Council,420,Ashburn Estate Agents,H205,AD Housing,Premises,"100,465.00",Jan-24
Slough Borough Council,420,Ashburn Estate Agents,H205,AD Housing,Premises,"102,134.00",Jan-24
Slough Borough Council,808720,Aspect Lifts Ltd,B060,AD Building Management,Premises,844.06,Jan-24
Slough Borough Council,808720,Aspect Lifts Ltd,B060,AD Building Management,Premises,844.06,Jan-24
Slough Borough Council,808720,Aspect Lifts Ltd,B064,AD Building Management,Premises,628.74,Jan-24
Slough Borough Council,3666,Assisted Living South West,M26E,AD Adult Social Care Operations,Supplies and Services,"5,334.28",Jan-24
Slough Borough Council,3666,Assisted Living South West,M26E,AD Adult Social Care Operations,Supplies and Services,"5,334.28",Jan-24
Slough Borough Council,3666,Assisted Living South West,M26E,AD Adult Social Care Operations,Supplies and Services,"6,778.96",Jan-24
Slough Borough Council,3666,Assisted Living South West,M26E,AD Adult Social Care Operations,Supplies and Services,"5,334.28",Jan-24
Slough Borough Council,3666,Assisted Living South West,M26E,AD Adult Social Care Operations,Supplies and Services,"5,334.28",Jan-24
Slough Borough Council,3666,Assisted Living South West,M26E,AD Adult Social Care Operations,Supplies and Services,"6,778.96",Jan-24
Slough Borough Council,804324,Astoria Healthcare,M27F,AD Adult Social Care Operations,Supplies and Services,"4,417.50",Jan-24
Slough Borough Council,570,Atkins Limited,P209,Capital,Capital Charges,"3,800.00",Jan-24
Slough Borough Council,570,Atkins Limited,P212,Capital,Capital Charges,"5,960.00",Jan-24
Slough Borough Council,570,Atkins Limited,P235,Capital,Capital Charges,"5,400.00",Jan-24
Slough Borough Council,570,Atkins Limited,P243,Capital,Capital Charges,684.00,Jan-24
Slough Borough Council,570,Atkins Limited,P243,Capital,Capital Charges,685.00,Jan-24
Slough Borough Council,1286,Barnardos,F462,AD Children & Families,Supplies and Services,"15,819.00",Jan-24
Slough Borough Council,1286,Barnardos,F462,AD Children & Families,Supplies and Services,"16,233.00",Jan-24
Slough Borough Council,1681,BCQ Solutions Ltd,B064,AD Building Management,Premises,941.00,Jan-24
Slough Borough Council,1681,BCQ Solutions Ltd,B064,AD Building Management,Premises,"1,060.00",Jan-24
Slough Borough Council,1681,BCQ Solutions Ltd,B246,Democratic Services,Supplies and Services,"1,236.00",Jan-24
Slough Borough Council,1681,BCQ Solutions Ltd,B246,Democratic Services,Supplies and Services,894.00,Jan-24
Slough Borough Council,1681,BCQ Solutions Ltd,D610,AD Place Operations,Supplies and Services,795.00,Jan-24
Slough Borough Council,3208,Be Happy Pre School,F909,AD Children & Families,Supplies and Services,609.83,Jan-24
Slough Borough Council,3208,Be Happy Pre School,F909,AD Children & Families,Supplies and Services,690.22,Jan-24
Slough Borough Council,3208,Be Happy Pre School,F909,AD Children & Families,Supplies and Services,"14,865.04",Jan-24
Slough Borough Council,3208,Be Happy Pre School,F909,AD Children & Families,Supplies and Services,"7,754.53",Jan-24
Slough Borough Council,609,Beechwood Secondary School,E610,AD Children & Families,Supplies and Services,"4,375.00",Jan-24
Slough Borough Council,609,Beechwood Secondary School,F002,AD Public Protection & Communities - Public Health,Government Grants,"1,000.00",Jan-24
Slough Borough Council,804588,BEN Motor & Allied Trades Bev.Fnd,M15D,AD Adult Social Care Operations,Supplies and Services,"6,400.00",Jan-24
Slough Borough Council,804588,BEN Motor & Allied Trades Bev.Fnd,M15D,AD Adult Social Care Operations,Supplies and Services,"6,400.00",Jan-24
Slough Borough Council,804588,BEN Motor & Allied Trades Bev.Fnd,M27C,AD Adult Social Care Operations,Supplies and Services,"-3,571.43",Jan-24
Slough Borough Council,804588,BEN Motor & Allied Trades Bev.Fnd,M27C,AD Adult Social Care Operations,Supplies and Services,"5,600.00",Jan-24
Slough Borough Council,804588,BEN Motor & Allied Trades Bev.Fnd,M27C,AD Adult Social Care Operations,Supplies and Services,"5,600.00",Jan-24
Slough Borough Council,804588,BEN Motor & Allied Trades Bev.Fnd,M27C,AD Adult Social Care Operations,Supplies and Services,"5,000.00",Jan-24
Slough Borough Council,2308,Bespoke Supportive Tenancies Ltd,A04L,AD Adult Social Care Operations,Supplies and Services,"2,041.27",Jan-24
Slough Borough Council,808148,BEST CHOICE CARE LTD,A07R,AD Adult Social Care Operations,Supplies and Services,"1,575.20",Jan-24
Slough Borough Council,808148,BEST CHOICE CARE LTD,M41D,AD Adult Social Care Operations,Supplies and Services,621.25,Jan-24
Slough Borough Council,808148,BEST CHOICE CARE LTD,M44C,AD Adult Social Care Operations,Supplies and Services,"1,163.75",Jan-24
Slough Borough Council,808148,BEST CHOICE CARE LTD,M44C,AD Adult Social Care Operations,Supplies and Services,"2,205.28",Jan-24
Slough Borough Council,808148,BEST CHOICE CARE LTD,M44C,AD Adult Social Care Operations,Supplies and Services,735.00,Jan-24
Slough Borough Council,808148,BEST CHOICE CARE LTD,M44C,AD Adult Social Care Operations,Supplies and Services,844.51,Jan-24
Slough Borough Council,808148,BEST CHOICE CARE LTD,M44C,AD Adult Social Care Operations,Supplies and Services,"1,837.78",Jan-24
Slough Borough Council,808148,BEST CHOICE CARE LTD,M44C,AD Adult Social Care Operations,Supplies and Services,"1,470.28",Jan-24
Slough Borough Council,808148,BEST CHOICE CARE LTD,M44C,AD Adult Social Care Operations,Supplies and Services,752.60,Jan-24
Slough Borough Council,808148,BEST CHOICE CARE LTD,M44C,AD Adult Social Care Operations,Supplies and Services,700.04,Jan-24
Slough Borough Council,808148,BEST CHOICE CARE LTD,M44C,AD Adult Social Care Operations,Supplies and Services,"1,198.75",Jan-24
Slough Borough Council,808148,BEST CHOICE CARE LTD,M44C,AD Adult Social Care Operations,Supplies and Services,857.64,Jan-24
Slough Borough Council,808148,BEST CHOICE CARE LTD,M44C,AD Adult Social Care Operations,Supplies and Services,980.00,Jan-24
Slough Borough Council,808148,BEST CHOICE CARE LTD,M44C,AD Adult Social Care Operations,Supplies and Services,507.64,Jan-24
Slough Borough Council,808148,BEST CHOICE CARE LTD,M44C,AD Adult Social Care Operations,Supplies and Services,"2,327.78",Jan-24
Slough Borough Council,808148,BEST CHOICE CARE LTD,M44C,AD Adult Social Care Operations,Supplies and Services,516.37,Jan-24
Slough Borough Council,808148,BEST CHOICE CARE LTD,M44C,AD Adult Social Care Operations,Supplies and Services,533.89,Jan-24
Slough Borough Council,808148,BEST CHOICE CARE LTD,M44C,AD Adult Social Care Operations,Supplies and Services,870.77,Jan-24
Slough Borough Council,808148,BEST CHOICE CARE LTD,M44C,AD Adult Social Care Operations,Supplies and Services,603.89,Jan-24
Slough Borough Council,808148,BEST CHOICE CARE LTD,M44C,AD Adult Social Care Operations,Supplies and Services,"2,205.28",Jan-24
Slough Borough Council,808148,BEST CHOICE CARE LTD,M44C,AD Adult Social Care Operations,Supplies and Services,"1,076.39",Jan-24
Slough Borough Council,808148,BEST CHOICE CARE LTD,M44C,AD Adult Social Care Operations,Supplies and Services,962.50,Jan-24
Slough Borough Council,808148,BEST CHOICE CARE LTD,M44D,AD Adult Social Care Operations,Supplies and Services,708.84,Jan-24
Slough Borough Council,808148,BEST CHOICE CARE LTD,M44D,AD Adult Social Care Operations,Supplies and Services,568.75,Jan-24
Slough Borough Council,808148,BEST CHOICE CARE LTD,M44D,AD Adult Social Care Operations,Supplies and Services,"1,426.48",Jan-24
Slough Borough Council,808148,BEST CHOICE CARE LTD,M44D,AD Adult Social Care Operations,Supplies and Services,"2,467.50",Jan-24
Slough Borough Council,808148,BEST CHOICE CARE LTD,M44F,AD People Strategy & Commissioning,Supplies and Services,"1,067.64",Jan-24
Slough Borough Council,808148,BEST CHOICE CARE LTD,M45C,AD Adult Social Care Operations,Supplies and Services,735.14,Jan-24
Slough Borough Council,808148,BEST CHOICE CARE LTD,M45C,AD Adult Social Care Operations,Supplies and Services,555.70,Jan-24
Slough Borough Council,808148,BEST CHOICE CARE LTD,M48C,AD Adult Social Care Operations,Supplies and Services,"2,660.56",Jan-24
Slough Borough Council,3611,Birch Assist Ltd T/A Bluebird Care (South Bucks & Slough),M44D,AD Adult Social Care Operations,Supplies and Services,"2,982.00",Jan-24
Slough Borough Council,3611,Birch Assist Ltd T/A Bluebird Care (South Bucks & Slough),A05E,AD Adult Social Care Operations,Supplies and Services,"1,168.33",Jan-24
Slough Borough Council,808452,Black Swan International Limited,M25C,AD Adult Social Care Operations,Supplies and Services,"3,321.34",Jan-24
Slough Borough Council,805280,BME imaging LTD,H201,AD Housing,Supplies and Services,"1,253.94",Jan-24
Slough Borough Council,805160,Bouygues E&S FM UK Limited,B060,AD Building Management,Premises,"5,186.96",Jan-24
Slough Borough Council,2856,Brain Injury Rehabilitation Trust,M26E,AD Adult Social Care Operations,Supplies and Services,"5,937.65",Jan-24
Slough Borough Council,2856,Brain Injury Rehabilitation Trust,M27C,AD Adult Social Care Operations,Supplies and Services,"7,481.67",Jan-24
Slough Borough Council,805179,Braywood Tree Surgery Ltd,D502,AD Place Operations,Supplies and Services,"2,824.92",Jan-24
Slough Borough Council,805817,Bright World Nurseries,F909,AD Children & Families,Supplies and Services,"1,562.59",Jan-24
Slough Borough Council,805817,Bright World Nurseries,F909,AD Children & Families,Supplies and Services,"9,463.88",Jan-24
Slough Borough Council,808251,Brighter Futures for Children Limited,A04A,AD People Strategy & Commissioning,Supplies and Services,"1,487.50",Jan-24
Slough Borough Council,2648,Bristol City Council,L516,Treasury Management,Salaries and Wages,"25,300.00",Jan-24
Slough Borough Council,617,British Telecommunications,D122,AD Place Operations,Supplies and Services,527.84,Jan-24
Slough Borough Council,504,Britwell Baptist Pre School,F909,AD Children & Families,Supplies and Services,"2,464.21",Jan-24
Slough Borough Council,809324,Brownstones Property Services LTD,H218,AD Housing,Supplies and Services,"10,452.56",Jan-24
Slough Borough Council,806892,Bucks & Berks SLT Consultancy,F417,AD Education & Inclusion,Supplies and Services,777.27,Jan-24
Slough Borough Council,741,Bunnies Pre-School,F909,AD Children & Families,Supplies and Services,"6,624.22",Jan-24
Slough Borough Council,804448,Bupa Care Homes (ANS) Ltd,M15D,AD Adult Social Care Operations,Supplies and Services,"6,054.03",Jan-24
Slough Borough Council,804448,Bupa Care Homes (ANS) Ltd,M15D,AD Adult Social Care Operations,Supplies and Services,"6,642.86",Jan-24
Slough Borough Council,804448,Bupa Care Homes (ANS) Ltd,M15D,AD Adult Social Care Operations,Supplies and Services,"5,858.74",Jan-24
Slough Borough Council,804448,Bupa Care Homes (ANS) Ltd,M15D,AD Adult Social Care Operations,Supplies and Services,"6,428.57",Jan-24
Slough Borough Council,804448,Bupa Care Homes (ANS) Ltd,M15D,AD Adult Social Care Operations,Supplies and Services,"5,000.00",Jan-24
Slough Borough Council,804448,Bupa Care Homes (ANS) Ltd,M15D,AD Adult Social Care Operations,Supplies and Services,"6,054.03",Jan-24
Slough Borough Council,804448,Bupa Care Homes (ANS) Ltd,M15D,AD Adult Social Care Operations,Supplies and Services,"6,200.00",Jan-24
Slough Borough Council,809257,Burlington House School,F462,AD Children & Families,Supplies and Services,"13,897.00",Jan-24
Slough Borough Council,2675,Burnham Lodge Ltd,A02E,AD Adult Social Care Operations,Supplies and Services,"1,200.04",Jan-24
Slough Borough Council,2675,Burnham Lodge Ltd,A02E,AD Adult Social Care Operations,Supplies and Services,"5,314.33",Jan-24
Slough Borough Council,2675,Burnham Lodge Ltd,A02E,AD Adult Social Care Operations,Supplies and Services,"4,628.62",Jan-24
Slough Borough Council,2675,Burnham Lodge Ltd,A02E,AD Adult Social Care Operations,Supplies and Services,"5,314.33",Jan-24
Slough Borough Council,2675,Burnham Lodge Ltd,A02E,AD Adult Social Care Operations,Supplies and Services,"5,314.33",Jan-24
Slough Borough Council,2675,Burnham Lodge Ltd,M15D,AD Adult Social Care Operations,Supplies and Services,"3,942.86",Jan-24
Slough Borough Council,2675,Burnham Lodge Ltd,M18C,AD Adult Social Care Operations,Supplies and Services,"5,052.16",Jan-24
Slough Borough Council,2675,Burnham Lodge Ltd,M25D,AD Adult Social Care Operations,Supplies and Services,"5,314.33",Jan-24
Slough Borough Council,2675,Burnham Lodge Ltd,M28C,AD Adult Social Care Operations,Supplies and Services,"5,142.90",Jan-24
Slough Borough Council,2675,Burnham Lodge Ltd,M28C,AD Adult Social Care Operations,Supplies and Services,685.71,Jan-24
Slough Borough Council,806950,Burrbaxter Print Ltd,B033,AD HR,Supplies and Services,954.00,Jan-24
Slough Borough Council,629,C.H.O.I.C.E Limited,M26E,AD Adult Social Care Operations,Supplies and Services,"11,646.00",Jan-24
Slough Borough Council,629,C.H.O.I.C.E Limited,M26E,AD Adult Social Care Operations,Supplies and Services,"12,128.84",Jan-24
Slough Borough Council,629,C.H.O.I.C.E Limited,M26E,AD Adult Social Care Operations,Supplies and Services,"7,741.80",Jan-24
Slough Borough Council,629,C.H.O.I.C.E Limited,M26E,AD Adult Social Care Operations,Supplies and Services,"11,082.82",Jan-24
Slough Borough Council,629,C.H.O.I.C.E Limited,M26E,AD Adult Social Care Operations,Supplies and Services,"12,128.84",Jan-24
Slough Borough Council,629,C.H.O.I.C.E Limited,M26E,AD Adult Social Care Operations,Supplies and Services,"7,741.80",Jan-24
Slough Borough Council,629,C.H.O.I.C.E Limited,M26E,AD Adult Social Care Operations,Supplies and Services,"9,262.81",Jan-24
Slough Borough Council,629,C.H.O.I.C.E Limited,M26E,AD Adult Social Care Operations,Supplies and Services,"12,918.98",Jan-24
Slough Borough Council,629,C.H.O.I.C.E Limited,M26E,AD Adult Social Care Operations,Supplies and Services,"11,724.95",Jan-24
Slough Borough Council,629,C.H.O.I.C.E Limited,M26E,AD Adult Social Care Operations,Supplies and Services,"11,646.00",Jan-24
Slough Borough Council,629,C.H.O.I.C.E Limited,M26E,AD Adult Social Care Operations,Supplies and Services,"9,816.24",Jan-24
Slough Borough Council,629,C.H.O.I.C.E Limited,M42E,AD People Strategy & Commissioning,Supplies and Services,"2,818.11",Jan-24
Slough Borough Council,629,C.H.O.I.C.E Limited,M42E,AD People Strategy & Commissioning,Supplies and Services,"6,609.11",Jan-24
Slough Borough Council,629,C.H.O.I.C.E Limited,M42E,AD People Strategy & Commissioning,Supplies and Services,"6,017.63",Jan-24
Slough Borough Council,629,C.H.O.I.C.E Limited,M42E,AD People Strategy & Commissioning,Supplies and Services,"6,475.32",Jan-24
Slough Borough Council,629,C.H.O.I.C.E Limited,M42E,AD People Strategy & Commissioning,Supplies and Services,"6,514.07",Jan-24
Slough Borough Council,629,C.H.O.I.C.E Limited,M42E,AD People Strategy & Commissioning,Supplies and Services,"1,173.57",Jan-24
Slough Borough Council,629,C.H.O.I.C.E Limited,M42E,AD People Strategy & Commissioning,Supplies and Services,"2,912.05",Jan-24
Slough Borough Council,629,C.H.O.I.C.E Limited,M44F,AD People Strategy & Commissioning,Supplies and Services,"2,764.54",Jan-24
Slough Borough Council,629,C.H.O.I.C.E Limited,M44F,AD People Strategy & Commissioning,Supplies and Services,"2,736.81",Jan-24
Slough Borough Council,629,C.H.O.I.C.E Limited,M26E,AD Adult Social Care Operations,External Receipts,-523.01,Jan-24
Slough Borough Council,629,C.H.O.I.C.E Limited,M26E,AD Adult Social Care Operations,External Receipts,-515.75,Jan-24
Slough Borough Council,629,C.H.O.I.C.E Limited,M26E,AD Adult Social Care Operations,External Receipts,-523.01,Jan-24
Slough Borough Council,805072,Cabinet Office,B015,AD Deputy Director Financial Management,Supplies and Services,"3,810.00",Jan-24
Slough Borough Council,623,Canon (Uk) Ltd,K059,AD Communications,Supplies and Services,647.79,Jan-24
Slough Borough Council,623,Canon (Uk) Ltd,K059,AD Communications,Supplies and Services,"8,258.36",Jan-24
Slough Borough Council,807068,Capita Business Services Limited,B377,AD Deputy Director Corporate & Strategic Finance,Supplies and Services,"2,573.06",Jan-24
Slough Borough Council,808972,Cardea Healthcare,M44E,AD People Strategy & Commissioning,Supplies and Services,"1,346.92",Jan-24
Slough Borough Council,808972,Cardea Healthcare,M44E,AD People Strategy & Commissioning,Supplies and Services,872.58,Jan-24
Slough Borough Council,808972,Cardea Healthcare,M44E,AD People Strategy & Commissioning,Supplies and Services,872.58,Jan-24
Slough Borough Council,808972,Cardea Healthcare,M44E,AD People Strategy & Commissioning,Supplies and Services,872.58,Jan-24
Slough Borough Council,808972,Cardea Healthcare,M44E,AD People Strategy & Commissioning,Supplies and Services,827.58,Jan-24
Slough Borough Council,808972,Cardea Healthcare,M44E,AD People Strategy & Commissioning,Supplies and Services,872.58,Jan-24
Slough Borough Council,809201,Care Outlook Limited,A02F,AD Adult Social Care Operations,Supplies and Services,"35,144.98",Jan-24
Slough Borough Council,809201,Care Outlook Limited,A02F,AD Adult Social Care Operations,Supplies and Services,"35,144.98",Jan-24
Slough Borough Council,809201,Care Outlook Limited,A02F,AD Adult Social Care Operations,Supplies and Services,"35,144.98",Jan-24
Slough Borough Council,805621,Care Staff Services,A07R,AD Adult Social Care Operations,Supplies and Services,"2,205.00",Jan-24
Slough Borough Council,805621,Care Staff Services,A07R,AD Adult Social Care Operations,Supplies and Services,"1,426.25",Jan-24
Slough Borough Council,805621,Care Staff Services,A07R,AD Adult Social Care Operations,Supplies and Services,605.63,Jan-24
Slough Borough Council,805621,Care Staff Services,A07R,AD Adult Social Care Operations,Supplies and Services,"2,047.50",Jan-24
Slough Borough Council,805621,Care Staff Services,M44C,AD Adult Social Care Operations,Supplies and Services,"1,225.00",Jan-24
Slough Borough Council,805621,Care Staff Services,M44C,AD Adult Social Care Operations,Supplies and Services,"1,715.00",Jan-24
Slough Borough Council,805621,Care Staff Services,M44C,AD Adult Social Care Operations,Supplies and Services,777.00,Jan-24
Slough Borough Council,805621,Care Staff Services,M44C,AD Adult Social Care Operations,Supplies and Services,612.50,Jan-24
Slough Borough Council,805621,Care Staff Services,M44C,AD Adult Social Care Operations,Supplies and Services,"1,172.50",Jan-24
Slough Borough Council,805621,Care Staff Services,M44C,AD Adult Social Care Operations,Supplies and Services,805.00,Jan-24
Slough Borough Council,805621,Care Staff Services,M44C,AD Adult Social Care Operations,Supplies and Services,857.50,Jan-24
Slough Borough Council,805621,Care Staff Services,M44C,AD Adult Social Care Operations,Supplies and Services,"2,030.00",Jan-24
Slough Borough Council,805621,Care Staff Services,M44C,AD Adult Social Care Operations,Supplies and Services,"2,205.00",Jan-24
Slough Borough Council,805621,Care Staff Services,M44C,AD Adult Social Care Operations,Supplies and Services,518.00,Jan-24
Slough Borough Council,805621,Care Staff Services,M44C,AD Adult Social Care Operations,Supplies and Services,980.00,Jan-24
Slough Borough Council,805621,Care Staff Services,M44C,AD Adult Social Care Operations,Supplies and Services,952.00,Jan-24
Slough Borough Council,805621,Care Staff Services,M44C,AD Adult Social Care Operations,Supplies and Services,857.50,Jan-24
Slough Borough Council,805621,Care Staff Services,M44C,AD Adult Social Care Operations,Supplies and Services,857.50,Jan-24
Slough Borough Council,805621,Care Staff Services,M44C,AD Adult Social Care Operations,Supplies and Services,"1,050.00",Jan-24
Slough Borough Council,805621,Care Staff Services,M44C,AD Adult Social Care Operations,Supplies and Services,813.75,Jan-24
Slough Borough Council,805621,Care Staff Services,M44C,AD Adult Social Care Operations,Supplies and Services,"2,415.00",Jan-24
Slough Borough Council,805621,Care Staff Services,M44C,AD Adult Social Care Operations,Supplies and Services,599.38,Jan-24
Slough Borough Council,805621,Care Staff Services,M44C,AD Adult Social Care Operations,Supplies and Services,"2,331.00",Jan-24
Slough Borough Council,805621,Care Staff Services,M44C,AD Adult Social Care Operations,Supplies and Services,"1,102.50",Jan-24
Slough Borough Council,805621,Care Staff Services,M44C,AD Adult Social Care Operations,Supplies and Services,735.00,Jan-24
Slough Borough Council,805621,Care Staff Services,M44C,AD Adult Social Care Operations,Supplies and Services,752.50,Jan-24
Slough Borough Council,805621,Care Staff Services,M44C,AD Adult Social Care Operations,Supplies and Services,511.88,Jan-24
Slough Borough Council,805621,Care Staff Services,M44C,AD Adult Social Care Operations,Supplies and Services,"1,102.50",Jan-24
Slough Borough Council,805621,Care Staff Services,M44C,AD Adult Social Care Operations,Supplies and Services,525.00,Jan-24
Slough Borough Council,805621,Care Staff Services,M44C,AD Adult Social Care Operations,Supplies and Services,857.50,Jan-24
Slough Borough Council,805621,Care Staff Services,M44C,AD Adult Social Care Operations,Supplies and Services,980.00,Jan-24
Slough Borough Council,805621,Care Staff Services,M44C,AD Adult Social Care Operations,Supplies and Services,910.00,Jan-24
Slough Borough Council,805621,Care Staff Services,M44C,AD Adult Social Care Operations,Supplies and Services,"1,715.00",Jan-24
Slough Borough Council,805621,Care Staff Services,M44C,AD Adult Social Care Operations,Supplies and Services,980.00,Jan-24
Slough Borough Council,805621,Care Staff Services,M44C,AD Adult Social Care Operations,Supplies and Services,"1,102.50",Jan-24
Slough Borough Council,805621,Care Staff Services,M44C,AD Adult Social Care Operations,Supplies and Services,962.50,Jan-24
Slough Borough Council,805621,Care Staff Services,M44C,AD Adult Social Care Operations,Supplies and Services,975.63,Jan-24
Slough Borough Council,805621,Care Staff Services,M44C,AD Adult Social Care Operations,Supplies and Services,"1,076.25",Jan-24
Slough Borough Council,805621,Care Staff Services,M44C,AD Adult Social Care Operations,Supplies and Services,560.00,Jan-24
Slough Borough Council,805621,Care Staff Services,M44C,AD Adult Social Care Operations,Supplies and Services,"2,450.00",Jan-24
Slough Borough Council,805621,Care Staff Services,M44C,AD Adult Social Care Operations,Supplies and Services,"1,505.00",Jan-24
Slough Borough Council,805621,Care Staff Services,M44C,AD Adult Social Care Operations,Supplies and Services,906.50,Jan-24
Slough Borough Council,805621,Care Staff Services,M44C,AD Adult Social Care Operations,Supplies and Services,"2,205.00",Jan-24
Slough Borough Council,805621,Care Staff Services,M44C,AD Adult Social Care Operations,Supplies and Services,"2,205.00",Jan-24
Slough Borough Council,805621,Care Staff Services,M44C,AD Adult Social Care Operations,Supplies and Services,"2,205.00",Jan-24
Slough Borough Council,805621,Care Staff Services,M44C,AD Adult Social Care Operations,Supplies and Services,612.50,Jan-24
Slough Borough Council,805621,Care Staff Services,M44C,AD Adult Social Care Operations,Supplies and Services,896.88,Jan-24
Slough Borough Council,805621,Care Staff Services,M44C,AD Adult Social Care Operations,Supplies and Services,875.00,Jan-24
Slough Borough Council,805621,Care Staff Services,M44C,AD Adult Social Care Operations,Supplies and Services,"1,120.00",Jan-24
Slough Borough Council,805621,Care Staff Services,M44C,AD Adult Social Care Operations,Supplies and Services,"1,102.50",Jan-24
Slough Borough Council,805621,Care Staff Services,M44C,AD Adult Social Care Operations,Supplies and Services,"2,205.00",Jan-24
Slough Borough Council,805621,Care Staff Services,M44C,AD Adult Social Care Operations,Supplies and Services,962.50,Jan-24
Slough Borough Council,805621,Care Staff Services,M44C,AD Adult Social Care Operations,Supplies and Services,"1,803.75",Jan-24
Slough Borough Council,805621,Care Staff Services,M44C,AD Adult Social Care Operations,Supplies and Services,857.50,Jan-24
Slough Borough Council,805621,Care Staff Services,M44C,AD Adult Social Care Operations,Supplies and Services,518.00,Jan-24
Slough Borough Council,805621,Care Staff Services,M44C,AD Adult Social Care Operations,Supplies and Services,826.88,Jan-24
Slough Borough Council,805621,Care Staff Services,M44D,AD Adult Social Care Operations,Supplies and Services,682.50,Jan-24
Slough Borough Council,805621,Care Staff Services,M44D,AD Adult Social Care Operations,Supplies and Services,"1,767.50",Jan-24
Slough Borough Council,805621,Care Staff Services,M44D,AD Adult Social Care Operations,Supplies and Services,971.25,Jan-24
Slough Borough Council,805621,Care Staff Services,M44D,AD Adult Social Care Operations,Supplies and Services,"1,365.00",Jan-24
Slough Borough Council,805621,Care Staff Services,M44D,AD Adult Social Care Operations,Supplies and Services,"1,400.00",Jan-24
Slough Borough Council,805621,Care Staff Services,M44D,AD Adult Social Care Operations,Supplies and Services,980.00,Jan-24
Slough Borough Council,805621,Care Staff Services,M44D,AD Adult Social Care Operations,Supplies and Services,"1,610.00",Jan-24
Slough Borough Council,805621,Care Staff Services,M44D,AD Adult Social Care Operations,Supplies and Services,612.50,Jan-24
Slough Borough Council,805621,Care Staff Services,M44D,AD Adult Social Care Operations,Supplies and Services,612.50,Jan-24
Slough Borough Council,805621,Care Staff Services,M44D,AD Adult Social Care Operations,Supplies and Services,"1,225.00",Jan-24
Slough Borough Council,805621,Care Staff Services,M44D,AD Adult Social Care Operations,Supplies and Services,"2,205.00",Jan-24
Slough Borough Council,805621,Care Staff Services,M44D,AD Adult Social Care Operations,Supplies and Services,756.88,Jan-24
Slough Borough Council,805621,Care Staff Services,M44D,AD Adult Social Care Operations,Supplies and Services,857.50,Jan-24
Slough Borough Council,805621,Care Staff Services,M44D,AD Adult Social Care Operations,Supplies and Services,832.50,Jan-24
Slough Borough Council,805621,Care Staff Services,M44E,AD People Strategy & Commissioning,Supplies and Services,735.00,Jan-24
Slough Borough Council,805621,Care Staff Services,M44E,AD People Strategy & Commissioning,Supplies and Services,735.00,Jan-24
Slough Borough Council,805621,Care Staff Services,M44F,AD People Strategy & Commissioning,Supplies and Services,740.00,Jan-24
Slough Borough Council,805621,Care Staff Services,M44F,AD People Strategy & Commissioning,Supplies and Services,550.38,Jan-24
Slough Borough Council,805621,Care Staff Services,M44F,AD People Strategy & Commissioning,Supplies and Services,"1,382.50",Jan-24
Slough Borough Council,805621,Care Staff Services,M44F,AD People Strategy & Commissioning,Supplies and Services,"1,461.50",Jan-24
Slough Borough Council,805621,Care Staff Services,M44F,AD People Strategy & Commissioning,Supplies and Services,999.00,Jan-24
Slough Borough Council,805621,Care Staff Services,M44F,AD People Strategy & Commissioning,Supplies and Services,"2,590.00",Jan-24
Slough Borough Council,805621,Care Staff Services,M44F,AD People Strategy & Commissioning,Supplies and Services,766.51,Jan-24
Slough Borough Council,805621,Care Staff Services,M45C,AD Adult Social Care Operations,Supplies and Services,595.00,Jan-24
Slough Borough Council,805621,Care Staff Services,M45C,AD Adult Social Care Operations,Supplies and Services,927.50,Jan-24
Slough Borough Council,805621,Care Staff Services,M45C,AD Adult Social Care Operations,Supplies and Services,"1,960.00",Jan-24
Slough Borough Council,805621,Care Staff Services,M45C,AD Adult Social Care Operations,Supplies and Services,"1,417.50",Jan-24
Slough Borough Council,805621,Care Staff Services,M45C,AD Adult Social Care Operations,Supplies and Services,"1,723.75",Jan-24
Slough Borough Council,805621,Care Staff Services,M45C,AD Adult Social Care Operations,Supplies and Services,"2,108.75",Jan-24
Slough Borough Council,805621,Care Staff Services,M48C,AD Adult Social Care Operations,Supplies and Services,"2,196.25",Jan-24
Slough Borough Council,805621,Care Staff Services,M48C,AD Adult Social Care Operations,Supplies and Services,"2,205.00",Jan-24
Slough Borough Council,808149,Care Staff Services Support,M44F,AD People Strategy & Commissioning,Supplies and Services,"2,002.25",Jan-24
Slough Borough Council,808149,Care Staff Services Support,M44F,AD People Strategy & Commissioning,Supplies and Services,"5,415.17",Jan-24
Slough Borough Council,808149,Care Staff Services Support,M44F,AD People Strategy & Commissioning,Supplies and Services,"4,828.83",Jan-24
Slough Borough Council,1162,Care Uk Community Partnership Ltd,A02E,AD Adult Social Care Operations,Supplies and Services,"44,436.00",Jan-24
Slough Borough Council,1162,Care Uk Community Partnership Ltd,A02E,AD Adult Social Care Operations,Supplies and Services,"-3,703.00",Jan-24
Slough Borough Council,1162,Care Uk Community Partnership Ltd,A02E,AD Adult Social Care Operations,Supplies and Services,"-3,703.00",Jan-24
Slough Borough Council,1162,Care Uk Community Partnership Ltd,A03E,AD Adult Social Care Operations,Supplies and Services,"4,218.60",Jan-24
Slough Borough Council,1162,Care Uk Community Partnership Ltd,M15D,AD Adult Social Care Operations,Supplies and Services,"4,090.52",Jan-24
Slough Borough Council,1162,Care Uk Community Partnership Ltd,M15D,AD Adult Social Care Operations,Supplies and Services,"4,090.52",Jan-24
Slough Borough Council,1162,Care Uk Community Partnership Ltd,M15D,AD Adult Social Care Operations,Supplies and Services,"4,218.60",Jan-24
Slough Borough Council,1162,Care Uk Community Partnership Ltd,M15D,AD Adult Social Care Operations,Supplies and Services,"4,090.52",Jan-24
Slough Borough Council,1162,Care Uk Community Partnership Ltd,M15D,AD Adult Social Care Operations,Supplies and Services,"4,714.29",Jan-24
Slough Borough Council,1162,Care Uk Community Partnership Ltd,M15D,AD Adult Social Care Operations,Supplies and Services,"4,871.43",Jan-24
Slough Borough Council,1162,Care Uk Community Partnership Ltd,M15F,AD People Strategy & Commissioning,Supplies and Services,"4,090.52",Jan-24
Slough Borough Council,1162,Care Uk Community Partnership Ltd,M15F,AD People Strategy & Commissioning,Supplies and Services,"4,090.52",Jan-24
Slough Borough Council,1162,Care Uk Community Partnership Ltd,M15F,AD People Strategy & Commissioning,Supplies and Services,"4,090.52",Jan-24
Slough Borough Council,1162,Care Uk Community Partnership Ltd,M17C,AD Adult Social Care Operations,Supplies and Services,"4,218.60",Jan-24
Slough Borough Council,1162,Care Uk Community Partnership Ltd,M17C,AD Adult Social Care Operations,Supplies and Services,"4,218.60",Jan-24
Slough Borough Council,1162,Care Uk Community Partnership Ltd,M17C,AD Adult Social Care Operations,Supplies and Services,"3,969.72",Jan-24
Slough Borough Council,1162,Care Uk Community Partnership Ltd,M17C,AD Adult Social Care Operations,Supplies and Services,"4,090.52",Jan-24
Slough Borough Council,1162,Care Uk Community Partnership Ltd,M17C,AD Adult Social Care Operations,Supplies and Services,"4,218.60",Jan-24
Slough Borough Council,1162,Care Uk Community Partnership Ltd,M17C,AD Adult Social Care Operations,Supplies and Services,"4,218.60",Jan-24
Slough Borough Council,1162,Care Uk Community Partnership Ltd,M17C,AD Adult Social Care Operations,Supplies and Services,"4,712.36",Jan-24
Slough Borough Council,1162,Care Uk Community Partnership Ltd,M18C,AD Adult Social Care Operations,Supplies and Services,"4,090.52",Jan-24
Slough Borough Council,1162,Care Uk Community Partnership Ltd,M18C,AD Adult Social Care Operations,Supplies and Services,"4,090.52",Jan-24
Slough Borough Council,1162,Care Uk Community Partnership Ltd,M18C,AD Adult Social Care Operations,Supplies and Services,"4,090.52",Jan-24
Slough Borough Council,1162,Care Uk Community Partnership Ltd,M18C,AD Adult Social Care Operations,Supplies and Services,"4,218.60",Jan-24
Slough Borough Council,1162,Care Uk Community Partnership Ltd,M18C,AD Adult Social Care Operations,Supplies and Services,"4,090.52",Jan-24
Slough Borough Council,1162,Care Uk Community Partnership Ltd,M18C,AD Adult Social Care Operations,Supplies and Services,"4,090.52",Jan-24
Slough Borough Council,1162,Care Uk Community Partnership Ltd,M18C,AD Adult Social Care Operations,Supplies and Services,"4,090.52",Jan-24
Slough Borough Council,1162,Care Uk Community Partnership Ltd,M18C,AD Adult Social Care Operations,Supplies and Services,"-27,946.33",Jan-24
Slough Borough Council,1162,Care Uk Community Partnership Ltd,M18C,AD Adult Social Care Operations,Supplies and Services,"4,090.52",Jan-24
Slough Borough Council,1162,Care Uk Community Partnership Ltd,M18C,AD Adult Social Care Operations,Supplies and Services,"4,090.52",Jan-24
Slough Borough Council,1162,Care Uk Community Partnership Ltd,M18C,AD Adult Social Care Operations,Supplies and Services,"3,969.72",Jan-24
Slough Borough Council,1162,Care Uk Community Partnership Ltd,M18C,AD Adult Social Care Operations,Supplies and Services,"4,218.60",Jan-24
Slough Borough Council,1162,Care Uk Community Partnership Ltd,M18C,AD Adult Social Care Operations,Supplies and Services,"4,090.52",Jan-24
Slough Borough Council,1162,Care Uk Community Partnership Ltd,M18C,AD Adult Social Care Operations,Supplies and Services,"4,090.52",Jan-24
Slough Borough Council,1162,Care Uk Community Partnership Ltd,M18C,AD Adult Social Care Operations,Supplies and Services,"4,218.60",Jan-24
Slough Borough Council,1162,Care Uk Community Partnership Ltd,M18C,AD Adult Social Care Operations,Supplies and Services,"4,090.52",Jan-24
Slough Borough Council,1162,Care Uk Community Partnership Ltd,M18C,AD Adult Social Care Operations,Supplies and Services,"4,218.60",Jan-24
Slough Borough Council,1162,Care Uk Community Partnership Ltd,M18C,AD Adult Social Care Operations,Supplies and Services,"4,218.60",Jan-24
Slough Borough Council,1162,Care Uk Community Partnership Ltd,M18C,AD Adult Social Care Operations,Supplies and Services,"4,090.52",Jan-24
Slough Borough Council,1162,Care Uk Community Partnership Ltd,M18C,AD Adult Social Care Operations,Supplies and Services,"4,090.52",Jan-24
Slough Borough Council,1162,Care Uk Community Partnership Ltd,M18C,AD Adult Social Care Operations,Supplies and Services,"4,090.52",Jan-24
Slough Borough Council,1162,Care Uk Community Partnership Ltd,M18C,AD Adult Social Care Operations,Supplies and Services,"4,090.52",Jan-24
Slough Borough Council,1162,Care Uk Community Partnership Ltd,M18C,AD Adult Social Care Operations,Supplies and Services,"4,090.52",Jan-24
Slough Borough Council,1162,Care Uk Community Partnership Ltd,M18C,AD Adult Social Care Operations,Supplies and Services,"4,090.52",Jan-24
Slough Borough Council,1162,Care Uk Community Partnership Ltd,M18C,AD Adult Social Care Operations,Supplies and Services,"4,218.60",Jan-24
Slough Borough Council,1162,Care Uk Community Partnership Ltd,M18C,AD Adult Social Care Operations,Supplies and Services,"4,090.52",Jan-24
Slough Borough Council,1162,Care Uk Community Partnership Ltd,M18C,AD Adult Social Care Operations,Supplies and Services,"4,090.52",Jan-24
Slough Borough Council,1162,Care Uk Community Partnership Ltd,M18C,AD Adult Social Care Operations,Supplies and Services,"4,090.52",Jan-24
Slough Borough Council,1162,Care Uk Community Partnership Ltd,M18C,AD Adult Social Care Operations,Supplies and Services,"4,090.52",Jan-24
Slough Borough Council,1162,Care Uk Community Partnership Ltd,M18C,AD Adult Social Care Operations,Supplies and Services,"4,090.52",Jan-24
Slough Borough Council,1162,Care Uk Community Partnership Ltd,M18C,AD Adult Social Care Operations,Supplies and Services,"4,090.52",Jan-24
Slough Borough Council,1162,Care Uk Community Partnership Ltd,M18C,AD Adult Social Care Operations,Supplies and Services,"4,090.52",Jan-24
Slough Borough Council,1162,Care Uk Community Partnership Ltd,M18C,AD Adult Social Care Operations,Supplies and Services,"4,090.52",Jan-24
Slough Borough Council,1162,Care Uk Community Partnership Ltd,M18C,AD Adult Social Care Operations,Supplies and Services,"4,090.52",Jan-24
Slough Borough Council,1162,Care Uk Community Partnership Ltd,M18C,AD Adult Social Care Operations,Supplies and Services,"1,885.71",Jan-24
Slough Borough Council,1162,Care Uk Community Partnership Ltd,M18C,AD Adult Social Care Operations,Supplies and Services,"4,800.00",Jan-24
Slough Borough Council,1162,Care Uk Community Partnership Ltd,M18C,AD Adult Social Care Operations,Supplies and Services,"1,200.00",Jan-24
Slough Borough Council,1162,Care Uk Community Partnership Ltd,M18C,AD Adult Social Care Operations,Supplies and Services,"3,600.00",Jan-24
Slough Borough Council,1162,Care Uk Community Partnership Ltd,M18C,AD Adult Social Care Operations,Supplies and Services,"1,714.29",Jan-24
Slough Borough Council,1162,Care Uk Community Partnership Ltd,M25C,AD Adult Social Care Operations,Supplies and Services,"24,327.80",Jan-24
Slough Borough Council,1162,Care Uk Community Partnership Ltd,M25C,AD Adult Social Care Operations,Supplies and Services,"3,703.00",Jan-24
Slough Borough Council,1162,Care Uk Community Partnership Ltd,M25C,AD Adult Social Care Operations,Supplies and Services,"3,703.00",Jan-24
Slough Borough Council,1162,Care Uk Community Partnership Ltd,M25C,AD Adult Social Care Operations,Supplies and Services,"3,703.00",Jan-24
Slough Borough Council,1162,Care Uk Community Partnership Ltd,M25C,AD Adult Social Care Operations,Supplies and Services,"3,703.00",Jan-24
Slough Borough Council,1162,Care Uk Community Partnership Ltd,M25C,AD Adult Social Care Operations,Supplies and Services,"3,703.00",Jan-24
Slough Borough Council,1162,Care Uk Community Partnership Ltd,M25C,AD Adult Social Care Operations,Supplies and Services,"5,314.29",Jan-24
Slough Borough Council,1162,Care Uk Community Partnership Ltd,M25C,AD Adult Social Care Operations,Supplies and Services,"3,703.00",Jan-24
Slough Borough Council,1162,Care Uk Community Partnership Ltd,M25C,AD Adult Social Care Operations,Supplies and Services,"5,314.29",Jan-24
Slough Borough Council,1162,Care Uk Community Partnership Ltd,M25C,AD Adult Social Care Operations,Supplies and Services,514.29,Jan-24
Slough Borough Council,1162,Care Uk Community Partnership Ltd,M25C,AD Adult Social Care Operations,Supplies and Services,"4,800.00",Jan-24
Slough Borough Council,1162,Care Uk Community Partnership Ltd,M25C,AD Adult Social Care Operations,Supplies and Services,"4,800.00",Jan-24
Slough Borough Council,1162,Care Uk Community Partnership Ltd,M25C,AD Adult Social Care Operations,Supplies and Services,"4,800.00",Jan-24
Slough Borough Council,1162,Care Uk Community Partnership Ltd,M25C,AD Adult Social Care Operations,Supplies and Services,"4,800.00",Jan-24
Slough Borough Council,1162,Care Uk Community Partnership Ltd,M25C,AD Adult Social Care Operations,Supplies and Services,"4,800.00",Jan-24
Slough Borough Council,1162,Care Uk Community Partnership Ltd,M25C,AD Adult Social Care Operations,Supplies and Services,881.60,Jan-24
Slough Borough Council,1162,Care Uk Community Partnership Ltd,M25C,AD Adult Social Care Operations,Supplies and Services,"4,261.26",Jan-24
Slough Borough Council,1162,Care Uk Community Partnership Ltd,M26E,AD Adult Social Care Operations,Supplies and Services,"4,090.52",Jan-24
Slough Borough Council,1162,Care Uk Community Partnership Ltd,M26E,AD Adult Social Care Operations,Supplies and Services,"4,090.52",Jan-24
Slough Borough Council,1162,Care Uk Community Partnership Ltd,M26E,AD Adult Social Care Operations,Supplies and Services,"4,090.52",Jan-24
Slough Borough Council,1162,Care Uk Community Partnership Ltd,M26E,AD Adult Social Care Operations,Supplies and Services,"2,527.34",Jan-24
Slough Borough Council,1162,Care Uk Community Partnership Ltd,M26E,AD Adult Social Care Operations,Supplies and Services,"4,001.66",Jan-24
Slough Borough Council,1162,Care Uk Community Partnership Ltd,M27C,AD Adult Social Care Operations,Supplies and Services,"20,285.28",Jan-24
Slough Borough Council,1162,Care Uk Community Partnership Ltd,M27C,AD Adult Social Care Operations,Supplies and Services,"3,380.88",Jan-24
Slough Borough Council,1162,Care Uk Community Partnership Ltd,M27C,AD Adult Social Care Operations,Supplies and Services,"3,380.88",Jan-24
Slough Borough Council,1162,Care Uk Community Partnership Ltd,M27C,AD Adult Social Care Operations,Supplies and Services,"3,703.00",Jan-24
Slough Borough Council,1162,Care Uk Community Partnership Ltd,M27C,AD Adult Social Care Operations,Supplies and Services,"3,703.00",Jan-24
Slough Borough Council,1162,Care Uk Community Partnership Ltd,M27C,AD Adult Social Care Operations,Supplies and Services,"3,703.00",Jan-24
Slough Borough Council,1162,Care Uk Community Partnership Ltd,M27C,AD Adult Social Care Operations,Supplies and Services,"3,703.00",Jan-24
Slough Borough Council,1162,Care Uk Community Partnership Ltd,M27C,AD Adult Social Care Operations,Supplies and Services,"3,380.88",Jan-24
Slough Borough Council,1162,Care Uk Community Partnership Ltd,M27C,AD Adult Social Care Operations,Supplies and Services,"3,703.00",Jan-24
Slough Borough Council,1162,Care Uk Community Partnership Ltd,M27C,AD Adult Social Care Operations,Supplies and Services,"3,380.88",Jan-24
Slough Borough Council,1162,Care Uk Community Partnership Ltd,M27C,AD Adult Social Care Operations,Supplies and Services,"3,380.88",Jan-24
Slough Borough Council,1162,Care Uk Community Partnership Ltd,M27C,AD Adult Social Care Operations,Supplies and Services,"3,703.00",Jan-24
Slough Borough Council,1162,Care Uk Community Partnership Ltd,M27C,AD Adult Social Care Operations,Supplies and Services,"3,380.88",Jan-24
Slough Borough Council,1162,Care Uk Community Partnership Ltd,M27C,AD Adult Social Care Operations,Supplies and Services,"3,380.88",Jan-24
Slough Borough Council,1162,Care Uk Community Partnership Ltd,M27C,AD Adult Social Care Operations,Supplies and Services,"3,380.88",Jan-24
Slough Borough Council,1162,Care Uk Community Partnership Ltd,M27C,AD Adult Social Care Operations,Supplies and Services,"3,703.00",Jan-24
Slough Borough Council,1162,Care Uk Community Partnership Ltd,M27C,AD Adult Social Care Operations,Supplies and Services,"3,703.00",Jan-24
Slough Borough Council,1162,Care Uk Community Partnership Ltd,M27C,AD Adult Social Care Operations,Supplies and Services,"4,114.28",Jan-24
Slough Borough Council,1162,Care Uk Community Partnership Ltd,M27C,AD Adult Social Care Operations,Supplies and Services,"1,200.01",Jan-24
Slough Borough Council,1162,Care Uk Community Partnership Ltd,M27C,AD Adult Social Care Operations,Supplies and Services,"3,703.00",Jan-24
Slough Borough Council,1162,Care Uk Community Partnership Ltd,M27C,AD Adult Social Care Operations,Supplies and Services,"3,599.99",Jan-24
Slough Borough Council,1162,Care Uk Community Partnership Ltd,M27C,AD Adult Social Care Operations,Supplies and Services,"1,714.30",Jan-24
Slough Borough Council,1162,Care Uk Community Partnership Ltd,M27C,AD Adult Social Care Operations,Supplies and Services,"4,457.14",Jan-24
Slough Borough Council,1162,Care Uk Community Partnership Ltd,M27C,AD Adult Social Care Operations,Supplies and Services,685.72,Jan-24
Slough Borough Council,1162,Care Uk Community Partnership Ltd,M27F,AD Adult Social Care Operations,Supplies and Services,"3,380.88",Jan-24
Slough Borough Council,1162,Care Uk Community Partnership Ltd,M28C,AD Adult Social Care Operations,Supplies and Services,"3,652.25",Jan-24
Slough Borough Council,809100,Careful Choices,M44D,AD Adult Social Care Operations,Supplies and Services,"1,124.00",Jan-24
Slough Borough Council,809100,Careful Choices,M44D,AD Adult Social Care Operations,Supplies and Services,"1,124.00",Jan-24
Slough Borough Council,809100,Careful Choices,M44D,AD Adult Social Care Operations,Supplies and Services,"1,124.00",Jan-24
Slough Borough Council,809100,Careful Choices,M44D,AD Adult Social Care Operations,Supplies and Services,"1,124.00",Jan-24
Slough Borough Council,1910,Carousel Buses Ltd,D512,AD Place Operations,Supplies and Services,"6,765.87",Jan-24
Slough Borough Council,804413,Castle Water,B060,AD Building Management,Premises,"1,237.04",Jan-24
Slough Borough Council,804413,Castle Water,B060,AD Building Management,Premises,513.68,Jan-24
Slough Borough Council,804413,Castle Water,B060,AD Building Management,Premises,577.94,Jan-24
Slough Borough Council,804413,Castle Water,D900,AD Place Operations,Premises,888.75,Jan-24
Slough Borough Council,418,Castleview School,E620,AD Children & Families,Supplies and Services,"44,565.04",Jan-24
Slough Borough Council,808307,CDW Limited,B282,AD Chief Digital & Information Officer,Supplies and Services,"3,681.60",Jan-24
Slough Borough Council,805619,Centennial Property Limited T/A The Housing Network,H205,AD Housing,Premises,"67,241.00",Jan-24
Slough Borough Council,3609,Centurion Healthcare Ltd,M26E,AD Adult Social Care Operations,Supplies and Services,"6,514.38",Jan-24
Slough Borough Council,805174,Certas Energy,D900,AD Place Operations,Supplies and Services,920.92,Jan-24
Slough Borough Council,2892,Chalfont Lodge,M15D,AD Adult Social Care Operations,Supplies and Services,"5,978.57",Jan-24
Slough Borough Council,2892,Chalfont Lodge,M15F,AD People Strategy & Commissioning,Supplies and Services,"8,857.14",Jan-24
Slough Borough Council,2608,Chandos Lodge Nursing Home,M15D,AD Adult Social Care Operations,Supplies and Services,"4,400.00",Jan-24
Slough Borough Council,2608,Chandos Lodge Nursing Home,M18C,AD Adult Social Care Operations,Supplies and Services,"4,400.00",Jan-24
Slough Borough Council,3943,Channels And Choices Theraputic Fostering Ltd,F462,AD Children & Families,Supplies and Services,"19,333.33",Jan-24
Slough Borough Council,1877,Chelsie Innes,C322,AD Public Protection & Communities - Children Services,Supplies and Services,"1,922.50",Jan-24
Slough Borough Council,3114,Cherry Trees Day Nursery,F909,AD Children & Families,Supplies and Services,"1,879.91",Jan-24
Slough Borough Council,3114,Cherry Trees Day Nursery,F909,AD Children & Families,Supplies and Services,"24,630.65",Jan-24
Slough Borough Council,2871,Cherry Trees Residential Care,M27F,AD Adult Social Care Operations,Supplies and Services,"2,435.71",Jan-24
Slough Borough Council,2871,Cherry Trees Residential Care,M27F,AD Adult Social Care Operations,Supplies and Services,"2,435.71",Jan-24
Slough Borough Council,2871,Cherry Trees Residential Care,M42F,AD People Strategy & Commissioning,Supplies and Services,"1,660.71",Jan-24
Slough Borough Council,2871,Cherry Trees Residential Care,M42F,AD People Strategy & Commissioning,Supplies and Services,"2,491.07",Jan-24
Slough Borough Council,2871,Cherry Trees Residential Care,M42F,AD People Strategy & Commissioning,Supplies and Services,"2,491.07",Jan-24
Slough Borough Council,2871,Cherry Trees Residential Care,M42F,AD People Strategy & Commissioning,Supplies and Services,"1,660.71",Jan-24
Slough Borough Council,2871,Cherry Trees Residential Care,M42F,AD People Strategy & Commissioning,Supplies and Services,"2,491.07",Jan-24
Slough Borough Council,2871,Cherry Trees Residential Care,M42F,AD People Strategy & Commissioning,Supplies and Services,"2,491.07",Jan-24
Slough Borough Council,809146,Chilmington Homes Ltd,M26E,AD Adult Social Care Operations,Supplies and Services,"8,358.00",Jan-24
Slough Borough Council,809146,Chilmington Homes Ltd,M26E,AD Adult Social Care Operations,Supplies and Services,"8,358.00",Jan-24
Slough Borough Council,808527,Chiron Care (Uk) Limited,M44F,AD People Strategy & Commissioning,Supplies and Services,"2,213.70",Jan-24
Slough Borough Council,808527,Chiron Care (Uk) Limited,M44F,AD People Strategy & Commissioning,Supplies and Services,"2,479.69",Jan-24
Slough Borough Council,808527,Chiron Care (Uk) Limited,M44F,AD People Strategy & Commissioning,Supplies and Services,"1,868.68",Jan-24
Slough Borough Council,808527,Chiron Care (Uk) Limited,M44F,AD People Strategy & Commissioning,Supplies and Services,"2,607.90",Jan-24
Slough Borough Council,808527,Chiron Care (Uk) Limited,M44F,AD People Strategy & Commissioning,Supplies and Services,"2,607.90",Jan-24
Slough Borough Council,808527,Chiron Care (Uk) Limited,M44F,AD People Strategy & Commissioning,Supplies and Services,"2,213.70",Jan-24
Slough Borough Council,808527,Chiron Care (Uk) Limited,M44F,AD People Strategy & Commissioning,Supplies and Services,"2,399.70",Jan-24
Slough Borough Council,808527,Chiron Care (Uk) Limited,M44F,AD People Strategy & Commissioning,Supplies and Services,"2,905.20",Jan-24
Slough Borough Council,808527,Chiron Care (Uk) Limited,M44F,AD People Strategy & Commissioning,Supplies and Services,"4,431.30",Jan-24
Slough Borough Council,808527,Chiron Care (Uk) Limited,M44F,AD People Strategy & Commissioning,Supplies and Services,"1,808.40",Jan-24
Slough Borough Council,808527,Chiron Care (Uk) Limited,M44F,AD People Strategy & Commissioning,Supplies and Services,"2,560.50",Jan-24
Slough Borough Council,808527,Chiron Care (Uk) Limited,M44F,AD People Strategy & Commissioning,Supplies and Services,"1,808.40",Jan-24
Slough Borough Council,808527,Chiron Care (Uk) Limited,M44F,AD People Strategy & Commissioning,Supplies and Services,"2,287.49",Jan-24
Slough Borough Council,808527,Chiron Care (Uk) Limited,M44F,AD People Strategy & Commissioning,Supplies and Services,"2,479.69",Jan-24
Slough Borough Council,808527,Chiron Care (Uk) Limited,M44F,AD People Strategy & Commissioning,Supplies and Services,"3,002.04",Jan-24
Slough Borough Council,808527,Chiron Care (Uk) Limited,M44F,AD People Strategy & Commissioning,Supplies and Services,"4,579.01",Jan-24
Slough Borough Council,808527,Chiron Care (Uk) Limited,M44F,AD People Strategy & Commissioning,Supplies and Services,"1,868.68",Jan-24
Slough Borough Council,808527,Chiron Care (Uk) Limited,M44F,AD People Strategy & Commissioning,Supplies and Services,"2,645.85",Jan-24
Slough Borough Council,808527,Chiron Care (Uk) Limited,M44F,AD People Strategy & Commissioning,Supplies and Services,"1,868.68",Jan-24
Slough Borough Council,808527,Chiron Care (Uk) Limited,M44F,AD People Strategy & Commissioning,Supplies and Services,"2,694.83",Jan-24
Slough Borough Council,803495,Christchurch Court Ltd,M15D,AD Adult Social Care Operations,Supplies and Services,"9,214.35",Jan-24
Slough Borough Council,807491,Cippenham School,E620,AD Children & Families,Supplies and Services,"15,500.00",Jan-24
Slough Borough Council,808112,Citizen Advice Bureau Slough,A02C,AD People Strategy & Commissioning,Supplies and Services,"30,000.00",Jan-24
Slough Borough Council,806550,City Homecare Ltd,A07R,AD Adult Social Care Operations,Supplies and Services,669.38,Jan-24
Slough Borough Council,806550,City Homecare Ltd,A07R,AD Adult Social Care Operations,Supplies and Services,"1,102.50",Jan-24
Slough Borough Council,806550,City Homecare Ltd,A07R,AD Adult Social Care Operations,Supplies and Services,796.25,Jan-24
Slough Borough Council,806550,City Homecare Ltd,A07R,AD Adult Social Care Operations,Supplies and Services,"1,207.50",Jan-24
Slough Borough Council,806550,City Homecare Ltd,M44C,AD Adult Social Care Operations,Supplies and Services,857.50,Jan-24
Slough Borough Council,806550,City Homecare Ltd,M44C,AD Adult Social Care Operations,Supplies and Services,"2,345.00",Jan-24
Slough Borough Council,806550,City Homecare Ltd,M44C,AD Adult Social Care Operations,Supplies and Services,612.50,Jan-24
Slough Borough Council,806550,City Homecare Ltd,M44C,AD Adult Social Care Operations,Supplies and Services,612.50,Jan-24
Slough Borough Council,806550,City Homecare Ltd,M44C,AD Adult Social Care Operations,Supplies and Services,735.00,Jan-24
Slough Borough Council,806550,City Homecare Ltd,M44C,AD Adult Social Care Operations,Supplies and Services,682.50,Jan-24
Slough Borough Council,806550,City Homecare Ltd,M44C,AD Adult Social Care Operations,Supplies and Services,612.50,Jan-24
Slough Borough Council,806550,City Homecare Ltd,M44C,AD Adult Social Care Operations,Supplies and Services,"1,102.50",Jan-24
Slough Borough Council,806550,City Homecare Ltd,M44C,AD Adult Social Care Operations,Supplies and Services,857.50,Jan-24
Slough Borough Council,806550,City Homecare Ltd,M44C,AD Adult Social Care Operations,Supplies and Services,"1,102.50",Jan-24
Slough Borough Council,806550,City Homecare Ltd,M44C,AD Adult Social Care Operations,Supplies and Services,"1,347.50",Jan-24
Slough Borough Council,806550,City Homecare Ltd,M44C,AD Adult Social Care Operations,Supplies and Services,551.25,Jan-24
Slough Borough Council,806550,City Homecare Ltd,M44C,AD Adult Social Care Operations,Supplies and Services,"1,960.00",Jan-24
Slough Borough Council,806550,City Homecare Ltd,M44C,AD Adult Social Care Operations,Supplies and Services,"2,450.00",Jan-24
Slough Borough Council,806550,City Homecare Ltd,M44C,AD Adult Social Care Operations,Supplies and Services,"1,225.00",Jan-24
Slough Borough Council,806550,City Homecare Ltd,M44C,AD Adult Social Care Operations,Supplies and Services,"2,275.00",Jan-24
Slough Borough Council,806550,City Homecare Ltd,M44C,AD Adult Social Care Operations,Supplies and Services,"1,102.50",Jan-24
Slough Borough Council,806550,City Homecare Ltd,M44C,AD Adult Social Care Operations,Supplies and Services,"1,225.00",Jan-24
Slough Borough Council,806550,City Homecare Ltd,M44C,AD Adult Social Care Operations,Supplies and Services,"2,205.00",Jan-24
Slough Borough Council,806550,City Homecare Ltd,M44C,AD Adult Social Care Operations,Supplies and Services,980.00,Jan-24
Slough Borough Council,806550,City Homecare Ltd,M44C,AD Adult Social Care Operations,Supplies and Services,533.75,Jan-24
Slough Borough Council,806550,City Homecare Ltd,M44C,AD Adult Social Care Operations,Supplies and Services,"1,041.25",Jan-24
Slough Borough Council,806550,City Homecare Ltd,M44C,AD Adult Social Care Operations,Supplies and Services,"1,785.00",Jan-24
Slough Borough Council,806550,City Homecare Ltd,M44C,AD Adult Social Care Operations,Supplies and Services,857.50,Jan-24
Slough Borough Council,806550,City Homecare Ltd,M44C,AD Adult Social Care Operations,Supplies and Services,"1,960.00",Jan-24
Slough Borough Council,806550,City Homecare Ltd,M44C,AD Adult Social Care Operations,Supplies and Services,612.50,Jan-24
Slough Borough Council,806550,City Homecare Ltd,M44C,AD Adult Social Care Operations,Supplies and Services,612.50,Jan-24
Slough Borough Council,806550,City Homecare Ltd,M44C,AD Adult Social Care Operations,Supplies and Services,"1,715.00",Jan-24
Slough Borough Council,806550,City Homecare Ltd,M44C,AD Adult Social Care Operations,Supplies and Services,556.50,Jan-24
Slough Borough Council,806550,City Homecare Ltd,M44D,AD Adult Social Care Operations,Supplies and Services,"2,940.00",Jan-24
Slough Borough Council,806550,City Homecare Ltd,M44D,AD Adult Social Care Operations,Supplies and Services,612.50,Jan-24
Slough Borough Council,806550,City Homecare Ltd,M44D,AD Adult Social Care Operations,Supplies and Services,980.00,Jan-24
Slough Borough Council,806550,City Homecare Ltd,M44D,AD Adult Social Care Operations,Supplies and Services,630.00,Jan-24
Slough Borough Council,806550,City Homecare Ltd,M44D,AD Adult Social Care Operations,Supplies and Services,"1,645.00",Jan-24
Slough Borough Council,806550,City Homecare Ltd,M44D,AD Adult Social Care Operations,Supplies and Services,980.00,Jan-24
Slough Borough Council,806550,City Homecare Ltd,M44D,AD Adult Social Care Operations,Supplies and Services,717.50,Jan-24
Slough Borough Council,806550,City Homecare Ltd,M44E,AD People Strategy & Commissioning,Supplies and Services,735.00,Jan-24
Slough Borough Council,806550,City Homecare Ltd,M44E,AD People Strategy & Commissioning,Supplies and Services,603.75,Jan-24
Slough Borough Council,806550,City Homecare Ltd,M44F,AD People Strategy & Commissioning,Supplies and Services,840.00,Jan-24
Slough Borough Council,806550,City Homecare Ltd,M44F,AD People Strategy & Commissioning,Supplies and Services,682.50,Jan-24
Slough Borough Council,806550,City Homecare Ltd,M44F,AD People Strategy & Commissioning,Supplies and Services,"1,610.00",Jan-24
Slough Borough Council,806550,City Homecare Ltd,M45C,AD Adult Social Care Operations,Supplies and Services,"1,155.00",Jan-24
Slough Borough Council,806550,City Homecare Ltd,M45C,AD Adult Social Care Operations,Supplies and Services,"1,067.50",Jan-24
Slough Borough Council,806550,City Homecare Ltd,M48C,AD Adult Social Care Operations,Supplies and Services,651.88,Jan-24
Slough Borough Council,806550,City Homecare Ltd,M48C,AD Adult Social Care Operations,Supplies and Services,857.50,Jan-24
Slough Borough Council,806550,City Homecare Ltd,M48C,AD Adult Social Care Operations,Supplies and Services,857.50,Jan-24
Slough Borough Council,806550,City Homecare Ltd,M48C,AD Adult Social Care Operations,Supplies and Services,520.63,Jan-24
Slough Borough Council,1083,Civica Uk Limited,B342,AD Chief Digital & Information Officer,Supplies and Services,"5,195.00",Jan-24
Slough Borough Council,455,Cj Associates,F150,AD Children & Families,Indirect Employee Expenses,700.00,Jan-24
Slough Borough Council,1151,Claycots Primary School,E200,AD Children & Families,Supplies and Services,"724,746.86",Jan-24
Slough Borough Council,1151,Claycots Primary School,F002,AD Public Protection & Communities - Public Health,Government Grants,"1,000.00",Jan-24
Slough Borough Council,809123,CMAC Group UK Limited,B329,Governance & Scruitiny / Law and Governance,Supplies and Services,"2,000.00",Jan-24
Slough Borough Council,3685,Coghlan Lodges Limited,M44D,AD Adult Social Care Operations,Supplies and Services,"2,116.04",Jan-24
Slough Borough Council,3685,Coghlan Lodges Limited,M44F,AD People Strategy & Commissioning,Supplies and Services,"1,870.00",Jan-24
Slough Borough Council,805823,Collaborative Care Solutions,M42E,AD People Strategy & Commissioning,Supplies and Services,"9,211.42",Jan-24
Slough Borough Council,805823,Collaborative Care Solutions,M42F,AD People Strategy & Commissioning,Supplies and Services,"2,971.57",Jan-24
Slough Borough Council,805823,Collaborative Care Solutions,M44D,AD Adult Social Care Operations,Supplies and Services,"9,211.42",Jan-24
Slough Borough Council,805823,Collaborative Care Solutions,M44F,AD People Strategy & Commissioning,Supplies and Services,"4,982.14",Jan-24
Slough Borough Council,459,Colliers Cre,J006,AD Housing,Supplies and Services,"1,250.00",Jan-24
Slough Borough Council,459,Colliers Cre,J006,AD Housing,Supplies and Services,"3,666.67",Jan-24
Slough Borough Council,286,Colnbrook C Of E Primary School,E620,AD Children & Families,Supplies and Services,"21,414.71",Jan-24
Slough Borough Council,2535,Comfort Care Services,M42E,AD People Strategy & Commissioning,Supplies and Services,"1,165.82",Jan-24
Slough Borough Council,2535,Comfort Care Services,M42E,AD People Strategy & Commissioning,Supplies and Services,932.66,Jan-24
Slough Borough Council,2535,Comfort Care Services,M42E,AD People Strategy & Commissioning,Supplies and Services,"2,814.18",Jan-24
Slough Borough Council,2535,Comfort Care Services,M42E,AD People Strategy & Commissioning,Supplies and Services,"2,814.14",Jan-24
Slough Borough Council,2535,Comfort Care Services,M42E,AD People Strategy & Commissioning,Supplies and Services,929.38,Jan-24
Slough Borough Council,2535,Comfort Care Services,M42E,AD People Strategy & Commissioning,Supplies and Services,"2,564.81",Jan-24
Slough Borough Council,2535,Comfort Care Services,M42E,AD People Strategy & Commissioning,Supplies and Services,"1,165.82",Jan-24
Slough Borough Council,2535,Comfort Care Services,M42E,AD People Strategy & Commissioning,Supplies and Services,"1,538.88",Jan-24
Slough Borough Council,2535,Comfort Care Services,M42E,AD People Strategy & Commissioning,Supplies and Services,"5,114.92",Jan-24
Slough Borough Council,2535,Comfort Care Services,M42E,AD People Strategy & Commissioning,Supplies and Services,"1,468.91",Jan-24
Slough Borough Council,2535,Comfort Care Services,M42F,AD People Strategy & Commissioning,Supplies and Services,932.66,Jan-24
Slough Borough Council,2535,Comfort Care Services,M42F,AD People Strategy & Commissioning,Supplies and Services,"2,937.78",Jan-24
Slough Borough Council,2535,Comfort Care Services,M42F,AD People Strategy & Commissioning,Supplies and Services,932.66,Jan-24
Slough Borough Council,2535,Comfort Care Services,M42F,AD People Strategy & Commissioning,Supplies and Services,"1,632.15",Jan-24
Slough Borough Council,2535,Comfort Care Services,M42F,AD People Strategy & Commissioning,Supplies and Services,"1,632.15",Jan-24
Slough Borough Council,2535,Comfort Care Services,M42F,AD People Strategy & Commissioning,Supplies and Services,"1,632.11",Jan-24
Slough Borough Council,2535,Comfort Care Services,M42F,AD People Strategy & Commissioning,Supplies and Services,932.66,Jan-24
Slough Borough Council,2535,Comfort Care Services,M42F,AD People Strategy & Commissioning,Supplies and Services,"2,937.78",Jan-24
Slough Borough Council,2535,Comfort Care Services,M42F,AD People Strategy & Commissioning,Supplies and Services,932.66,Jan-24
Slough Borough Council,2535,Comfort Care Services,M42F,AD People Strategy & Commissioning,Supplies and Services,"2,937.78",Jan-24
Slough Borough Council,2535,Comfort Care Services,M42F,AD People Strategy & Commissioning,Supplies and Services,"4,336.95",Jan-24
Slough Borough Council,2535,Comfort Care Services,M42F,AD People Strategy & Commissioning,Supplies and Services,"1,848.35",Jan-24
Slough Borough Council,2535,Comfort Care Services,M44C,AD Adult Social Care Operations,Supplies and Services,"3,357.48",Jan-24
Slough Borough Council,2535,Comfort Care Services,M44E,AD People Strategy & Commissioning,Supplies and Services,"5,176.29",Jan-24
Slough Borough Council,2535,Comfort Care Services,M44E,AD People Strategy & Commissioning,Supplies and Services,"2,080.59",Jan-24
Slough Borough Council,2535,Comfort Care Services,M44F,AD People Strategy & Commissioning,Supplies and Services,"1,165.82",Jan-24
Slough Borough Council,2535,Comfort Care Services,M44F,AD People Strategy & Commissioning,Supplies and Services,"2,937.87",Jan-24
Slough Borough Council,2535,Comfort Care Services,M44F,AD People Strategy & Commissioning,Supplies and Services,"3,310.93",Jan-24
Slough Borough Council,2535,Comfort Care Services,M44F,AD People Strategy & Commissioning,Supplies and Services,"2,937.87",Jan-24
Slough Borough Council,2535,Comfort Care Services,M44F,AD People Strategy & Commissioning,Supplies and Services,"1,468.87",Jan-24
Slough Borough Council,2535,Comfort Care Services,M44F,AD People Strategy & Commissioning,Supplies and Services,"3,870.62",Jan-24
Slough Borough Council,2535,Comfort Care Services,M44F,AD People Strategy & Commissioning,Supplies and Services,"2,937.78",Jan-24
Slough Borough Council,2535,Comfort Care Services,M44F,AD People Strategy & Commissioning,Supplies and Services,"2,937.87",Jan-24
Slough Borough Council,2535,Comfort Care Services,M44F,AD People Strategy & Commissioning,Supplies and Services,"1,468.94",Jan-24
Slough Borough Council,2535,Comfort Care Services,M44F,AD People Strategy & Commissioning,Supplies and Services,"2,191.64",Jan-24
Slough Borough Council,2535,Comfort Care Services,M81D,AD Adult Social Care Operations,Supplies and Services,"2,937.78",Jan-24
Slough Borough Council,804912,CommuniKate Ltd,M22D,AD Adult Social Care Operations,Supplies and Services,761.75,Jan-24
Slough Borough Council,804912,CommuniKate Ltd,M22D,AD Adult Social Care Operations,Supplies and Services,761.75,Jan-24
Slough Borough Council,804912,CommuniKate Ltd,M22D,AD Adult Social Care Operations,Supplies and Services,761.75,Jan-24
Slough Borough Council,804912,CommuniKate Ltd,M22D,AD Adult Social Care Operations,Supplies and Services,761.75,Jan-24
Slough Borough Council,804912,CommuniKate Ltd,M22D,AD Adult Social Care Operations,Supplies and Services,761.75,Jan-24
Slough Borough Council,804912,CommuniKate Ltd,M22D,AD Adult Social Care Operations,Supplies and Services,761.75,Jan-24
Slough Borough Council,3840,Community Housing And Therapy,M80F,AD People Strategy & Commissioning,Supplies and Services,"2,615.65",Jan-24
Slough Borough Council,809195,Compass Radio Cars Ltd,F123,AD Education & Inclusion,External Receipts,"1,620.00",Jan-24
Slough Borough Council,1772,Computershare Voucher Services,B348,AD HR,Supplies and Services,"1,459.00",Jan-24
Slough Borough Council,809051,Contract Options (West) Ltd,P209,Capital,Capital Charges,"3,352.54",Jan-24
Slough Borough Council,809051,Contract Options (West) Ltd,P209,Capital,Capital Charges,"1,676.27",Jan-24
Slough Borough Council,3290,Corporate Collections London Borough Of Hillingdon,M26E,AD Adult Social Care Operations,Supplies and Services,"1,632.40",Jan-24
Slough Borough Council,3290,Corporate Collections London Borough Of Hillingdon,M26E,AD Adult Social Care Operations,Supplies and Services,"1,632.40",Jan-24
Slough Borough Council,3290,Corporate Collections London Borough Of Hillingdon,M26E,AD Adult Social Care Operations,Supplies and Services,"1,632.40",Jan-24
Slough Borough Council,3290,Corporate Collections London Borough Of Hillingdon,M26E,AD Adult Social Care Operations,Supplies and Services,"1,632.40",Jan-24
Slough Borough Council,3290,Corporate Collections London Borough Of Hillingdon,M26E,AD Adult Social Care Operations,Supplies and Services,"1,632.40",Jan-24
Slough Borough Council,3290,Corporate Collections London Borough Of Hillingdon,M26E,AD Adult Social Care Operations,Supplies and Services,"1,632.40",Jan-24
Slough Borough Council,3290,Corporate Collections London Borough Of Hillingdon,M26E,AD Adult Social Care Operations,Supplies and Services,"1,632.40",Jan-24
Slough Borough Council,3290,Corporate Collections London Borough Of Hillingdon,M26E,AD Adult Social Care Operations,Supplies and Services,"1,632.40",Jan-24
Slough Borough Council,3290,Corporate Collections London Borough Of Hillingdon,M26E,AD Adult Social Care Operations,Supplies and Services,"1,632.40",Jan-24
Slough Borough Council,3290,Corporate Collections London Borough Of Hillingdon,M26E,AD Adult Social Care Operations,Supplies and Services,"1,632.40",Jan-24
Slough Borough Council,3290,Corporate Collections London Borough Of Hillingdon,M26E,AD Adult Social Care Operations,Supplies and Services,"1,632.40",Jan-24
Slough Borough Council,3290,Corporate Collections London Borough Of Hillingdon,M26E,AD Adult Social Care Operations,Supplies and Services,"1,632.40",Jan-24
Slough Borough Council,3290,Corporate Collections London Borough Of Hillingdon,M26E,AD Adult Social Care Operations,Supplies and Services,"1,632.40",Jan-24
Slough Borough Council,3290,Corporate Collections London Borough Of Hillingdon,M26E,AD Adult Social Care Operations,Supplies and Services,"1,632.40",Jan-24
Slough Borough Council,3290,Corporate Collections London Borough Of Hillingdon,M26E,AD Adult Social Care Operations,Supplies and Services,714.94,Jan-24
Slough Borough Council,3290,Corporate Collections London Borough Of Hillingdon,M26E,AD Adult Social Care Operations,Supplies and Services,"1,632.40",Jan-24
Slough Borough Council,3290,Corporate Collections London Borough Of Hillingdon,M26E,AD Adult Social Care Operations,Supplies and Services,"1,632.40",Jan-24
Slough Borough Council,3290,Corporate Collections London Borough Of Hillingdon,M26E,AD Adult Social Care Operations,Supplies and Services,"1,632.40",Jan-24
Slough Borough Council,3290,Corporate Collections London Borough Of Hillingdon,M26E,AD Adult Social Care Operations,Supplies and Services,"1,632.40",Jan-24
Slough Borough Council,3290,Corporate Collections London Borough Of Hillingdon,M26E,AD Adult Social Care Operations,Supplies and Services,"1,632.40",Jan-24
Slough Borough Council,3290,Corporate Collections London Borough Of Hillingdon,M26E,AD Adult Social Care Operations,Supplies and Services,"1,632.40",Jan-24
Slough Borough Council,3290,Corporate Collections London Borough Of Hillingdon,M26E,AD Adult Social Care Operations,Supplies and Services,"1,632.40",Jan-24
Slough Borough Council,3290,Corporate Collections London Borough Of Hillingdon,M26E,AD Adult Social Care Operations,Supplies and Services,"1,632.40",Jan-24
Slough Borough Council,3290,Corporate Collections London Borough Of Hillingdon,M26E,AD Adult Social Care Operations,Supplies and Services,"1,632.40",Jan-24
Slough Borough Council,3290,Corporate Collections London Borough Of Hillingdon,M26E,AD Adult Social Care Operations,Supplies and Services,"1,632.40",Jan-24
Slough Borough Council,3290,Corporate Collections London Borough Of Hillingdon,M26E,AD Adult Social Care Operations,Supplies and Services,"1,632.40",Jan-24
Slough Borough Council,3290,Corporate Collections London Borough Of Hillingdon,M26E,AD Adult Social Care Operations,Supplies and Services,"1,632.40",Jan-24
Slough Borough Council,805278,Countrystyle Recycling Ltd,D342,AD Place Operations,Supplies and Services,"2,499.00",Jan-24
Slough Borough Council,805278,Countrystyle Recycling Ltd,D342,AD Place Operations,Supplies and Services,"2,770.00",Jan-24
Slough Borough Council,805278,Countrystyle Recycling Ltd,D342,AD Place Operations,Supplies and Services,"5,369.80",Jan-24
Slough Borough Council,808737,COUNTY PRIVATE CLIENT LIMITED,H205,AD Housing,Supplies and Services,"43,036.00",Jan-24
Slough Borough Council,3670,Craegmoor Birches Grove Priory,M27F,AD Adult Social Care Operations,Supplies and Services,"4,072.08",Jan-24
Slough Borough Council,3670,Craegmoor Birches Grove Priory,M27F,AD Adult Social Care Operations,Supplies and Services,"2,122.92",Jan-24
Slough Borough Council,1638,Creative Support Ltd,A02F,AD Adult Social Care Operations,Supplies and Services,"4,847.82",Jan-24
Slough Borough Council,1638,Creative Support Ltd,A02F,AD Adult Social Care Operations,Supplies and Services,"32,756.61",Jan-24
Slough Borough Council,1638,Creative Support Ltd,A02F,AD Adult Social Care Operations,Supplies and Services,"4,851.04",Jan-24
Slough Borough Council,1638,Creative Support Ltd,A02L,AD Adult Social Care Operations,Supplies and Services,"1,452.08",Jan-24
Slough Borough Council,1638,Creative Support Ltd,A02L,AD Adult Social Care Operations,Supplies and Services,"1,587.16",Jan-24
Slough Borough Council,1638,Creative Support Ltd,A02L,AD Adult Social Care Operations,Supplies and Services,"1,181.93",Jan-24
Slough Borough Council,1638,Creative Support Ltd,M42E,AD People Strategy & Commissioning,Supplies and Services,899.10,Jan-24
Slough Borough Council,1638,Creative Support Ltd,M42E,AD People Strategy & Commissioning,Supplies and Services,899.10,Jan-24
Slough Borough Council,1638,Creative Support Ltd,M42E,AD People Strategy & Commissioning,Supplies and Services,899.10,Jan-24
Slough Borough Council,1638,Creative Support Ltd,M42E,AD People Strategy & Commissioning,Supplies and Services,899.10,Jan-24
Slough Borough Council,1638,Creative Support Ltd,M42E,AD People Strategy & Commissioning,Supplies and Services,899.10,Jan-24
Slough Borough Council,1638,Creative Support Ltd,M42E,AD People Strategy & Commissioning,Supplies and Services,"1,507.20",Jan-24
Slough Borough Council,1638,Creative Support Ltd,M44C,AD Adult Social Care Operations,Supplies and Services,-899.10,Jan-24
Slough Borough Council,1638,Creative Support Ltd,M44C,AD Adult Social Care Operations,Supplies and Services,899.10,Jan-24
Slough Borough Council,1638,Creative Support Ltd,M44E,AD People Strategy & Commissioning,Supplies and Services,"1,186.92",Jan-24
Slough Borough Council,806983,Critiqom,H020,AD Deputy Director Corporate & Strategic Finance,Supplies and Services,"2,790.01",Jan-24
Slough Borough Council,806983,Critiqom,H020,AD Deputy Director Corporate & Strategic Finance,Supplies and Services,632.70,Jan-24
Slough Borough Council,806983,Critiqom,H020,AD Deputy Director Corporate & Strategic Finance,Supplies and Services,"2,442.93",Jan-24
Slough Borough Council,806983,Critiqom,H020,AD Deputy Director Corporate & Strategic Finance,Supplies and Services,654.56,Jan-24
Slough Borough Council,806983,Critiqom,H020,AD Deputy Director Corporate & Strategic Finance,Supplies and Services,"3,143.71",Jan-24
Slough Borough Council,806983,Critiqom,H020,AD Deputy Director Corporate & Strategic Finance,Supplies and Services,577.38,Jan-24
Slough Borough Council,806983,Critiqom,H020,AD Deputy Director Corporate & Strategic Finance,Supplies and Services,"3,101.01",Jan-24
Slough Borough Council,806983,Critiqom,H020,AD Deputy Director Corporate & Strategic Finance,Supplies and Services,"1,481.78",Jan-24
Slough Borough Council,806983,Critiqom,H020,AD Deputy Director Corporate & Strategic Finance,Supplies and Services,564.56,Jan-24
Slough Borough Council,806983,Critiqom,H020,AD Deputy Director Corporate & Strategic Finance,Supplies and Services,"1,167.94",Jan-24
Slough Borough Council,806983,Critiqom,H020,AD Deputy Director Corporate & Strategic Finance,Supplies and Services,575.26,Jan-24
Slough Borough Council,806983,Critiqom,H020,AD Deputy Director Corporate & Strategic Finance,Supplies and Services,"4,204.52",Jan-24
Slough Borough Council,806983,Critiqom,H020,AD Deputy Director Corporate & Strategic Finance,Supplies and Services,614.15,Jan-24
Slough Borough Council,808853,Crown Hosting Data Centres Limited,B282,AD Chief Digital & Information Officer,Supplies and Services,"4,330.66",Jan-24
Slough Borough Council,808853,Crown Hosting Data Centres Limited,B282,AD Chief Digital & Information Officer,Supplies and Services,"6,759.81",Jan-24
Slough Borough Council,804319,Culturemix Arts Ltd,F253,AD Children & Families,Agency Staff,787.50,Jan-24
Slough Borough Council,2153,Cyclescheme Ltd,B347,AD HR,Supplies and Services,"1,000.00",Jan-24
Slough Borough Council,806900,CYXTERA TECHNOLOGY UK LIMITED,B282,AD Chief Digital & Information Officer,Supplies and Services,"15,577.27",Jan-24
Slough Borough Council,808657,Davinder Selby,H205,AD Housing,Supplies and Services,"-1,860.00",Jan-24
Slough Borough Council,808657,Davinder Selby,H205,AD Housing,Supplies and Services,"1,860.00",Jan-24
Slough Borough Council,809213,DAWSONGROUP ENVIRONMENTAL MUNICIPAL CIVIL LIMITED,D620,AD Place Operations,Transport,"2,107.45",Jan-24
Slough Borough Council,809213,DAWSONGROUP ENVIRONMENTAL MUNICIPAL CIVIL LIMITED,D620,AD Place Operations,Transport,"2,107.45",Jan-24
Slough Borough Council,809213,DAWSONGROUP ENVIRONMENTAL MUNICIPAL CIVIL LIMITED,D620,AD Place Operations,Transport,"2,107.45",Jan-24
Slough Borough Council,809213,DAWSONGROUP ENVIRONMENTAL MUNICIPAL CIVIL LIMITED,D620,AD Place Operations,Transport,"2,107.45",Jan-24
Slough Borough Council,809118,DAWSONGROUP VANS LIMITED,D610,AD Place Operations,Transport,527.07,Jan-24
Slough Borough Council,809118,DAWSONGROUP VANS LIMITED,D620,AD Place Operations,Transport,"5,142.13",Jan-24
Slough Borough Council,809118,DAWSONGROUP VANS LIMITED,D750,AD Place Operations,Transport,"16,301.50",Jan-24
Slough Borough Council,809118,DAWSONGROUP VANS LIMITED,D750,AD Place Operations,Transport,780.68,Jan-24
Slough Borough Council,809118,DAWSONGROUP VANS LIMITED,D880,AD Place Operations,Transport,"2,386.18",Jan-24
Slough Borough Council,808933,Denhan International Limited,H205,AD Housing,Supplies and Services,"8,795.00",Jan-24
Slough Borough Council,808933,Denhan International Limited,H205,AD Housing,Supplies and Services,"9,640.00",Jan-24
Slough Borough Council,808933,Denhan International Limited,H205,AD Housing,Supplies and Services,"7,825.00",Jan-24
Slough Borough Council,808933,Denhan International Limited,H205,AD Housing,Supplies and Services,"11,520.00",Jan-24
Slough Borough Council,806159,Devon Piatt-Panton,C322,AD Public Protection & Communities - Children Services,Supplies and Services,"2,000.00",Jan-24
Slough Borough Council,3554,Dimensions (Uk) Ltd,M42E,AD People Strategy & Commissioning,Supplies and Services,"6,750.26",Jan-24
Slough Borough Council,3554,Dimensions (Uk) Ltd,M42E,AD People Strategy & Commissioning,Supplies and Services,"8,417.31",Jan-24
Slough Borough Council,3554,Dimensions (Uk) Ltd,M42E,AD People Strategy & Commissioning,Supplies and Services,"8,643.92",Jan-24
Slough Borough Council,3554,Dimensions (Uk) Ltd,M42E,AD People Strategy & Commissioning,Supplies and Services,"7,494.56",Jan-24
Slough Borough Council,3554,Dimensions (Uk) Ltd,M42E,AD People Strategy & Commissioning,Supplies and Services,"8,988.19",Jan-24
Slough Borough Council,3554,Dimensions (Uk) Ltd,M42E,AD People Strategy & Commissioning,Supplies and Services,"8,644.16",Jan-24
Slough Borough Council,3554,Dimensions (Uk) Ltd,M42E,AD People Strategy & Commissioning,Supplies and Services,"7,099.23",Jan-24
Slough Borough Council,3554,Dimensions (Uk) Ltd,M42E,AD People Strategy & Commissioning,Supplies and Services,"7,232.42",Jan-24
Slough Borough Council,3554,Dimensions (Uk) Ltd,M42E,AD People Strategy & Commissioning,Supplies and Services,"9,045.94",Jan-24
Slough Borough Council,3554,Dimensions (Uk) Ltd,M42E,AD People Strategy & Commissioning,Supplies and Services,"7,072.55",Jan-24
Slough Borough Council,805483,Direct Tyre Managenent Ltd,D610,AD Place Operations,Transport,"3,088.15",Jan-24
Slough Borough Council,803306,Ditton Park Academy,E620,AD Children & Families,Supplies and Services,"36,125.00",Jan-24
Slough Borough Council,1457,Dr Norman Gordon,D320,Governance & Scruitiny / Law and Governance,Premises,"1,685.30",Jan-24
Slough Borough Council,854,Drayton Fencing,C001,AD Place Operations,Premises,"7,880.00",Jan-24
Slough Borough Council,808794,DREAMS HOTEL LTD,H205,AD Housing,Supplies and Services,"147,252.00",Jan-24
Slough Borough Council,808505,Dresgef Services Limited,F382,AD Children & Families,Supplies and Services,"3,377.25",Jan-24
Slough Borough Council,808723,E.ON Control Solutions,B060,AD Building Management,Premises,510.00,Jan-24
Slough Borough Council,808723,E.ON Control Solutions,B060,AD Building Management,Premises,510.00,Jan-24
Slough Borough Council,803177,Early Steps Preschool,F909,AD Children & Families,Supplies and Services,"3,362.85",Jan-24
Slough Borough Council,780,East Sussex County Council,P243,Capital,Capital Charges,"57,997.00",Jan-24
Slough Borough Council,804924,Econ Engineering Limited,D880,AD Place Operations,Transport,"9,052.00",Jan-24
Slough Borough Council,803301,Eden Girls School,E610,AD Children & Families,Supplies and Services,"9,708.33",Jan-24
Slough Borough Council,1299,Edf Energy,B668,AD Building Management,Premises,"137,780.39",Jan-24
Slough Borough Council,808885,Ekom Solutions,H205,AD Housing,Supplies and Services,"7,006.00",Jan-24
Slough Borough Council,808885,Ekom Solutions,H205,AD Housing,Supplies and Services,"6,975.00",Jan-24
Slough Borough Council,809108,EL Fitness,C032,AD Public Protection & Communities - Public Health,Supplies and Services,"2,160.00",Jan-24
Slough Borough Council,807001,Elegant Care Services Ltd,M42E,AD People Strategy & Commissioning,Supplies and Services,"5,987.42",Jan-24
Slough Borough Council,807001,Elegant Care Services Ltd,M42E,AD People Strategy & Commissioning,Supplies and Services,"10,185.71",Jan-24
Slough Borough Council,807001,Elegant Care Services Ltd,M42E,AD People Strategy & Commissioning,Supplies and Services,"6,217.71",Jan-24
Slough Borough Council,807001,Elegant Care Services Ltd,M44C,AD Adult Social Care Operations,Supplies and Services,"7,023.71",Jan-24
Slough Borough Council,806355,Elysium Healthcare,M26E,AD Adult Social Care Operations,Supplies and Services,668.36,Jan-24
Slough Borough Council,806355,Elysium Healthcare,M26E,AD Adult Social Care Operations,Supplies and Services,646.80,Jan-24
Slough Borough Council,806355,Elysium Healthcare,M26E,AD Adult Social Care Operations,Supplies and Services,"11,044.68",Jan-24
Slough Borough Council,806355,Elysium Healthcare,M26E,AD Adult Social Care Operations,Supplies and Services,"9,576.52",Jan-24
Slough Borough Council,806355,Elysium Healthcare,M26E,AD Adult Social Care Operations,Supplies and Services,646.80,Jan-24
Slough Borough Council,806355,Elysium Healthcare,M26E,AD Adult Social Care Operations,Supplies and Services,668.36,Jan-24
Slough Borough Council,806355,Elysium Healthcare,M26E,AD Adult Social Care Operations,Supplies and Services,646.80,Jan-24
Slough Borough Council,806355,Elysium Healthcare,M26E,AD Adult Social Care Operations,Supplies and Services,668.36,Jan-24
Slough Borough Council,806355,Elysium Healthcare,M26E,AD Adult Social Care Operations,Supplies and Services,668.36,Jan-24
Slough Borough Council,806355,Elysium Healthcare,M26E,AD Adult Social Care Operations,Supplies and Services,646.80,Jan-24
Slough Borough Council,3752,Endurance Health,A07R,AD Adult Social Care Operations,Supplies and Services,"2,097.22",Jan-24
Slough Borough Council,3752,Endurance Health,A07R,AD Adult Social Care Operations,Supplies and Services,744.22,Jan-24
Slough Borough Council,3752,Endurance Health,A07R,AD Adult Social Care Operations,Supplies and Services,939.87,Jan-24
Slough Borough Council,3752,Endurance Health,A07R,AD Adult Social Care Operations,Supplies and Services,"2,264.34",Jan-24
Slough Borough Council,3752,Endurance Health,M44C,AD Adult Social Care Operations,Supplies and Services,"1,259.37",Jan-24
Slough Borough Council,3752,Endurance Health,M44C,AD Adult Social Care Operations,Supplies and Services,"1,419.29",Jan-24
Slough Borough Council,3752,Endurance Health,M44C,AD Adult Social Care Operations,Supplies and Services,856.51,Jan-24
Slough Borough Council,3752,Endurance Health,M44C,AD Adult Social Care Operations,Supplies and Services,792.00,Jan-24
Slough Borough Council,3752,Endurance Health,M44C,AD Adult Social Care Operations,Supplies and Services,"1,358.28",Jan-24
Slough Borough Council,3752,Endurance Health,M44C,AD Adult Social Care Operations,Supplies and Services,"1,259.37",Jan-24
Slough Borough Council,3752,Endurance Health,M44C,AD Adult Social Care Operations,Supplies and Services,"1,485.42",Jan-24
Slough Borough Council,3752,Endurance Health,M44C,AD Adult Social Care Operations,Supplies and Services,"2,516.77",Jan-24
Slough Borough Council,3752,Endurance Health,M44C,AD Adult Social Care Operations,Supplies and Services,639.68,Jan-24
Slough Borough Council,3752,Endurance Health,M44C,AD Adult Social Care Operations,Supplies and Services,"1,119.44",Jan-24
Slough Borough Council,3752,Endurance Health,M44C,AD Adult Social Care Operations,Supplies and Services,"1,101.25",Jan-24
Slough Borough Council,3752,Endurance Health,M44C,AD Adult Social Care Operations,Supplies and Services,699.65,Jan-24
Slough Borough Council,3752,Endurance Health,M44C,AD Adult Social Care Operations,Supplies and Services,"1,959.02",Jan-24
Slough Borough Council,3752,Endurance Health,M44C,AD Adult Social Care Operations,Supplies and Services,672.60,Jan-24
Slough Borough Council,3752,Endurance Health,M44C,AD Adult Social Care Operations,Supplies and Services,"2,098.95",Jan-24
Slough Borough Council,3752,Endurance Health,M44C,AD Adult Social Care Operations,Supplies and Services,"1,119.44",Jan-24
Slough Borough Council,3752,Endurance Health,M44C,AD Adult Social Care Operations,Supplies and Services,"1,173.63",Jan-24
Slough Borough Council,3752,Endurance Health,M44C,AD Adult Social Care Operations,Supplies and Services,"1,399.30",Jan-24
Slough Borough Council,3752,Endurance Health,M44C,AD Adult Social Care Operations,Supplies and Services,588.12,Jan-24
Slough Borough Council,3752,Endurance Health,M44C,AD Adult Social Care Operations,Supplies and Services,"1,919.70",Jan-24
Slough Borough Council,3752,Endurance Health,M44C,AD Adult Social Care Operations,Supplies and Services,"1,244.38",Jan-24
Slough Borough Council,3752,Endurance Health,M44C,AD Adult Social Care Operations,Supplies and Services,"1,349.33",Jan-24
Slough Borough Council,3752,Endurance Health,M44C,AD Adult Social Care Operations,Supplies and Services,602.71,Jan-24
Slough Borough Council,3752,Endurance Health,M44C,AD Adult Social Care Operations,Supplies and Services,"1,326.68",Jan-24
Slough Borough Council,3752,Endurance Health,M44C,AD Adult Social Care Operations,Supplies and Services,696.32,Jan-24
Slough Borough Council,3752,Endurance Health,M44C,AD Adult Social Care Operations,Supplies and Services,899.55,Jan-24
Slough Borough Council,3752,Endurance Health,M44C,AD Adult Social Care Operations,Supplies and Services,"1,334.79",Jan-24
Slough Borough Council,3752,Endurance Health,M44C,AD Adult Social Care Operations,Supplies and Services,976.03,Jan-24
Slough Borough Council,3752,Endurance Health,M44D,AD Adult Social Care Operations,Supplies and Services,"1,244.28",Jan-24
Slough Borough Council,3752,Endurance Health,M44D,AD Adult Social Care Operations,Supplies and Services,"2,798.60",Jan-24
Slough Borough Council,3752,Endurance Health,M44D,AD Adult Social Care Operations,Supplies and Services,779.61,Jan-24
Slough Borough Council,3752,Endurance Health,M44D,AD Adult Social Care Operations,Supplies and Services,861.97,Jan-24
Slough Borough Council,3752,Endurance Health,M44D,AD Adult Social Care Operations,Supplies and Services,819.59,Jan-24
Slough Borough Council,3752,Endurance Health,M44D,AD Adult Social Care Operations,Supplies and Services,"1,924.09",Jan-24
Slough Borough Council,3752,Endurance Health,M44D,AD Adult Social Care Operations,Supplies and Services,838.71,Jan-24
Slough Borough Council,3752,Endurance Health,M44D,AD Adult Social Care Operations,Supplies and Services,"1,060.81",Jan-24
Slough Borough Council,3752,Endurance Health,M44F,AD People Strategy & Commissioning,Supplies and Services,929.04,Jan-24
Slough Borough Council,3752,Endurance Health,M44F,AD People Strategy & Commissioning,Supplies and Services,560.24,Jan-24
Slough Borough Council,3752,Endurance Health,M45C,AD Adult Social Care Operations,Supplies and Services,"3,279.70",Jan-24
Slough Borough Council,3752,Endurance Health,M45C,AD Adult Social Care Operations,Supplies and Services,"1,799.10",Jan-24
Slough Borough Council,3752,Endurance Health,M45C,AD Adult Social Care Operations,Supplies and Services,"1,799.10",Jan-24
Slough Borough Council,805423,Enriched Care,M44D,AD Adult Social Care Operations,Supplies and Services,"3,741.70",Jan-24
Slough Borough Council,805423,Enriched Care,M44F,AD People Strategy & Commissioning,Supplies and Services,"2,613.30",Jan-24
Slough Borough Council,805423,Enriched Care,M44F,AD People Strategy & Commissioning,Supplies and Services,"2,879.90",Jan-24
Slough Borough Council,805423,Enriched Care,M80F,AD People Strategy & Commissioning,Supplies and Services,"1,758.01",Jan-24
Slough Borough Council,807310,Enterprise Rent-A-Car UK Limited trading as Enterprise Flex-E-Rent,D620,AD Place Operations,Transport,"11,306.38",Jan-24
Slough Borough Council,807310,Enterprise Rent-A-Car UK Limited trading as Enterprise Flex-E-Rent,D750,AD Place Operations,Transport,"10,129.41",Jan-24
Slough Borough Council,807310,Enterprise Rent-A-Car UK Limited trading as Enterprise Flex-E-Rent,D880,AD Place Operations,Transport,"4,705.19",Jan-24
Slough Borough Council,2677,Eton House Residential Home,M25C,AD Adult Social Care Operations,Supplies and Services,"-2,464.29",Jan-24
Slough Borough Council,2677,Eton House Residential Home,M25C,AD Adult Social Care Operations,Supplies and Services,"4,764.29",Jan-24
Slough Borough Council,2677,Eton House Residential Home,M25C,AD Adult Social Care Operations,Supplies and Services,"5,092.86",Jan-24
Slough Borough Council,2677,Eton House Residential Home,M25D,AD Adult Social Care Operations,Supplies and Services,"2,993.21",Jan-24
Slough Borough Council,2677,Eton House Residential Home,M25D,AD Adult Social Care Operations,Supplies and Services,"3,199.64",Jan-24
Slough Borough Council,2677,Eton House Residential Home,M27C,AD Adult Social Care Operations,Supplies and Services,"4,764.29",Jan-24
Slough Borough Council,2677,Eton House Residential Home,M27C,AD Adult Social Care Operations,Supplies and Services,"6,214.29",Jan-24
Slough Borough Council,2677,Eton House Residential Home,M27C,AD Adult Social Care Operations,Supplies and Services,"3,293.57",Jan-24
Slough Borough Council,2677,Eton House Residential Home,M27C,AD Adult Social Care Operations,Supplies and Services,"2,485.71",Jan-24
Slough Borough Council,2677,Eton House Residential Home,M27C,AD Adult Social Care Operations,Supplies and Services,"6,642.86",Jan-24
Slough Borough Council,2677,Eton House Residential Home,M27C,AD Adult Social Care Operations,Supplies and Services,"3,520.71",Jan-24
Slough Borough Council,2677,Eton House Residential Home,M27C,AD Adult Social Care Operations,Supplies and Services,"5,092.86",Jan-24
Slough Borough Council,2677,Eton House Residential Home,M27C,AD Adult Social Care Operations,Supplies and Services,"2,657.14",Jan-24
Slough Borough Council,2677,Eton House Residential Home,M28C,AD Adult Social Care Operations,Supplies and Services,"2,132.14",Jan-24
Slough Borough Council,2677,Eton House Residential Home,M29C,AD Adult Social Care Operations,Supplies and Services,"6,112.15",Jan-24
Slough Borough Council,2677,Eton House Residential Home,M29C,AD Adult Social Care Operations,Supplies and Services,"8,812.86",Jan-24
Slough Borough Council,808745,Eton Lettings Limited,H205,AD Housing,Supplies and Services,"1,800.00",Jan-24
Slough Borough Council,808745,Eton Lettings Limited,H205,AD Housing,Supplies and Services,"1,860.00",Jan-24
Slough Borough Council,808344,Euro Housing UK LTD,H205,AD Housing,Supplies and Services,"57,505.00",Jan-24
Slough Borough Council,808344,Euro Housing UK LTD,H205,AD Housing,Supplies and Services,"17,185.00",Jan-24
Slough Borough Council,807198,everyLIFE. Technologies Ltd,A07R,AD Adult Social Care Operations,Supplies and Services,"1,445.85",Jan-24
Slough Borough Council,806501,Excellent Healthcare Services Ltd,A07R,AD Adult Social Care Operations,Supplies and Services,"1,302.03",Jan-24
Slough Borough Council,806501,Excellent Healthcare Services Ltd,M44C,AD Adult Social Care Operations,Supplies and Services,833.98,Jan-24
Slough Borough Council,806501,Excellent Healthcare Services Ltd,M44C,AD Adult Social Care Operations,Supplies and Services,574.43,Jan-24
Slough Borough Council,806501,Excellent Healthcare Services Ltd,M44C,AD Adult Social Care Operations,Supplies and Services,"2,280.68",Jan-24
Slough Borough Council,806501,Excellent Healthcare Services Ltd,M44C,AD Adult Social Care Operations,Supplies and Services,"1,072.26",Jan-24
Slough Borough Council,806501,Excellent Healthcare Services Ltd,M44C,AD Adult Social Care Operations,Supplies and Services,833.98,Jan-24
Slough Borough Council,806501,Excellent Healthcare Services Ltd,M44C,AD Adult Social Care Operations,Supplies and Services,"1,667.96",Jan-24
Slough Borough Council,806501,Excellent Healthcare Services Ltd,M44C,AD Adult Social Care Operations,Supplies and Services,"2,144.52",Jan-24
Slough Borough Council,806501,Excellent Healthcare Services Ltd,M44C,AD Adult Social Care Operations,Supplies and Services,"2,280.68",Jan-24
Slough Borough Council,806501,Excellent Healthcare Services Ltd,M44C,AD Adult Social Care Operations,Supplies and Services,"1,072.26",Jan-24
Slough Borough Council,806501,Excellent Healthcare Services Ltd,M44C,AD Adult Social Care Operations,Supplies and Services,833.98,Jan-24
Slough Borough Council,806501,Excellent Healthcare Services Ltd,M44C,AD Adult Social Care Operations,Supplies and Services,595.70,Jan-24
Slough Borough Council,806501,Excellent Healthcare Services Ltd,M44C,AD Adult Social Care Operations,Supplies and Services,842.49,Jan-24
Slough Borough Council,806501,Excellent Healthcare Services Ltd,M44C,AD Adult Social Care Operations,Supplies and Services,765.90,Jan-24
Slough Borough Council,806501,Excellent Healthcare Services Ltd,M44C,AD Adult Social Care Operations,Supplies and Services,765.90,Jan-24
Slough Borough Council,806501,Excellent Healthcare Services Ltd,M44C,AD Adult Social Care Operations,Supplies and Services,833.98,Jan-24
Slough Borough Council,806501,Excellent Healthcare Services Ltd,M44C,AD Adult Social Care Operations,Supplies and Services,"1,072.26",Jan-24
Slough Borough Council,806501,Excellent Healthcare Services Ltd,M44C,AD Adult Social Care Operations,Supplies and Services,510.60,Jan-24
Slough Borough Council,806501,Excellent Healthcare Services Ltd,M44C,AD Adult Social Care Operations,Supplies and Services,"1,072.26",Jan-24
Slough Borough Council,806501,Excellent Healthcare Services Ltd,M44C,AD Adult Social Care Operations,Supplies and Services,804.19,Jan-24
Slough Borough Council,806501,Excellent Healthcare Services Ltd,M44C,AD Adult Social Care Operations,Supplies and Services,799.94,Jan-24
Slough Borough Council,806501,Excellent Healthcare Services Ltd,M44C,AD Adult Social Care Operations,Supplies and Services,"1,670.80",Jan-24
Slough Borough Council,806501,Excellent Healthcare Services Ltd,M44C,AD Adult Social Care Operations,Supplies and Services,"2,144.52",Jan-24
Slough Borough Council,806501,Excellent Healthcare Services Ltd,M44C,AD Adult Social Care Operations,Supplies and Services,"2,280.68",Jan-24
Slough Borough Council,806501,Excellent Healthcare Services Ltd,M44C,AD Adult Social Care Operations,Supplies and Services,833.98,Jan-24
Slough Borough Council,806501,Excellent Healthcare Services Ltd,M44C,AD Adult Social Care Operations,Supplies and Services,"1,812.63",Jan-24
Slough Borough Council,806501,Excellent Healthcare Services Ltd,M44C,AD Adult Social Care Operations,Supplies and Services,595.70,Jan-24
Slough Borough Council,806501,Excellent Healthcare Services Ltd,M44C,AD Adult Social Care Operations,Supplies and Services,"2,144.52",Jan-24
Slough Borough Council,806501,Excellent Healthcare Services Ltd,M44C,AD Adult Social Care Operations,Supplies and Services,851.00,Jan-24
Slough Borough Council,806501,Excellent Healthcare Services Ltd,M44C,AD Adult Social Care Operations,Supplies and Services,595.70,Jan-24
Slough Borough Council,806501,Excellent Healthcare Services Ltd,M44C,AD Adult Social Care Operations,Supplies and Services,"2,416.84",Jan-24
Slough Borough Council,806501,Excellent Healthcare Services Ltd,M44C,AD Adult Social Care Operations,Supplies and Services,"1,072.26",Jan-24
Slough Borough Council,806501,Excellent Healthcare Services Ltd,M44C,AD Adult Social Care Operations,Supplies and Services,"1,055.24",Jan-24
Slough Borough Council,806501,Excellent Healthcare Services Ltd,M44D,AD Adult Social Care Operations,Supplies and Services,"2,144.52",Jan-24
Slough Borough Council,806501,Excellent Healthcare Services Ltd,M44D,AD Adult Social Care Operations,Supplies and Services,"2,144.52",Jan-24
Slough Borough Council,806501,Excellent Healthcare Services Ltd,M44F,AD People Strategy & Commissioning,Supplies and Services,919.08,Jan-24
Slough Borough Council,806501,Excellent Healthcare Services Ltd,M44F,AD People Strategy & Commissioning,Supplies and Services,"2,382.80",Jan-24
Slough Borough Council,806501,Excellent Healthcare Services Ltd,M44F,AD People Strategy & Commissioning,Supplies and Services,714.84,Jan-24
Slough Borough Council,806501,Excellent Healthcare Services Ltd,M44F,AD People Strategy & Commissioning,Supplies and Services,893.55,Jan-24
Slough Borough Council,806501,Excellent Healthcare Services Ltd,M44F,AD People Strategy & Commissioning,Supplies and Services,"2,382.80",Jan-24
Slough Borough Council,806501,Excellent Healthcare Services Ltd,M44F,AD People Strategy & Commissioning,Supplies and Services,714.84,Jan-24
Slough Borough Council,806501,Excellent Healthcare Services Ltd,M45C,AD Adult Social Care Operations,Supplies and Services,"1,667.96",Jan-24
Slough Borough Council,806501,Excellent Healthcare Services Ltd,M45C,AD Adult Social Care Operations,Supplies and Services,953.12,Jan-24
Slough Borough Council,806501,Excellent Healthcare Services Ltd,M45C,AD Adult Social Care Operations,Supplies and Services,833.98,Jan-24
Slough Borough Council,806501,Excellent Healthcare Services Ltd,M45C,AD Adult Social Care Operations,Supplies and Services,523.36,Jan-24
Slough Borough Council,806501,Excellent Healthcare Services Ltd,M45C,AD Adult Social Care Operations,Supplies and Services,833.98,Jan-24
Slough Borough Council,806501,Excellent Healthcare Services Ltd,M45C,AD Adult Social Care Operations,Supplies and Services,"1,072.26",Jan-24
Slough Borough Council,806501,Excellent Healthcare Services Ltd,M45C,AD Adult Social Care Operations,Supplies and Services,599.96,Jan-24
Slough Borough Council,806501,Excellent Healthcare Services Ltd,M48C,AD Adult Social Care Operations,Supplies and Services,689.31,Jan-24
Slough Borough Council,806501,Excellent Healthcare Services Ltd,M48C,AD Adult Social Care Operations,Supplies and Services,833.98,Jan-24
Slough Borough Council,808736,EXCLUSIVE HOUSING SOLUTION LIMITED,H205,AD Housing,Supplies and Services,"42,158.00",Jan-24
Slough Borough Council,805225,Falcon Surfacing Ltd,C001,AD Place Operations,Premises,"6,450.00",Jan-24
Slough Borough Council,805225,Falcon Surfacing Ltd,C001,AD Place Operations,Premises,"1,351.00",Jan-24
Slough Borough Council,805225,Falcon Surfacing Ltd,P243,Capital,Supplies and Services,"1,620.00",Jan-24
Slough Borough Council,805225,Falcon Surfacing Ltd,P243,Capital,Supplies and Services,"4,038.00",Jan-24
Slough Borough Council,805225,Falcon Surfacing Ltd,P243,Capital,Supplies and Services,"4,445.00",Jan-24
Slough Borough Council,805225,Falcon Surfacing Ltd,P243,Capital,Supplies and Services,"1,040.00",Jan-24
Slough Borough Council,805225,Falcon Surfacing Ltd,P243,Capital,Supplies and Services,"1,783.60",Jan-24
Slough Borough Council,805225,Falcon Surfacing Ltd,P243,Capital,Supplies and Services,"32,552.72",Jan-24
Slough Borough Council,805225,Falcon Surfacing Ltd,P243,Capital,Supplies and Services,"26,980.28",Jan-24
Slough Borough Council,805225,Falcon Surfacing Ltd,P243,Capital,Supplies and Services,"1,571.05",Jan-24
Slough Borough Council,805225,Falcon Surfacing Ltd,P243,Capital,Supplies and Services,"33,789.17",Jan-24
Slough Borough Council,805225,Falcon Surfacing Ltd,P243,Capital,Supplies and Services,"1,875.00",Jan-24
Slough Borough Council,805225,Falcon Surfacing Ltd,D750,AD Place Operations,Supplies and Services,638.00,Jan-24
Slough Borough Council,805225,Falcon Surfacing Ltd,D750,AD Place Operations,Supplies and Services,"1,898.40",Jan-24
Slough Borough Council,805225,Falcon Surfacing Ltd,D750,AD Place Operations,Supplies and Services,"1,100.00",Jan-24
Slough Borough Council,805225,Falcon Surfacing Ltd,D750,AD Place Operations,Supplies and Services,"1,575.00",Jan-24
Slough Borough Council,805225,Falcon Surfacing Ltd,P209,Capital,Capital Charges,"3,086.15",Jan-24
Slough Borough Council,805225,Falcon Surfacing Ltd,P209,Capital,Capital Charges,"10,856.35",Jan-24
Slough Borough Council,805225,Falcon Surfacing Ltd,P212,Capital,Capital Charges,"10,950.00",Jan-24
Slough Borough Council,805225,Falcon Surfacing Ltd,P244,Capital,Capital Charges,540.00,Jan-24
Slough Borough Council,805225,Falcon Surfacing Ltd,P579,Capital,Capital Charges,550.00,Jan-24
Slough Borough Council,805225,Falcon Surfacing Ltd,P579,Capital,Capital Charges,"6,300.00",Jan-24
Slough Borough Council,805225,Falcon Surfacing Ltd,P579,Capital,Capital Charges,"1,428.42",Jan-24
Slough Borough Council,805225,Falcon Surfacing Ltd,P579,Capital,Capital Charges,"1,390.83",Jan-24
Slough Borough Council,805225,Falcon Surfacing Ltd,P579,Capital,Capital Charges,"8,529.18",Jan-24
Slough Borough Council,805225,Falcon Surfacing Ltd,P579,Capital,Capital Charges,"1,575.00",Jan-24
Slough Borough Council,805225,Falcon Surfacing Ltd,P579,Capital,Capital Charges,"6,300.00",Jan-24
Slough Borough Council,805225,Falcon Surfacing Ltd,P579,Capital,Capital Charges,"3,150.00",Jan-24
Slough Borough Council,805225,Falcon Surfacing Ltd,P579,Capital,Capital Charges,"3,150.00",Jan-24
Slough Borough Council,805225,Falcon Surfacing Ltd,P579,Capital,Capital Charges,"4,257.58",Jan-24
Slough Borough Council,805225,Falcon Surfacing Ltd,P243,Capital,Capital Charges,"1,450.00",Jan-24
Slough Borough Council,641,Falon Nameplates Limited,D320,Governance & Scruitiny / Law and Governance,Supplies and Services,752.81,Jan-24
Slough Borough Council,754,First Steps Day Nursery,F909,AD Children & Families,Supplies and Services,"12,138.63",Jan-24
Slough Borough Council,1626,Five Star Radio Cars Limited,F123,AD Education & Inclusion,External Receipts,"1,425.00",Jan-24
Slough Borough Council,2460,Forest Bridge School Ltd,F417,AD Education & Inclusion,Supplies and Services,793.33,Jan-24
Slough Borough Council,2460,Forest Bridge School Ltd,F551,AD Children & Families,Supplies and Services,"11,077.86",Jan-24
Slough Borough Council,1204,Forget Me Not,M25C,AD Adult Social Care Operations,Supplies and Services,"4,800.00",Jan-24
Slough Borough Council,1204,Forget Me Not,M25C,AD Adult Social Care Operations,Supplies and Services,"3,400.00",Jan-24
Slough Borough Council,1204,Forget Me Not,M25C,AD Adult Social Care Operations,Supplies and Services,"3,800.00",Jan-24
Slough Borough Council,1204,Forget Me Not,M25D,AD Adult Social Care Operations,Supplies and Services,"3,600.00",Jan-24
Slough Borough Council,1204,Forget Me Not,M27C,AD Adult Social Care Operations,Supplies and Services,"3,199.76",Jan-24
Slough Borough Council,1204,Forget Me Not,M27C,AD Adult Social Care Operations,Supplies and Services,"3,800.00",Jan-24
Slough Borough Council,1204,Forget Me Not,M27C,AD Adult Social Care Operations,Supplies and Services,"4,000.00",Jan-24
Slough Borough Council,647,Foxborough Primary School,E620,AD Children & Families,Supplies and Services,"14,543.63",Jan-24
Slough Borough Council,807125,Futures For Shared Lives,M36E,AD People Strategy & Commissioning,Supplies and Services,"3,436.35",Jan-24
Slough Borough Council,1494,G4S Secure Solutions (Uk)Ltd,A04F,AD Adult Social Care Operations,Supplies and Services,852.10,Jan-24
Slough Borough Council,1555,Gallagher Bassett,B018,AD Deputy Director Corporate & Strategic Finance,Supplies and Services,"19,586.00",Jan-24
Slough Borough Council,1555,Gallagher Bassett,B018,AD Deputy Director Corporate & Strategic Finance,Supplies and Services,"24,390.00",Jan-24
Slough Borough Council,1758,Gas Advisory Services Limited,J606,AD Housing,Supplies and Services,840.00,Jan-24
Slough Borough Council,1758,Gas Advisory Services Limited,J606,AD Housing,Supplies and Services,840.00,Jan-24
Slough Borough Council,1758,Gas Advisory Services Limited,J606,AD Housing,Supplies and Services,840.00,Jan-24
Slough Borough Council,1758,Gas Advisory Services Limited,J606,AD Housing,Supplies and Services,"1,935.00",Jan-24
Slough Borough Council,1758,Gas Advisory Services Limited,J606,AD Housing,Supplies and Services,840.00,Jan-24
Slough Borough Council,809062,GCH (St Katharine's) Limited,M25C,AD Adult Social Care Operations,Supplies and Services,"4,871.43",Jan-24
Slough Borough Council,807052,Georgia Thompson,C322,AD Public Protection & Communities - Children Services,Supplies and Services,793.00,Jan-24
Slough Borough Council,807052,Georgia Thompson,C322,AD Public Protection & Communities - Children Services,Supplies and Services,"1,011.00",Jan-24
Slough Borough Council,808013,Get Active Sports,F382,AD Children & Families,Supplies and Services,"1,248.92",Jan-24
Slough Borough Council,808604,Glebe Primary School,F552,AD Children & Families,Supplies and Services,"6,666.66",Jan-24
Slough Borough Council,808604,Glebe Primary School,F552,AD Children & Families,Supplies and Services,"6,666.66",Jan-24
Slough Borough Council,2830,GR Response Healthcare Ltd,M44C,AD Adult Social Care Operations,Supplies and Services,"2,000.32",Jan-24
Slough Borough Council,2830,GR Response Healthcare Ltd,M44C,AD Adult Social Care Operations,Supplies and Services,"1,500.24",Jan-24
Slough Borough Council,2830,GR Response Healthcare Ltd,M44C,AD Adult Social Care Operations,Supplies and Services,"2,926.00",Jan-24
Slough Borough Council,2830,GR Response Healthcare Ltd,M44C,AD Adult Social Care Operations,Supplies and Services,"2,394.00",Jan-24
Slough Borough Council,2830,GR Response Healthcare Ltd,M44C,AD Adult Social Care Operations,Supplies and Services,"2,394.00",Jan-24
Slough Borough Council,2830,GR Response Healthcare Ltd,M44C,AD Adult Social Care Operations,Supplies and Services,"2,356.00",Jan-24
Slough Borough Council,2830,GR Response Healthcare Ltd,M44C,AD Adult Social Care Operations,Supplies and Services,"1,529.50",Jan-24
Slough Borough Council,2830,GR Response Healthcare Ltd,M44C,AD Adult Social Care Operations,Supplies and Services,"2,546.00",Jan-24
Slough Borough Council,2830,GR Response Healthcare Ltd,M44C,AD Adult Social Care Operations,Supplies and Services,"2,250.08",Jan-24
Slough Borough Council,2830,GR Response Healthcare Ltd,M44C,AD Adult Social Care Operations,Supplies and Services,"2,128.00",Jan-24
Slough Borough Council,2830,GR Response Healthcare Ltd,M44D,AD Adult Social Care Operations,Supplies and Services,"2,736.00",Jan-24
Slough Borough Council,2830,GR Response Healthcare Ltd,M44D,AD Adult Social Care Operations,Supplies and Services,848.24,Jan-24
Slough Borough Council,2830,GR Response Healthcare Ltd,M44D,AD Adult Social Care Operations,Supplies and Services,750.12,Jan-24
Slough Borough Council,2830,GR Response Healthcare Ltd,M44D,AD Adult Social Care Operations,Supplies and Services,"1,862.00",Jan-24
Slough Borough Council,2830,GR Response Healthcare Ltd,M44D,AD Adult Social Care Operations,Supplies and Services,698.25,Jan-24
Slough Borough Council,2830,GR Response Healthcare Ltd,M44D,AD Adult Social Care Operations,Supplies and Services,"2,432.00",Jan-24
Slough Borough Council,2830,GR Response Healthcare Ltd,M44D,AD Adult Social Care Operations,Supplies and Services,"1,374.70",Jan-24
Slough Borough Council,2830,GR Response Healthcare Ltd,M44D,AD Adult Social Care Operations,Supplies and Services,"1,634.00",Jan-24
Slough Borough Council,2830,GR Response Healthcare Ltd,M44D,AD Adult Social Care Operations,Supplies and Services,"2,250.08",Jan-24
Slough Borough Council,2830,GR Response Healthcare Ltd,M44E,AD People Strategy & Commissioning,Supplies and Services,532.00,Jan-24
Slough Borough Council,809197,Grays Essex Limited,F123,AD Education & Inclusion,External Receipts,"2,897.50",Jan-24
Slough Borough Council,809197,Grays Essex Limited,F123,AD Education & Inclusion,External Receipts,"9,410.00",Jan-24
Slough Borough Council,807255,Green Corridor,F558,AD Children & Families,Supplies and Services,"10,137.08",Jan-24
Slough Borough Council,804577,Green Monarch ZC2016 c/o Savills(UK) Limited,H205,AD Housing,Premises,"3,583.33",Jan-24
Slough Borough Council,804577,Green Monarch ZC2016 c/o Savills(UK) Limited,H205,AD Housing,Premises,"2,114.75",Jan-24
Slough Borough Council,808464,Greenstone Care,M44F,AD People Strategy & Commissioning,Supplies and Services,"1,529.00",Jan-24
Slough Borough Council,808464,Greenstone Care,M44F,AD People Strategy & Commissioning,Supplies and Services,"2,472.00",Jan-24
Slough Borough Council,808464,Greenstone Care,M51C,AD Adult Social Care Operations,Supplies and Services,"2,657.14",Jan-24
Slough Borough Council,808464,Greenstone Care,M51C,AD Adult Social Care Operations,Supplies and Services,"1,813.57",Jan-24
Slough Borough Council,808464,Greenstone Care,M51C,AD Adult Social Care Operations,Supplies and Services,918.43,Jan-24
Slough Borough Council,808464,Greenstone Care,M51C,AD Adult Social Care Operations,Supplies and Services,"1,079.00",Jan-24
Slough Borough Council,808464,Greenstone Care,M51C,AD Adult Social Care Operations,Supplies and Services,"1,653.00",Jan-24
Slough Borough Council,805069,Grove Academy,F253,AD Children & Families,Premises,750.00,Jan-24
Slough Borough Council,805069,Grove Academy,E610,AD Children & Families,Supplies and Services,"16,359.81",Jan-24
Slough Borough Council,805069,Grove Academy,F002,AD Public Protection & Communities - Public Health,Government Grants,"1,000.00",Jan-24
Slough Borough Council,804447,Grundon Waste Management Limited,D342,AD Place Operations,Supplies and Services,"396,790.09",Jan-24
Slough Borough Council,804447,Grundon Waste Management Limited,D342,AD Place Operations,Supplies and Services,"6,785.08",Jan-24
Slough Borough Council,804447,Grundon Waste Management Limited,D342,AD Place Operations,Supplies and Services,"2,479.00",Jan-24
Slough Borough Council,804447,Grundon Waste Management Limited,D342,AD Place Operations,Supplies and Services,"5,332.00",Jan-24
Slough Borough Council,807858,H J Newman,H253,AD Public Protection & Communities - Public Health,Supplies and Services,"1,835.00",Jan-24
Slough Borough Council,3228,H Plus Care Ltd,M25C,AD Adult Social Care Operations,Supplies and Services,"5,535.71",Jan-24
Slough Borough Council,3228,H Plus Care Ltd,M26E,AD Adult Social Care Operations,Supplies and Services,"5,314.29",Jan-24
Slough Borough Council,806681,Hako Machines Ltd,D620,AD Place Operations,Supplies and Services,597.42,Jan-24
Slough Borough Council,1610,Handicare Uk,P006,Capital,Capital Charges,"3,120.00",Jan-24
Slough Borough Council,804986,Havencare Ltd,M26E,AD Adult Social Care Operations,Supplies and Services,"1,356.27",Jan-24
Slough Borough Council,804986,Havencare Ltd,M26E,AD Adult Social Care Operations,Supplies and Services,"1,356.27",Jan-24
Slough Borough Council,804986,Havencare Ltd,M26E,AD Adult Social Care Operations,Supplies and Services,"1,356.27",Jan-24
Slough Borough Council,804986,Havencare Ltd,M26E,AD Adult Social Care Operations,Supplies and Services,"1,356.27",Jan-24
Slough Borough Council,804986,Havencare Ltd,M26E,AD Adult Social Care Operations,Supplies and Services,"1,356.27",Jan-24
Slough Borough Council,804986,Havencare Ltd,M26E,AD Adult Social Care Operations,Supplies and Services,"1,356.27",Jan-24
Slough Borough Council,804986,Havencare Ltd,M26E,AD Adult Social Care Operations,Supplies and Services,"1,356.27",Jan-24
Slough Borough Council,804986,Havencare Ltd,M26E,AD Adult Social Care Operations,Supplies and Services,"1,356.27",Jan-24
Slough Borough Council,809014,Havendale Ltd,H205,AD Housing,Supplies and Services,"6,596.00",Jan-24
Slough Borough Council,1381,Haybrook College,E610,AD Children & Families,Supplies and Services,"96,697.42",Jan-24
Slough Borough Council,3784,Haybrook College Pru,E610,AD Children & Families,Supplies and Services,"31,968.18",Jan-24
Slough Borough Council,803248,Haybrook College Trust,F123,AD Education & Inclusion,External Receipts,"49,320.00",Jan-24
Slough Borough Council,808639,Hazel Care Services Ltd,M42E,AD People Strategy & Commissioning,Supplies and Services,"2,234.17",Jan-24
Slough Borough Council,808639,Hazel Care Services Ltd,M42E,AD People Strategy & Commissioning,Supplies and Services,"6,693.60",Jan-24
Slough Borough Council,808639,Hazel Care Services Ltd,M42E,AD People Strategy & Commissioning,Supplies and Services,816.32,Jan-24
Slough Borough Council,808639,Hazel Care Services Ltd,M42E,AD People Strategy & Commissioning,Supplies and Services,"4,565.68",Jan-24
Slough Borough Council,808639,Hazel Care Services Ltd,M44F,AD People Strategy & Commissioning,Supplies and Services,"3,498.66",Jan-24
Slough Borough Council,803753,Healthcare Homes,M15D,AD Adult Social Care Operations,Supplies and Services,"5,314.29",Jan-24
Slough Borough Council,803753,Healthcare Homes,M15D,AD Adult Social Care Operations,Supplies and Services,"2,938.45",Jan-24
Slough Borough Council,803753,Healthcare Homes,M17C,AD Adult Social Care Operations,Supplies and Services,"5,212.43",Jan-24
Slough Borough Council,803753,Healthcare Homes,M17C,AD Adult Social Care Operations,Supplies and Services,"5,314.29",Jan-24
Slough Borough Council,803753,Healthcare Homes,M17C,AD Adult Social Care Operations,Supplies and Services,"5,314.29",Jan-24
Slough Borough Council,803753,Healthcare Homes,M17C,AD Adult Social Care Operations,Supplies and Services,"4,472.86",Jan-24
Slough Borough Council,803753,Healthcare Homes,M17C,AD Adult Social Care Operations,Supplies and Services,"2,813.78",Jan-24
Slough Borough Council,803753,Healthcare Homes,M17C,AD Adult Social Care Operations,Supplies and Services,"5,212.43",Jan-24
Slough Borough Council,803753,Healthcare Homes,M17C,AD Adult Social Care Operations,Supplies and Services,"5,314.29",Jan-24
Slough Borough Council,803753,Healthcare Homes,M17C,AD Adult Social Care Operations,Supplies and Services,"5,314.29",Jan-24
Slough Borough Council,803753,Healthcare Homes,M17C,AD Adult Social Care Operations,Supplies and Services,"5,142.86",Jan-24
Slough Borough Council,803753,Healthcare Homes,M17C,AD Adult Social Care Operations,Supplies and Services,"2,802.85",Jan-24
Slough Borough Council,803753,Healthcare Homes,M17C,AD Adult Social Care Operations,Supplies and Services,"5,314.29",Jan-24
Slough Borough Council,803753,Healthcare Homes,M17C,AD Adult Social Care Operations,Supplies and Services,"5,142.86",Jan-24
Slough Borough Council,803753,Healthcare Homes,M17C,AD Adult Social Care Operations,Supplies and Services,514.29,Jan-24
Slough Borough Council,803753,Healthcare Homes,M17C,AD Adult Social Care Operations,Supplies and Services,"1,027.71",Jan-24
Slough Borough Council,803753,Healthcare Homes,M17C,AD Adult Social Care Operations,Supplies and Services,"8,210.57",Jan-24
Slough Borough Council,803753,Healthcare Homes,M17C,AD Adult Social Care Operations,Supplies and Services,"2,896.28",Jan-24
Slough Borough Council,803753,Healthcare Homes,M18C,AD Adult Social Care Operations,Supplies and Services,"4,871.43",Jan-24
Slough Borough Council,803753,Healthcare Homes,M18C,AD Adult Social Care Operations,Supplies and Services,"5,212.43",Jan-24
Slough Borough Council,803753,Healthcare Homes,M18C,AD Adult Social Care Operations,Supplies and Services,"5,212.43",Jan-24
Slough Borough Council,803753,Healthcare Homes,M18C,AD Adult Social Care Operations,Supplies and Services,"5,212.43",Jan-24
Slough Borough Council,803753,Healthcare Homes,M18C,AD Adult Social Care Operations,Supplies and Services,"5,212.43",Jan-24
Slough Borough Council,803753,Healthcare Homes,M27C,AD Adult Social Care Operations,Supplies and Services,"3,224.00",Jan-24
Slough Borough Council,1686,Herald Chase,B660,AD Strategy,Supplies and Services,"2,285.17",Jan-24
Slough Borough Council,803447,Herewards House Residential Home,A03E,AD Adult Social Care Operations,Supplies and Services,"7,528.57",Jan-24
Slough Borough Council,803447,Herewards House Residential Home,A03E,AD Adult Social Care Operations,Supplies and Services,"7,528.57",Jan-24
Slough Borough Council,803447,Herewards House Residential Home,M25C,AD Adult Social Care Operations,Supplies and Services,"3,985.71",Jan-24
Slough Borough Council,803447,Herewards House Residential Home,M27C,AD Adult Social Care Operations,Supplies and Services,"2,878.57",Jan-24
Slough Borough Council,803447,Herewards House Residential Home,M27C,AD Adult Social Care Operations,Supplies and Services,"3,764.29",Jan-24
Slough Borough Council,803447,Herewards House Residential Home,M27C,AD Adult Social Care Operations,Supplies and Services,"3,985.71",Jan-24
Slough Borough Council,3387,Herschel Grammar School,E610,AD Children & Families,Supplies and Services,"3,750.00",Jan-24
Slough Borough Council,807998,Heywood's Catering,F382,AD Children & Families,Supplies and Services,"3,071.00",Jan-24
Slough Borough Council,809294,HGV Training Services Ltd t/a HGVC,D900,AD Place Operations,Indirect Employee Expenses,839.18,Jan-24
Slough Borough Council,809294,HGV Training Services Ltd t/a HGVC,D900,AD Place Operations,Indirect Employee Expenses,839.18,Jan-24
Slough Borough Council,809294,HGV Training Services Ltd t/a HGVC,D900,AD Place Operations,Indirect Employee Expenses,839.18,Jan-24
Slough Borough Council,809294,HGV Training Services Ltd t/a HGVC,D900,AD Place Operations,Indirect Employee Expenses,839.18,Jan-24
Slough Borough Council,809294,HGV Training Services Ltd t/a HGVC,D900,AD Place Operations,Indirect Employee Expenses,839.18,Jan-24
Slough Borough Council,809275,Hilltop House Limited,M28C,AD Adult Social Care Operations,Supplies and Services,"4,114.24",Jan-24
Slough Borough Council,809275,Hilltop House Limited,M28C,AD Adult Social Care Operations,Supplies and Services,"3,521.18",Jan-24
Slough Borough Council,809181,Hollyfield Management,H205,AD Housing,Supplies and Services,"6,825.00",Jan-24
Slough Borough Council,809181,Hollyfield Management,H205,AD Housing,Supplies and Services,"9,550.00",Jan-24
Slough Borough Council,850,Holy Family Catholic Primary School,E250,AD Children & Families,Supplies and Services,"196,639.26",Jan-24
Slough Borough Council,803249,Holyport College,F551,AD Children & Families,Supplies and Services,"7,500.00",Jan-24
Slough Borough Council,803249,Holyport College,F551,AD Children & Families,Supplies and Services,"20,000.00",Jan-24
Slough Borough Council,806632,HomeKleen UK - Housework,M51C,AD Adult Social Care Operations,Supplies and Services,541.67,Jan-24
Slough Borough Council,808676,Human Engine Limited,P244,Capital,Capital Charges,"3,700.00",Jan-24
Slough Borough Council,809315,HUNTMORE PROPERTY INVESTMENETS LIMITED,H205,AD Housing,Supplies and Services,"2,610.00",Jan-24
Slough Borough Council,808897,Imperial Breeze Healthcare South East Ltd,M42E,AD People Strategy & Commissioning,Supplies and Services,"5,192.50",Jan-24
Slough Borough Council,808897,Imperial Breeze Healthcare South East Ltd,M42E,AD People Strategy & Commissioning,Supplies and Services,"6,171.41",Jan-24
Slough Borough Council,808897,Imperial Breeze Healthcare South East Ltd,M42E,AD People Strategy & Commissioning,Supplies and Services,"4,447.22",Jan-24
Slough Borough Council,808897,Imperial Breeze Healthcare South East Ltd,M42E,AD People Strategy & Commissioning,Supplies and Services,869.50,Jan-24
Slough Borough Council,808897,Imperial Breeze Healthcare South East Ltd,M42E,AD People Strategy & Commissioning,Supplies and Services,"6,495.00",Jan-24
Slough Borough Council,808897,Imperial Breeze Healthcare South East Ltd,M42E,AD People Strategy & Commissioning,Supplies and Services,"1,610.00",Jan-24
Slough Borough Council,808897,Imperial Breeze Healthcare South East Ltd,M42E,AD People Strategy & Commissioning,Supplies and Services,"4,941.58",Jan-24
Slough Borough Council,808897,Imperial Breeze Healthcare South East Ltd,M42E,AD People Strategy & Commissioning,Supplies and Services,990.71,Jan-24
Slough Borough Council,808897,Imperial Breeze Healthcare South East Ltd,M42E,AD People Strategy & Commissioning,Supplies and Services,"6,857.12",Jan-24
Slough Borough Council,808897,Imperial Breeze Healthcare South East Ltd,M42E,AD People Strategy & Commissioning,Supplies and Services,"1,371.88",Jan-24
Slough Borough Council,3570,Independent Supported Living And Disabilities Ltd,M42E,AD People Strategy & Commissioning,Supplies and Services,"3,286.48",Jan-24
Slough Borough Council,3570,Independent Supported Living And Disabilities Ltd,M44D,AD Adult Social Care Operations,Supplies and Services,"3,257.24",Jan-24
Slough Borough Council,3570,Independent Supported Living And Disabilities Ltd,M44E,AD People Strategy & Commissioning,Supplies and Services,"1,540.80",Jan-24
Slough Borough Council,3570,Independent Supported Living And Disabilities Ltd,M44E,AD People Strategy & Commissioning,Supplies and Services,"1,050.00",Jan-24
Slough Borough Council,3570,Independent Supported Living And Disabilities Ltd,M44E,AD People Strategy & Commissioning,Supplies and Services,"3,819.92",Jan-24
Slough Borough Council,3570,Independent Supported Living And Disabilities Ltd,M44F,AD People Strategy & Commissioning,Supplies and Services,"2,790.56",Jan-24
Slough Borough Council,803651,Insight Direct (UK) Ltd,B342,AD Chief Digital & Information Officer,Supplies and Services,"77,138.70",Jan-24
Slough Borough Council,1185,Institute Of Licensing (Events) Ltd,D316,AD Public Protection & Communities - Public Health,Indirect Employee Expenses,"2,157.30",Jan-24
Slough Borough Council,3172,Intelligent Transport Services,P244,Capital,Capital Charges,"6,169.50",Jan-24
Slough Borough Council,3172,Intelligent Transport Services,P579,Capital,Capital Charges,"2,467.80",Jan-24
Slough Borough Council,807818,Intercity Technology Ltd,B282,AD Chief Digital & Information Officer,Supplies and Services,"29,451.70",Jan-24
Slough Borough Council,3500,Iqra Slough Islamic Primary School,E480,AD Children & Families,Supplies and Services,"70,700.80",Jan-24
Slough Borough Council,2919,Islamic Shakhsiyah Foundation,F909,AD Children & Families,Supplies and Services,"11,898.76",Jan-24
Slough Borough Council,807855,Isteni Property Holdings Ltd,H205,AD Housing,Supplies and Services,"18,450.00",Jan-24
Slough Borough Council,753,Jack In The Box Day Nursery,F909,AD Children & Families,Supplies and Services,"11,074.73",Jan-24
Slough Borough Council,733,James Elliman  School,E620,AD Children & Families,Supplies and Services,"37,030.78",Jan-24
Slough Borough Council,1970,James Elliman Academy,B194,AD Building Management,Premises,"1,745.37",Jan-24
Slough Borough Council,807308,JLA Total Care Ltd,H202,AD Housing,Supplies and Services,549.18,Jan-24
Slough Borough Council,807308,JLA Total Care Ltd,H202,AD Housing,Supplies and Services,549.18,Jan-24
Slough Borough Council,807308,JLA Total Care Ltd,H205,AD Housing,Supplies and Services,828.49,Jan-24
Slough Borough Council,807807,John Gobongitta,A02A,AD People Strategy & Commissioning,Supplies and Services,"1,000.00",Jan-24
Slough Borough Council,807807,John Gobongitta,A02A,AD People Strategy & Commissioning,Supplies and Services,"1,000.00",Jan-24
Slough Borough Council,807807,John Gobongitta,A02A,AD People Strategy & Commissioning,Supplies and Services,"1,000.00",Jan-24
Slough Borough Council,809063,KARELINK LTD,M18C,AD Adult Social Care Operations,Supplies and Services,"3,321.43",Jan-24
Slough Borough Council,809254,Kate Rowe,A07M,AD People Strategy & Commissioning,Supplies and Services,"1,500.00",Jan-24
Slough Borough Council,803815,Kathys Childcare,F909,AD Children & Families,Supplies and Services,"1,629.71",Jan-24
Slough Borough Council,2620,Kcare Nursing Agency Ltd,M44C,AD Adult Social Care Operations,Supplies and Services,"1,175.96",Jan-24
Slough Borough Council,2620,Kcare Nursing Agency Ltd,M44C,AD Adult Social Care Operations,Supplies and Services,956.69,Jan-24
Slough Borough Council,2620,Kcare Nursing Agency Ltd,M44C,AD Adult Social Care Operations,Supplies and Services,"1,216.95",Jan-24
Slough Borough Council,2620,Kcare Nursing Agency Ltd,M44C,AD Adult Social Care Operations,Supplies and Services,"1,244.71",Jan-24
Slough Borough Council,2620,Kcare Nursing Agency Ltd,M44D,AD Adult Social Care Operations,Supplies and Services,"1,654.63",Jan-24
Slough Borough Council,2620,Kcare Nursing Agency Ltd,M44D,AD Adult Social Care Operations,Supplies and Services,"1,631.78",Jan-24
Slough Borough Council,2620,Kcare Nursing Agency Ltd,M44D,AD Adult Social Care Operations,Supplies and Services,"2,215.06",Jan-24
Slough Borough Council,2620,Kcare Nursing Agency Ltd,M44D,AD Adult Social Care Operations,Supplies and Services,"1,652.70",Jan-24
Slough Borough Council,2620,Kcare Nursing Agency Ltd,M44F,AD People Strategy & Commissioning,Supplies and Services,931.93,Jan-24
Slough Borough Council,2620,Kcare Nursing Agency Ltd,M48C,AD Adult Social Care Operations,Supplies and Services,"4,000.00",Jan-24
Slough Borough Council,2620,Kcare Nursing Agency Ltd,M48C,AD Adult Social Care Operations,Supplies and Services,"1,078.82",Jan-24
Slough Borough Council,2620,Kcare Nursing Agency Ltd,M48C,AD Adult Social Care Operations,Supplies and Services,"4,000.00",Jan-24
Slough Borough Council,2620,Kcare Nursing Agency Ltd,M48C,AD Adult Social Care Operations,Supplies and Services,"1,014.13",Jan-24
Slough Borough Council,2620,Kcare Nursing Agency Ltd,M48C,AD Adult Social Care Operations,Supplies and Services,955.63,Jan-24
Slough Borough Council,2620,Kcare Nursing Agency Ltd,M48C,AD Adult Social Care Operations,Supplies and Services,"1,409.10",Jan-24
Slough Borough Council,804887,KCare Nursing Agency Ltd Supported House Living,M42F,AD People Strategy & Commissioning,Supplies and Services,"2,926.00",Jan-24
Slough Borough Council,804887,KCare Nursing Agency Ltd Supported House Living,M42F,AD People Strategy & Commissioning,Supplies and Services,"2,926.00",Jan-24
Slough Borough Council,804887,KCare Nursing Agency Ltd Supported House Living,M44F,AD People Strategy & Commissioning,Supplies and Services,"2,493.50",Jan-24
Slough Borough Council,804887,KCare Nursing Agency Ltd Supported House Living,M44F,AD People Strategy & Commissioning,Supplies and Services,"2,493.50",Jan-24
Slough Borough Council,663,Kent County Council,F462,AD Children & Families,Supplies and Services,"19,759.71",Jan-24
Slough Borough Council,663,Kent County Council,F462,AD Children & Families,Supplies and Services,"15,228.72",Jan-24
Slough Borough Council,808146,Kents Hill Care Home,M18C,AD Adult Social Care Operations,Supplies and Services,"3,788.57",Jan-24
Slough Borough Council,808146,Kents Hill Care Home,M18C,AD Adult Social Care Operations,Supplies and Services,"3,914.86",Jan-24
Slough Borough Council,807742,Khalsa Primary School,E620,AD Children & Families,Supplies and Services,"20,936.12",Jan-24
Slough Borough Council,803916,Kharis Solutions,M42E,AD People Strategy & Commissioning,Supplies and Services,"7,679.32",Jan-24
Slough Borough Council,803916,Kharis Solutions,M42E,AD People Strategy & Commissioning,Supplies and Services,"10,360.00",Jan-24
Slough Borough Council,803916,Kharis Solutions,M42E,AD People Strategy & Commissioning,Supplies and Services,"10,360.00",Jan-24
Slough Borough Council,803916,Kharis Solutions,M44C,AD Adult Social Care Operations,Supplies and Services,"1,891.22",Jan-24
Slough Borough Council,803916,Kharis Solutions,M44C,AD Adult Social Care Operations,Supplies and Services,"2,206.40",Jan-24
Slough Borough Council,803916,Kharis Solutions,M44D,AD Adult Social Care Operations,Supplies and Services,"1,716.12",Jan-24
Slough Borough Council,803916,Kharis Solutions,M45C,AD Adult Social Care Operations,Supplies and Services,"2,206.40",Jan-24
Slough Borough Council,803916,Kharis Solutions,M48C,AD Adult Social Care Operations,Supplies and Services,"2,276.44",Jan-24
Slough Borough Council,807911,Kidz Enterprise LTD,F382,AD Children & Families,Supplies and Services,763.80,Jan-24
Slough Borough Council,808609,Langhams Partnership LTD,H205,AD Housing,Supplies and Services,"43,875.00",Jan-24
Slough Borough Council,664,Langley Grammar School,E610,AD Children & Families,Supplies and Services,875.00,Jan-24
Slough Borough Council,1699,Langley Hall Primary Academy,E620,AD Children & Families,Supplies and Services,"4,750.00",Jan-24
Slough Borough Council,3001,Langley Haven Care Homes Ltd,M25C,AD Adult Social Care Operations,Supplies and Services,"4,430.12",Jan-24
Slough Borough Council,3001,Langley Haven Care Homes Ltd,M25C,AD Adult Social Care Operations,Supplies and Services,"4,430.12",Jan-24
Slough Borough Council,3001,Langley Haven Care Homes Ltd,M25C,AD Adult Social Care Operations,Supplies and Services,"4,898.40",Jan-24
Slough Borough Council,3001,Langley Haven Care Homes Ltd,M25D,AD Adult Social Care Operations,Supplies and Services,"4,430.12",Jan-24
Slough Borough Council,3001,Langley Haven Care Homes Ltd,M25D,AD Adult Social Care Operations,Supplies and Services,"4,430.12",Jan-24
Slough Borough Council,3001,Langley Haven Care Homes Ltd,M25D,AD Adult Social Care Operations,Supplies and Services,"4,430.12",Jan-24
Slough Borough Council,3001,Langley Haven Care Homes Ltd,M26D,AD Adult Social Care Operations,Supplies and Services,"4,430.12",Jan-24
Slough Borough Council,3001,Langley Haven Care Homes Ltd,M26E,AD Adult Social Care Operations,Supplies and Services,"4,571.84",Jan-24
Slough Borough Council,3001,Langley Haven Care Homes Ltd,M27C,AD Adult Social Care Operations,Supplies and Services,"4,430.12",Jan-24
Slough Borough Council,3001,Langley Haven Care Homes Ltd,M27C,AD Adult Social Care Operations,Supplies and Services,"4,430.12",Jan-24
Slough Borough Council,3001,Langley Haven Care Homes Ltd,M27C,AD Adult Social Care Operations,Supplies and Services,"4,430.12",Jan-24
Slough Borough Council,3001,Langley Haven Care Homes Ltd,M27C,AD Adult Social Care Operations,Supplies and Services,"4,430.12",Jan-24
Slough Borough Council,3001,Langley Haven Care Homes Ltd,M27C,AD Adult Social Care Operations,Supplies and Services,"4,430.12",Jan-24
Slough Borough Council,3001,Langley Haven Care Homes Ltd,M27C,AD Adult Social Care Operations,Supplies and Services,"4,430.12",Jan-24
Slough Borough Council,3001,Langley Haven Care Homes Ltd,M27C,AD Adult Social Care Operations,Supplies and Services,"4,430.12",Jan-24
Slough Borough Council,3001,Langley Haven Care Homes Ltd,M27F,AD Adult Social Care Operations,Supplies and Services,"4,430.12",Jan-24
Slough Borough Council,3001,Langley Haven Care Homes Ltd,M27F,AD Adult Social Care Operations,Supplies and Services,"4,898.40",Jan-24
Slough Borough Council,3001,Langley Haven Care Homes Ltd,M27F,AD Adult Social Care Operations,Supplies and Services,"4,430.12",Jan-24
Slough Borough Council,3001,Langley Haven Care Homes Ltd,M27F,AD Adult Social Care Operations,Supplies and Services,"4,430.12",Jan-24
Slough Borough Council,3001,Langley Haven Care Homes Ltd,M27F,AD Adult Social Care Operations,Supplies and Services,"4,430.12",Jan-24
Slough Borough Council,3001,Langley Haven Care Homes Ltd,M27F,AD Adult Social Care Operations,Supplies and Services,"2,313.13",Jan-24
Slough Borough Council,3001,Langley Haven Care Homes Ltd,M28C,AD Adult Social Care Operations,Supplies and Services,"2,429.42",Jan-24
Slough Borough Council,3001,Langley Haven Care Homes Ltd,M28C,AD Adult Social Care Operations,Supplies and Services,"1,143.26",Jan-24
Slough Borough Council,3001,Langley Haven Care Homes Ltd,M29C,AD Adult Social Care Operations,Supplies and Services,"1,714.89",Jan-24
Slough Borough Council,3001,Langley Haven Care Homes Ltd,M29C,AD Adult Social Care Operations,Supplies and Services,"4,430.12",Jan-24
Slough Borough Council,3001,Langley Haven Care Homes Ltd,M29C,AD Adult Social Care Operations,Supplies and Services,"2,000.70",Jan-24
Slough Borough Council,3001,Langley Haven Care Homes Ltd,M29C,AD Adult Social Care Operations,Supplies and Services,"4,430.12",Jan-24
Slough Borough Council,3001,Langley Haven Care Homes Ltd,M29C,AD Adult Social Care Operations,Supplies and Services,571.63,Jan-24
Slough Borough Council,3001,Langley Haven Care Homes Ltd,M29C,AD Adult Social Care Operations,Supplies and Services,"3,858.49",Jan-24
Slough Borough Council,3001,Langley Haven Care Homes Ltd,M29C,AD Adult Social Care Operations,Supplies and Services,"4,430.12",Jan-24
Slough Borough Council,3001,Langley Haven Care Homes Ltd,A06C,AD People Strategy & Commissioning,Supplies and Services,571.62,Jan-24
Slough Borough Council,3001,Langley Haven Care Homes Ltd,A06C,AD People Strategy & Commissioning,Supplies and Services,"3,715.59",Jan-24
Slough Borough Council,803686,Lascelles Park Nursery,F909,AD Children & Families,Supplies and Services,"1,254.19",Jan-24
Slough Borough Council,803686,Lascelles Park Nursery,F909,AD Children & Families,Supplies and Services,"6,604.72",Jan-24
Slough Borough Council,808423,Leo's Circus CIC,F382,AD Children & Families,Supplies and Services,"1,424.15",Jan-24
Slough Borough Council,808423,Leo's Circus CIC,C424,AD Public Protection & Communities - Public Health,Supplies and Services,"7,615.00",Jan-24
Slough Borough Council,808892,Letee Limited,H205,AD Housing,Supplies and Services,"6,750.00",Jan-24
Slough Borough Council,808892,Letee Limited,H205,AD Housing,Supplies and Services,840.00,Jan-24
Slough Borough Council,808892,Letee Limited,H205,AD Housing,Supplies and Services,"1,705.00",Jan-24
Slough Borough Council,808892,Letee Limited,H205,AD Housing,Supplies and Services,"1,705.00",Jan-24
Slough Borough Council,808892,Letee Limited,H205,AD Housing,Supplies and Services,"1,705.00",Jan-24
Slough Borough Council,808892,Letee Limited,H205,AD Housing,Supplies and Services,"2,015.00",Jan-24
Slough Borough Council,808892,Letee Limited,H205,AD Housing,Supplies and Services,"6,820.00",Jan-24
Slough Borough Council,808892,Letee Limited,H205,AD Housing,Supplies and Services,"1,235.00",Jan-24
Slough Borough Council,808892,Letee Limited,H205,AD Housing,Supplies and Services,"1,705.00",Jan-24
Slough Borough Council,808892,Letee Limited,H205,AD Housing,Supplies and Services,"1,395.00",Jan-24
Slough Borough Council,808892,Letee Limited,H205,AD Housing,Supplies and Services,"6,975.00",Jan-24
Slough Borough Council,808892,Letee Limited,H205,AD Housing,Supplies and Services,"1,550.00",Jan-24
Slough Borough Council,808892,Letee Limited,H218,AD Housing,Supplies and Services,"8,342.24",Jan-24
Slough Borough Council,3019,Lg Futures Limited,B015,AD Deputy Director Financial Management,Supplies and Services,"10,440.00",Jan-24
Slough Borough Council,301,Liberata Uk Limited,B048,AD Deputy Director Corporate & Strategic Finance,Supplies and Services,"7,983.10",Jan-24
Slough Borough Council,804692,Little Diamonds Pre School,F909,AD Children & Families,Supplies and Services,"17,000.00",Jan-24
Slough Borough Council,808192,Little Musketeers,F382,AD Children & Families,Supplies and Services,"1,688.40",Jan-24
Slough Borough Council,3791,Littledown Pru,E610,AD Children & Families,Supplies and Services,"17,100.00",Jan-24
Slough Borough Council,667,Littledown School,E610,AD Children & Families,Supplies and Services,"12,007.22",Jan-24
Slough Borough Council,809350,Livin Estates Ltd,H207,AD Housing,Supplies and Services,"1,900.00",Jan-24
Slough Borough Council,803959,Local Government Association,B204,AD Chief Executive,Premises,"1,111.80",Jan-24
Slough Borough Council,1328,London & Quadrant Housing Trust,H205,AD Housing,Premises,"57,554.16",Jan-24
Slough Borough Council,804544,London Borough of Harrow,M99C,AD Children & Families,Supplies and Services,"4,406.00",Jan-24
Slough Borough Council,804544,London Borough of Harrow,B096,Democratic Services,Indirect Employee Expenses,"126,837.98",Jan-24
Slough Borough Council,1282,Long Close School,F909,AD Children & Families,Supplies and Services,"1,089.37",Jan-24
Slough Borough Council,2302,Look Ahead Care And Support,M42F,AD People Strategy & Commissioning,Supplies and Services,"1,808.41",Jan-24
Slough Borough Council,2302,Look Ahead Care And Support,M42F,AD People Strategy & Commissioning,Supplies and Services,"19,764.75",Jan-24
Slough Borough Council,2302,Look Ahead Care And Support,M42F,AD People Strategy & Commissioning,Supplies and Services,"19,764.75",Jan-24
Slough Borough Council,2302,Look Ahead Care And Support,M44D,AD Adult Social Care Operations,Supplies and Services,"3,131.62",Jan-24
Slough Borough Council,2302,Look Ahead Care And Support,M44D,AD Adult Social Care Operations,Supplies and Services,"3,131.62",Jan-24
Slough Borough Council,2302,Look Ahead Care And Support,M44F,AD People Strategy & Commissioning,Supplies and Services,"1,567.71",Jan-24
Slough Borough Council,2302,Look Ahead Care And Support,M44F,AD People Strategy & Commissioning,Supplies and Services,"1,808.85",Jan-24
Slough Borough Council,2302,Look Ahead Care And Support,M44F,AD People Strategy & Commissioning,Supplies and Services,819.29,Jan-24
Slough Borough Council,2302,Look Ahead Care And Support,M44F,AD People Strategy & Commissioning,Supplies and Services,"3,131.62",Jan-24
Slough Borough Council,2302,Look Ahead Care And Support,M44F,AD People Strategy & Commissioning,Supplies and Services,"1,808.41",Jan-24
Slough Borough Council,2302,Look Ahead Care And Support,M44F,AD People Strategy & Commissioning,Supplies and Services,904.18,Jan-24
Slough Borough Council,2302,Look Ahead Care And Support,M44F,AD People Strategy & Commissioning,Supplies and Services,904.23,Jan-24
Slough Borough Council,2302,Look Ahead Care And Support,M44F,AD People Strategy & Commissioning,Supplies and Services,"1,567.71",Jan-24
Slough Borough Council,2302,Look Ahead Care And Support,M44F,AD People Strategy & Commissioning,Supplies and Services,"1,565.81",Jan-24
Slough Borough Council,2302,Look Ahead Care And Support,M44F,AD People Strategy & Commissioning,Supplies and Services,"1,567.71",Jan-24
Slough Borough Council,2302,Look Ahead Care And Support,M44F,AD People Strategy & Commissioning,Supplies and Services,"1,808.41",Jan-24
Slough Borough Council,2302,Look Ahead Care And Support,M44F,AD People Strategy & Commissioning,Supplies and Services,904.40,Jan-24
Slough Borough Council,2302,Look Ahead Care And Support,M44F,AD People Strategy & Commissioning,Supplies and Services,"1,565.81",Jan-24
Slough Borough Council,2302,Look Ahead Care And Support,M44F,AD People Strategy & Commissioning,Supplies and Services,"3,131.62",Jan-24
Slough Borough Council,2302,Look Ahead Care And Support,M44F,AD People Strategy & Commissioning,Supplies and Services,"1,565.81",Jan-24
Slough Borough Council,2302,Look Ahead Care And Support,M44F,AD People Strategy & Commissioning,Supplies and Services,"3,131.62",Jan-24
Slough Borough Council,2302,Look Ahead Care And Support,M44F,AD People Strategy & Commissioning,Supplies and Services,"3,131.62",Jan-24
Slough Borough Council,2302,Look Ahead Care And Support,H211,AD People Strategy & Commissioning,Supplies and Services,816.68,Jan-24
Slough Borough Council,2302,Look Ahead Care And Support,H211,AD People Strategy & Commissioning,Supplies and Services,"1,633.80",Jan-24
Slough Borough Council,2302,Look Ahead Care And Support,H211,AD People Strategy & Commissioning,Supplies and Services,"12,905.19",Jan-24
Slough Borough Council,2302,Look Ahead Care And Support,H211,AD People Strategy & Commissioning,Supplies and Services,"12,905.19",Jan-24
Slough Borough Council,2302,Look Ahead Care And Support,H211,AD People Strategy & Commissioning,Supplies and Services,816.68,Jan-24
Slough Borough Council,2302,Look Ahead Care And Support,H211,AD People Strategy & Commissioning,Supplies and Services,"1,633.80",Jan-24
Slough Borough Council,1195,Lynch Hill (Foundation Primary) School,E620,AD Children & Families,Supplies and Services,"34,521.75",Jan-24
Slough Borough Council,1771,Lynch Hill Academy,E620,AD Children & Families,Supplies and Services,"13,724.32",Jan-24
Slough Borough Council,3424,M D Homes,M15F,AD People Strategy & Commissioning,Supplies and Services,"5,115.00",Jan-24
Slough Borough Council,807217,Macadamia Support Limited,M42E,AD People Strategy & Commissioning,Supplies and Services,"7,308.00",Jan-24
Slough Borough Council,807217,Macadamia Support Limited,M42E,AD People Strategy & Commissioning,Supplies and Services,"6,931.20",Jan-24
Slough Borough Council,807217,Macadamia Support Limited,M42E,AD People Strategy & Commissioning,Supplies and Services,"11,756.52",Jan-24
Slough Borough Council,807217,Macadamia Support Limited,M42E,AD People Strategy & Commissioning,Supplies and Services,"3,973.20",Jan-24
Slough Borough Council,807217,Macadamia Support Limited,M42E,AD People Strategy & Commissioning,Supplies and Services,"9,373.00",Jan-24
Slough Borough Council,807217,Macadamia Support Limited,M42E,AD People Strategy & Commissioning,Supplies and Services,"6,438.84",Jan-24
Slough Borough Council,807217,Macadamia Support Limited,M42E,AD People Strategy & Commissioning,Supplies and Services,"6,005.20",Jan-24
Slough Borough Council,807217,Macadamia Support Limited,M42E,AD People Strategy & Commissioning,Supplies and Services,"7,308.00",Jan-24
Slough Borough Council,807217,Macadamia Support Limited,M42E,AD People Strategy & Commissioning,Supplies and Services,"3,589.12",Jan-24
Slough Borough Council,807217,Macadamia Support Limited,M42E,AD People Strategy & Commissioning,Supplies and Services,"6,931.20",Jan-24
Slough Borough Council,807217,Macadamia Support Limited,M42E,AD People Strategy & Commissioning,Supplies and Services,"11,756.52",Jan-24
Slough Borough Council,807217,Macadamia Support Limited,M42E,AD People Strategy & Commissioning,Supplies and Services,"3,973.20",Jan-24
Slough Borough Council,807217,Macadamia Support Limited,M42E,AD People Strategy & Commissioning,Supplies and Services,"9,373.00",Jan-24
Slough Borough Council,807217,Macadamia Support Limited,M42E,AD People Strategy & Commissioning,Supplies and Services,"3,589.12",Jan-24
Slough Borough Council,807217,Macadamia Support Limited,M42E,AD People Strategy & Commissioning,Supplies and Services,"6,438.84",Jan-24
Slough Borough Council,807217,Macadamia Support Limited,M42E,AD People Strategy & Commissioning,Supplies and Services,"6,005.20",Jan-24
Slough Borough Council,807217,Macadamia Support Limited,M44C,AD Adult Social Care Operations,Supplies and Services,"3,591.56",Jan-24
Slough Borough Council,807217,Macadamia Support Limited,M44C,AD Adult Social Care Operations,Supplies and Services,"3,591.56",Jan-24
Slough Borough Council,807217,Macadamia Support Limited,M44D,AD Adult Social Care Operations,Supplies and Services,"5,523.00",Jan-24
Slough Borough Council,807217,Macadamia Support Limited,M44D,AD Adult Social Care Operations,Supplies and Services,"5,523.00",Jan-24
Slough Borough Council,3768,Marish Academy Trust,B060,AD Building Management,Premises,"1,018.60",Jan-24
Slough Borough Council,3768,Marish Academy Trust,B668,AD Building Management,Premises,"5,545.60",Jan-24
Slough Borough Council,529,Marish Primary School,E620,AD Children & Families,Supplies and Services,"179,436.71",Jan-24
Slough Borough Council,2752,Martin Conway,H205,AD Housing,Supplies and Services,525.00,Jan-24
Slough Borough Council,2752,Martin Conway,H205,AD Housing,Supplies and Services,525.00,Jan-24
Slough Borough Council,2752,Martin Conway,H205,AD Housing,Supplies and Services,525.00,Jan-24
Slough Borough Council,1886,Matrix Scm,B023,AD Deputy Director Corporate & Strategic Finance,Agency Staff,"290,653.58",Jan-24
Slough Borough Council,1886,Matrix Scm,B023,AD Deputy Director Corporate & Strategic Finance,Agency Staff,"180,491.00",Jan-24
Slough Borough Council,1886,Matrix Scm,B023,AD Deputy Director Corporate & Strategic Finance,Agency Staff,"526,465.89",Jan-24
Slough Borough Council,1886,Matrix Scm,B023,AD Deputy Director Corporate & Strategic Finance,Agency Staff,"497,861.29",Jan-24
Slough Borough Council,1886,Matrix Scm,B023,AD Deputy Director Corporate & Strategic Finance,Agency Staff,"348,296.53",Jan-24
Slough Borough Council,1886,Matrix Scm,B023,AD Deputy Director Corporate & Strategic Finance,Agency Staff,"503,442.10",Jan-24
Slough Borough Council,807684,Maverick Care  Ltd T/A Christies Care Windsor & Maidenhead,A07R,AD Adult Social Care Operations,Supplies and Services,"1,159.00",Jan-24
Slough Borough Council,807684,Maverick Care  Ltd T/A Christies Care Windsor & Maidenhead,M44C,AD Adult Social Care Operations,Supplies and Services,"1,359.50",Jan-24
Slough Borough Council,807684,Maverick Care  Ltd T/A Christies Care Windsor & Maidenhead,M44C,AD Adult Social Care Operations,Supplies and Services,689.00,Jan-24
Slough Borough Council,807684,Maverick Care  Ltd T/A Christies Care Windsor & Maidenhead,M44C,AD Adult Social Care Operations,Supplies and Services,"1,392.00",Jan-24
Slough Borough Council,807684,Maverick Care  Ltd T/A Christies Care Windsor & Maidenhead,M44C,AD Adult Social Care Operations,Supplies and Services,"1,860.00",Jan-24
Slough Borough Council,807684,Maverick Care  Ltd T/A Christies Care Windsor & Maidenhead,M44C,AD Adult Social Care Operations,Supplies and Services,961.00,Jan-24
Slough Borough Council,807684,Maverick Care  Ltd T/A Christies Care Windsor & Maidenhead,M44C,AD Adult Social Care Operations,Supplies and Services,882.00,Jan-24
Slough Borough Council,807684,Maverick Care  Ltd T/A Christies Care Windsor & Maidenhead,M44D,AD Adult Social Care Operations,Supplies and Services,"4,533.75",Jan-24
Slough Borough Council,807684,Maverick Care  Ltd T/A Christies Care Windsor & Maidenhead,M45C,AD Adult Social Care Operations,Supplies and Services,"1,387.00",Jan-24
Slough Borough Council,809273,Max Card,F449,AD Education & Inclusion,Supplies and Services,750.00,Jan-24
Slough Borough Council,2237,Metts Ltd,M50A,AD Place Operations,Transport,"1,075.12",Jan-24
Slough Borough Council,809279,Middlesex Housing Ltd,H205,AD Housing,Supplies and Services,"2,775.00",Jan-24
Slough Borough Council,1496,Mighty Acorns Day Nursery Ltd,F909,AD Children & Families,Supplies and Services,"2,064.61",Jan-24
Slough Borough Council,1496,Mighty Acorns Day Nursery Ltd,F909,AD Children & Families,Supplies and Services,"11,535.62",Jan-24
Slough Borough Council,808716,Mini Todds Ltd,F909,AD Children & Families,Supplies and Services,623.00,Jan-24
Slough Borough Council,808716,Mini Todds Ltd,F909,AD Children & Families,Supplies and Services,"5,544.70",Jan-24
Slough Borough Council,808747,MK HOUSING LTD,H205,AD Housing,Supplies and Services,"28,734.00",Jan-24
Slough Borough Council,805121,MMCG (2) Limited,A03E,AD Adult Social Care Operations,Supplies and Services,"4,562.80",Jan-24
Slough Borough Council,805121,MMCG (2) Limited,M15D,AD Adult Social Care Operations,Supplies and Services,"3,699.54",Jan-24
Slough Borough Council,805121,MMCG (2) Limited,M15D,AD Adult Social Care Operations,Supplies and Services,"3,699.54",Jan-24
Slough Borough Council,805121,MMCG (2) Limited,M15D,AD Adult Social Care Operations,Supplies and Services,"3,699.54",Jan-24
Slough Borough Council,805121,MMCG (2) Limited,M15D,AD Adult Social Care Operations,Supplies and Services,"3,699.54",Jan-24
Slough Borough Council,805121,MMCG (2) Limited,M15D,AD Adult Social Care Operations,Supplies and Services,954.72,Jan-24
Slough Borough Council,805121,MMCG (2) Limited,M15D,AD Adult Social Care Operations,Supplies and Services,"1,790.10",Jan-24
Slough Borough Council,805121,MMCG (2) Limited,M15D,AD Adult Social Care Operations,Supplies and Services,716.04,Jan-24
Slough Borough Council,805121,MMCG (2) Limited,M15F,AD People Strategy & Commissioning,Supplies and Services,"3,699.54",Jan-24
Slough Borough Council,805121,MMCG (2) Limited,M15F,AD People Strategy & Commissioning,Supplies and Services,"3,699.54",Jan-24
Slough Borough Council,805121,MMCG (2) Limited,M17C,AD Adult Social Care Operations,Supplies and Services,"1,475.11",Jan-24
Slough Borough Council,805121,MMCG (2) Limited,M17C,AD Adult Social Care Operations,Supplies and Services,972.89,Jan-24
Slough Borough Council,805121,MMCG (2) Limited,M17C,AD Adult Social Care Operations,Supplies and Services,-972.89,Jan-24
Slough Borough Council,805121,MMCG (2) Limited,M17C,AD Adult Social Care Operations,Supplies and Services,"2,858.02",Jan-24
Slough Borough Council,805121,MMCG (2) Limited,M17C,AD Adult Social Care Operations,Supplies and Services,"2,765.83",Jan-24
Slough Borough Council,805121,MMCG (2) Limited,M17C,AD Adult Social Care Operations,Supplies and Services,"3,699.54",Jan-24
Slough Borough Council,805121,MMCG (2) Limited,M17C,AD Adult Social Care Operations,Supplies and Services,"3,699.54",Jan-24
Slough Borough Council,805121,MMCG (2) Limited,M17C,AD Adult Social Care Operations,Supplies and Services,"2,858.02",Jan-24
Slough Borough Council,805121,MMCG (2) Limited,M17C,AD Adult Social Care Operations,Supplies and Services,"3,699.54",Jan-24
Slough Borough Council,805121,MMCG (2) Limited,M17C,AD Adult Social Care Operations,Supplies and Services,"3,699.54",Jan-24
Slough Borough Council,805121,MMCG (2) Limited,M17C,AD Adult Social Care Operations,Supplies and Services,"2,858.02",Jan-24
Slough Borough Council,805121,MMCG (2) Limited,M18C,AD Adult Social Care Operations,Supplies and Services,"4,562.80",Jan-24
Slough Borough Council,805121,MMCG (2) Limited,M18C,AD Adult Social Care Operations,Supplies and Services,"3,699.54",Jan-24
Slough Borough Council,805121,MMCG (2) Limited,M18C,AD Adult Social Care Operations,Supplies and Services,"3,699.54",Jan-24
Slough Borough Council,805121,MMCG (2) Limited,M18C,AD Adult Social Care Operations,Supplies and Services,"3,699.54",Jan-24
Slough Borough Council,805121,MMCG (2) Limited,M18C,AD Adult Social Care Operations,Supplies and Services,"3,699.54",Jan-24
Slough Borough Council,805121,MMCG (2) Limited,M18C,AD Adult Social Care Operations,Supplies and Services,"4,562.80",Jan-24
Slough Borough Council,805121,MMCG (2) Limited,M18C,AD Adult Social Care Operations,Supplies and Services,"4,562.80",Jan-24
Slough Borough Council,805121,MMCG (2) Limited,M18C,AD Adult Social Care Operations,Supplies and Services,"3,699.54",Jan-24
Slough Borough Council,805121,MMCG (2) Limited,M18C,AD Adult Social Care Operations,Supplies and Services,"4,562.80",Jan-24
Slough Borough Council,805121,MMCG (2) Limited,M18C,AD Adult Social Care Operations,Supplies and Services,"3,699.54",Jan-24
Slough Borough Council,805121,MMCG (2) Limited,M18C,AD Adult Social Care Operations,Supplies and Services,"3,699.54",Jan-24
Slough Borough Council,805121,MMCG (2) Limited,M18C,AD Adult Social Care Operations,Supplies and Services,"1,074.06",Jan-24
Slough Borough Council,805121,MMCG (2) Limited,M18C,AD Adult Social Care Operations,Supplies and Services,"4,562.80",Jan-24
Slough Borough Council,805121,MMCG (2) Limited,M18C,AD Adult Social Care Operations,Supplies and Services,"4,562.80",Jan-24
Slough Borough Council,805121,MMCG (2) Limited,M18C,AD Adult Social Care Operations,Supplies and Services,"2,028.78",Jan-24
Slough Borough Council,805121,MMCG (2) Limited,M18C,AD Adult Social Care Operations,Supplies and Services,"3,699.54",Jan-24
Slough Borough Council,805121,MMCG (2) Limited,M25C,AD Adult Social Care Operations,Supplies and Services,"3,699.54",Jan-24
Slough Borough Council,805121,MMCG (2) Limited,M25C,AD Adult Social Care Operations,Supplies and Services,"3,699.54",Jan-24
Slough Borough Council,805121,MMCG (2) Limited,M25C,AD Adult Social Care Operations,Supplies and Services,"3,699.54",Jan-24
Slough Borough Council,805121,MMCG (2) Limited,M25C,AD Adult Social Care Operations,Supplies and Services,"1,551.42",Jan-24
Slough Borough Council,805121,MMCG (2) Limited,M25C,AD Adult Social Care Operations,Supplies and Services,"3,699.54",Jan-24
Slough Borough Council,805121,MMCG (2) Limited,M25C,AD Adult Social Care Operations,Supplies and Services,"3,699.54",Jan-24
Slough Borough Council,805121,MMCG (2) Limited,M25C,AD Adult Social Care Operations,Supplies and Services,"3,699.54",Jan-24
Slough Borough Council,805121,MMCG (2) Limited,M25C,AD Adult Social Care Operations,Supplies and Services,"3,699.54",Jan-24
Slough Borough Council,805121,MMCG (2) Limited,M25C,AD Adult Social Care Operations,Supplies and Services,"3,699.54",Jan-24
Slough Borough Council,805121,MMCG (2) Limited,M25C,AD Adult Social Care Operations,Supplies and Services,"3,699.54",Jan-24
Slough Borough Council,805121,MMCG (2) Limited,M27C,AD Adult Social Care Operations,Supplies and Services,"3,699.54",Jan-24
Slough Borough Council,805121,MMCG (2) Limited,M27C,AD Adult Social Care Operations,Supplies and Services,"3,699.54",Jan-24
Slough Borough Council,805121,MMCG (2) Limited,M27C,AD Adult Social Care Operations,Supplies and Services,"3,699.54",Jan-24
Slough Borough Council,805121,MMCG (2) Limited,M27C,AD Adult Social Care Operations,Supplies and Services,"3,699.54",Jan-24
Slough Borough Council,805121,MMCG (2) Limited,M27C,AD Adult Social Care Operations,Supplies and Services,"3,699.54",Jan-24
Slough Borough Council,805121,MMCG (2) Limited,M27C,AD Adult Social Care Operations,Supplies and Services,"3,699.54",Jan-24
Slough Borough Council,805121,MMCG (2) Limited,M27C,AD Adult Social Care Operations,Supplies and Services,"3,699.54",Jan-24
Slough Borough Council,805121,MMCG (2) Limited,M27C,AD Adult Social Care Operations,Supplies and Services,"3,699.54",Jan-24
Slough Borough Council,805121,MMCG (2) Limited,M27C,AD Adult Social Care Operations,Supplies and Services,"3,699.54",Jan-24
Slough Borough Council,805121,MMCG (2) Limited,M27C,AD Adult Social Care Operations,Supplies and Services,"3,699.54",Jan-24
Slough Borough Council,805121,MMCG (2) Limited,M27C,AD Adult Social Care Operations,Supplies and Services,"-1,950.75",Jan-24
Slough Borough Council,805121,MMCG (2) Limited,M27C,AD Adult Social Care Operations,Supplies and Services,688.50,Jan-24
Slough Borough Council,805121,MMCG (2) Limited,M28C,AD Adult Social Care Operations,Supplies and Services,"3,699.54",Jan-24
Slough Borough Council,805121,MMCG (2) Limited,M28C,AD Adult Social Care Operations,Supplies and Services,"1,193.40",Jan-24
Slough Borough Council,805121,MMCG (2) Limited,M28C,AD Adult Social Care Operations,Supplies and Services,835.38,Jan-24
Slough Borough Council,805121,MMCG (2) Limited,M29C,AD Adult Social Care Operations,Supplies and Services,"-1,262.25",Jan-24
Slough Borough Council,805121,MMCG (2) Limited,M29C,AD Adult Social Care Operations,Supplies and Services,"2,506.14",Jan-24
Slough Borough Council,805121,MMCG (2) Limited,A06C,AD People Strategy & Commissioning,Supplies and Services,"3,699.54",Jan-24
Slough Borough Council,2121,Mnk Estates (Uk) Ltd,M07E,AD People Strategy & Commissioning,Supplies and Services,"1,673.08",Jan-24
Slough Borough Council,1140,Montem Guesthouse,H205,AD Housing,Supplies and Services,"87,117.00",Jan-24
Slough Borough Council,3302,Montem Primary School,E620,AD Children & Families,Supplies and Services,"35,554.13",Jan-24
Slough Borough Council,809277,Move Estate Agent,H218,AD Housing,Supplies and Services,"13,142.24",Jan-24
Slough Borough Council,807432,MPD FM Limited,B068,AD Building Management,Premises,"10,544.34",Jan-24
Slough Borough Council,807432,MPD FM Limited,B071,AD Property,Supplies and Services,"2,319.35",Jan-24
Slough Borough Council,807432,MPD FM Limited,B071,AD Property,Supplies and Services,"1,444.74",Jan-24
Slough Borough Council,807432,MPD FM Limited,B071,AD Property,Supplies and Services,"1,456.68",Jan-24
Slough Borough Council,807432,MPD FM Limited,B071,AD Property,Supplies and Services,"1,886.52",Jan-24
Slough Borough Council,808526,Mr James Wright,C322,AD Public Protection & Communities - Children Services,Supplies and Services,500.00,Jan-24
Slough Borough Council,807501,Mrs Parvinder Kaur Bhandal,H205,AD Housing,Supplies and Services,"26,667.00",Jan-24
Slough Borough Council,806858,MUDDY BOOTS DAY NURSERY LTD,F909,AD Children & Families,Supplies and Services,"10,165.04",Jan-24
Slough Borough Council,805369,NAS Services Limited,M42E,AD People Strategy & Commissioning,Supplies and Services,"8,780.12",Jan-24
Slough Borough Council,809276,Nasir Ahmed T/A Calypso,H218,AD Housing,Supplies and Services,"11,032.76",Jan-24
Slough Borough Council,1074,Ncfe,F210,AD Public Protection & Communities - Children Services,Supplies and Services,815.00,Jan-24
Slough Borough Council,1945,Neem Tree Care Ltd,M17C,AD Adult Social Care Operations,Supplies and Services,"3,604.68",Jan-24
Slough Borough Council,1216,Network Rail Infrastructure Ltd,P212,Capital,Capital Charges,690.84,Jan-24
Slough Borough Council,1216,Network Rail Infrastructure Ltd,P212,Capital,Capital Charges,512.22,Jan-24
Slough Borough Council,1216,Network Rail Infrastructure Ltd,P212,Capital,Capital Charges,"1,109.88",Jan-24
Slough Borough Council,1216,Network Rail Infrastructure Ltd,P212,Capital,Capital Charges,938.55,Jan-24
Slough Borough Council,1216,Network Rail Infrastructure Ltd,P212,Capital,Capital Charges,"1,408.17",Jan-24
Slough Borough Council,808540,NHS Frimley ICB,A04C,AD Adult Social Care Operations,Supplies and Services,"26,662.50",Jan-24
Slough Borough Council,808540,NHS Frimley ICB,A01P,AD People Strategy & Commissioning,Supplies and Services,"10,090.00",Jan-24
Slough Borough Council,805330,Norden Farm Centre Trust Limited,B175,AD Building Management,External Receipts,675.00,Jan-24
Slough Borough Council,805330,Norden Farm Centre Trust Limited,B175,AD Building Management,External Receipts,540.00,Jan-24
Slough Borough Council,808729,North PB Ltd,B060,AD Building Management,Premises,"1,279.00",Jan-24
Slough Borough Council,3717,Norwood Schools Limited,M26E,AD Adult Social Care Operations,Supplies and Services,"4,243.52",Jan-24
Slough Borough Council,3717,Norwood Schools Limited,M26E,AD Adult Social Care Operations,Supplies and Services,"4,243.52",Jan-24
Slough Borough Council,3717,Norwood Schools Limited,M26E,AD Adult Social Care Operations,External Receipts,-630.80,Jan-24
Slough Borough Council,3717,Norwood Schools Limited,M26E,AD Adult Social Care Operations,External Receipts,-630.80,Jan-24
Slough Borough Council,803238,Oasis Care and Training Agency,M41D,AD Adult Social Care Operations,Supplies and Services,929.04,Jan-24
Slough Borough Council,803238,Oasis Care and Training Agency,M44C,AD Adult Social Care Operations,Supplies and Services,"1,061.76",Jan-24
Slough Borough Council,803238,Oasis Care and Training Agency,M44C,AD Adult Social Care Operations,Supplies and Services,796.32,Jan-24
Slough Borough Council,803238,Oasis Care and Training Agency,M44C,AD Adult Social Care Operations,Supplies and Services,"2,161.44",Jan-24
Slough Borough Council,803238,Oasis Care and Training Agency,M44C,AD Adult Social Care Operations,Supplies and Services,"1,270.32",Jan-24
Slough Borough Council,803238,Oasis Care and Training Agency,M44C,AD Adult Social Care Operations,Supplies and Services,"2,388.96",Jan-24
Slough Borough Council,803238,Oasis Care and Training Agency,M44C,AD Adult Social Care Operations,Supplies and Services,"1,270.32",Jan-24
Slough Borough Council,803238,Oasis Care and Training Agency,M44C,AD Adult Social Care Operations,Supplies and Services,796.32,Jan-24
Slough Borough Council,803238,Oasis Care and Training Agency,M44C,AD Adult Social Care Operations,Supplies and Services,"1,327.20",Jan-24
Slough Borough Council,803238,Oasis Care and Training Agency,M44C,AD Adult Social Care Operations,Supplies and Services,"2,957.76",Jan-24
Slough Borough Council,803238,Oasis Care and Training Agency,M44C,AD Adult Social Care Operations,Supplies and Services,796.32,Jan-24
Slough Borough Council,803238,Oasis Care and Training Agency,M44C,AD Adult Social Care Operations,Supplies and Services,862.68,Jan-24
Slough Borough Council,803238,Oasis Care and Training Agency,M44C,AD Adult Social Care Operations,Supplies and Services,966.96,Jan-24
Slough Borough Council,803238,Oasis Care and Training Agency,M44C,AD Adult Social Care Operations,Supplies and Services,630.42,Jan-24
Slough Borough Council,803238,Oasis Care and Training Agency,M44C,AD Adult Social Care Operations,Supplies and Services,"2,388.96",Jan-24
Slough Borough Council,803238,Oasis Care and Training Agency,M44C,AD Adult Social Care Operations,Supplies and Services,"1,194.48",Jan-24
Slough Borough Council,803238,Oasis Care and Training Agency,M44C,AD Adult Social Care Operations,Supplies and Services,929.04,Jan-24
Slough Borough Council,803238,Oasis Care and Training Agency,M44C,AD Adult Social Care Operations,Supplies and Services,663.60,Jan-24
Slough Borough Council,803238,Oasis Care and Training Agency,M44D,AD Adult Social Care Operations,Supplies and Services,711.00,Jan-24
Slough Borough Council,803238,Oasis Care and Training Agency,M44D,AD Adult Social Care Operations,Supplies and Services,919.56,Jan-24
Slough Borough Council,803238,Oasis Care and Training Agency,M44D,AD Adult Social Care Operations,Supplies and Services,"2,388.96",Jan-24
Slough Borough Council,803238,Oasis Care and Training Agency,M44D,AD Adult Social Care Operations,Supplies and Services,891.12,Jan-24
Slough Borough Council,803238,Oasis Care and Training Agency,M44D,AD Adult Social Care Operations,Supplies and Services,"1,459.92",Jan-24
Slough Borough Council,803238,Oasis Care and Training Agency,M44D,AD Adult Social Care Operations,Supplies and Services,765.79,Jan-24
Slough Borough Council,803238,Oasis Care and Training Agency,M44D,AD Adult Social Care Operations,Supplies and Services,995.40,Jan-24
Slough Borough Council,803238,Oasis Care and Training Agency,M44F,AD People Strategy & Commissioning,Supplies and Services,"2,388.96",Jan-24
Slough Borough Council,803238,Oasis Care and Training Agency,M44F,AD People Strategy & Commissioning,Supplies and Services,"1,516.80",Jan-24
Slough Borough Council,803238,Oasis Care and Training Agency,M45C,AD Adult Social Care Operations,Supplies and Services,663.60,Jan-24
Slough Borough Council,803238,Oasis Care and Training Agency,M48C,AD Adult Social Care Operations,Supplies and Services,"3,185.28",Jan-24
Slough Borough Council,803238,Oasis Care and Training Agency,M48C,AD Adult Social Care Operations,Supplies and Services,"3,185.28",Jan-24
Slough Borough Council,1767,Olive Tree Montessori Ltd,F909,AD Children & Families,Supplies and Services,"17,158.32",Jan-24
Slough Borough Council,1767,Olive Tree Montessori Ltd,F909,AD Children & Families,Supplies and Services,"1,524.34",Jan-24
Slough Borough Council,3603,Olympia Transport Limited,F123,AD Education & Inclusion,External Receipts,"11,766.80",Jan-24
Slough Borough Council,804687,Optalis Limited,M42E,AD People Strategy & Commissioning,Supplies and Services,"4,807.26",Jan-24
Slough Borough Council,804687,Optalis Limited,M42E,AD People Strategy & Commissioning,Supplies and Services,"5,642.13",Jan-24
Slough Borough Council,804687,Optalis Limited,M42E,AD People Strategy & Commissioning,Supplies and Services,"5,642.13",Jan-24
Slough Borough Council,804687,Optalis Limited,M42E,AD People Strategy & Commissioning,Supplies and Services,"4,807.26",Jan-24
Slough Borough Council,804687,Optalis Limited,M42E,AD People Strategy & Commissioning,Supplies and Services,"4,807.26",Jan-24
Slough Borough Council,804687,Optalis Limited,M42E,AD People Strategy & Commissioning,Supplies and Services,"5,642.13",Jan-24
Slough Borough Council,803490,Optimum Specialised Home Limited,M26E,AD Adult Social Care Operations,Supplies and Services,"8,400.00",Jan-24
Slough Borough Council,803490,Optimum Specialised Home Limited,M26E,AD Adult Social Care Operations,Supplies and Services,"7,180.00",Jan-24
Slough Borough Council,803490,Optimum Specialised Home Limited,M26E,AD Adult Social Care Operations,Supplies and Services,"7,200.00",Jan-24
Slough Borough Council,803490,Optimum Specialised Home Limited,M26E,AD Adult Social Care Operations,Supplies and Services,"8,400.00",Jan-24
Slough Borough Council,803490,Optimum Specialised Home Limited,M26E,AD Adult Social Care Operations,Supplies and Services,"7,200.00",Jan-24
Slough Borough Council,803490,Optimum Specialised Home Limited,M26E,AD Adult Social Care Operations,Supplies and Services,"7,180.00",Jan-24
Slough Borough Council,1629,Opus Energy Limited,B668,AD Building Management,Premises,"4,959.15",Jan-24
Slough Borough Council,805011,Osborne Property Services Limited,J607,AD Housing,Premises,"190,690.98",Jan-24
Slough Borough Council,805011,Osborne Property Services Limited,J607,AD Housing,Premises,"5,709.11",Jan-24
Slough Borough Council,805011,Osborne Property Services Limited,J015,AD Housing,Premises,"79,396.72",Jan-24
Slough Borough Council,805011,Osborne Property Services Limited,J015,AD Housing,Premises,"51,837.70",Jan-24
Slough Borough Council,805011,Osborne Property Services Limited,J015,AD Housing,Premises,"24,113.36",Jan-24
Slough Borough Council,805011,Osborne Property Services Limited,J607,AD Housing,Supplies and Services,"29,042.00",Jan-24
Slough Borough Council,805011,Osborne Property Services Limited,P409,Capital,Capital Charges,"26,648.65",Jan-24
Slough Borough Council,805011,Osborne Property Services Limited,P412,Capital,Capital Charges,"98,855.99",Jan-24
Slough Borough Council,805011,Osborne Property Services Limited,P413,Capital,Capital Charges,"66,091.61",Jan-24
Slough Borough Council,805011,Osborne Property Services Limited,P413,Capital,Capital Charges,"1,278.82",Jan-24
Slough Borough Council,805011,Osborne Property Services Limited,P413,Capital,Capital Charges,"51,824.18",Jan-24
Slough Borough Council,805011,Osborne Property Services Limited,P415,Capital,Capital Charges,"22,312.89",Jan-24
Slough Borough Council,805011,Osborne Property Services Limited,P417,Capital,Capital Charges,"235,268.90",Jan-24
Slough Borough Council,805011,Osborne Property Services Limited,P419,Capital,Capital Charges,"90,041.60",Jan-24
Slough Borough Council,805011,Osborne Property Services Limited,P419,Capital,Capital Charges,"146,094.04",Jan-24
Slough Borough Council,805011,Osborne Property Services Limited,P422,Capital,Capital Charges,"39,632.51",Jan-24
Slough Borough Council,805011,Osborne Property Services Limited,P422,Capital,Capital Charges,"65,702.15",Jan-24
Slough Borough Council,805011,Osborne Property Services Limited,P431,Capital,Capital Charges,"126,553.73",Jan-24
Slough Borough Council,805011,Osborne Property Services Limited,P431,Capital,Capital Charges,"-289,842.22",Jan-24
Slough Borough Council,805011,Osborne Property Services Limited,P431,Capital,Capital Charges,528.90,Jan-24
Slough Borough Council,805011,Osborne Property Services Limited,P433,Capital,Capital Charges,"3,130.94",Jan-24
Slough Borough Council,805011,Osborne Property Services Limited,J607,AD Housing,Supplies and Services,"85,770.47",Jan-24
Slough Borough Council,805011,Osborne Property Services Limited,J607,AD Housing,Supplies and Services,"127,666.31",Jan-24
Slough Borough Council,805011,Osborne Property Services Limited,J607,AD Housing,Supplies and Services,"94,809.53",Jan-24
Slough Borough Council,805011,Osborne Property Services Limited,J606,AD Housing,Supplies and Services,"176,066.41",Jan-24
Slough Borough Council,805011,Osborne Property Services Limited,J606,AD Housing,Supplies and Services,"276,261.60",Jan-24
Slough Borough Council,805011,Osborne Property Services Limited,J606,AD Housing,Supplies and Services,"276,261.60",Jan-24
Slough Borough Council,680,Oxford House Community Care,M44C,AD Adult Social Care Operations,Supplies and Services,"1,463.99",Jan-24
Slough Borough Council,680,Oxford House Community Care,M44C,AD Adult Social Care Operations,Supplies and Services,749.76,Jan-24
Slough Borough Council,680,Oxford House Community Care,M44C,AD Adult Social Care Operations,Supplies and Services,683.20,Jan-24
Slough Borough Council,680,Oxford House Community Care,M44C,AD Adult Social Care Operations,Supplies and Services,844.33,Jan-24
Slough Borough Council,680,Oxford House Community Care,M44C,AD Adult Social Care Operations,Supplies and Services,"1,366.80",Jan-24
Slough Borough Council,680,Oxford House Community Care,M44C,AD Adult Social Care Operations,Supplies and Services,"1,146.95",Jan-24
Slough Borough Council,680,Oxford House Community Care,M44C,AD Adult Social Care Operations,Supplies and Services,"2,612.79",Jan-24
Slough Borough Council,680,Oxford House Community Care,M44C,AD Adult Social Care Operations,Supplies and Services,"3,493.95",Jan-24
Slough Borough Council,680,Oxford House Community Care,M44C,AD Adult Social Care Operations,Supplies and Services,"1,248.28",Jan-24
Slough Borough Council,680,Oxford House Community Care,M44C,AD Adult Social Care Operations,Supplies and Services,"1,450.83",Jan-24
Slough Borough Council,680,Oxford House Community Care,M44C,AD Adult Social Care Operations,Supplies and Services,"2,891.58",Jan-24
Slough Borough Council,680,Oxford House Community Care,M44C,AD Adult Social Care Operations,Supplies and Services,"1,271.56",Jan-24
Slough Borough Council,680,Oxford House Community Care,M44C,AD Adult Social Care Operations,Supplies and Services,"1,305.97",Jan-24
Slough Borough Council,680,Oxford House Community Care,M44C,AD Adult Social Care Operations,Supplies and Services,686.32,Jan-24
Slough Borough Council,680,Oxford House Community Care,M44D,AD Adult Social Care Operations,Supplies and Services,814.44,Jan-24
Slough Borough Council,680,Oxford House Community Care,M44D,AD Adult Social Care Operations,Supplies and Services,826.22,Jan-24
Slough Borough Council,680,Oxford House Community Care,M44D,AD Adult Social Care Operations,Supplies and Services,"1,183.90",Jan-24
Slough Borough Council,680,Oxford House Community Care,M44D,AD Adult Social Care Operations,Supplies and Services,"2,615.65",Jan-24
Slough Borough Council,680,Oxford House Community Care,M44E,AD People Strategy & Commissioning,Supplies and Services,553.40,Jan-24
Slough Borough Council,680,Oxford House Community Care,M44F,AD People Strategy & Commissioning,Supplies and Services,544.36,Jan-24
Slough Borough Council,680,Oxford House Community Care,M48C,AD Adult Social Care Operations,Supplies and Services,911.23,Jan-24
Slough Borough Council,680,Oxford House Community Care,M48C,AD Adult Social Care Operations,Supplies and Services,895.74,Jan-24
Slough Borough Council,518,Oxford House Nursing Home,M15D,AD Adult Social Care Operations,Supplies and Services,"3,462.28",Jan-24
Slough Borough Council,518,Oxford House Nursing Home,M15D,AD Adult Social Care Operations,Supplies and Services,"3,462.28",Jan-24
Slough Borough Council,518,Oxford House Nursing Home,M15D,AD Adult Social Care Operations,Supplies and Services,"4,400.00",Jan-24
Slough Borough Council,518,Oxford House Nursing Home,M18C,AD Adult Social Care Operations,Supplies and Services,"5,400.00",Jan-24
Slough Borough Council,518,Oxford House Nursing Home,M18C,AD Adult Social Care Operations,Supplies and Services,"5,600.00",Jan-24
Slough Borough Council,518,Oxford House Nursing Home,M18C,AD Adult Social Care Operations,Supplies and Services,"3,462.28",Jan-24
Slough Borough Council,807442,Pantheon Care Ltd,M44F,AD People Strategy & Commissioning,Supplies and Services,"1,600.00",Jan-24
Slough Borough Council,807442,Pantheon Care Ltd,M44F,AD People Strategy & Commissioning,Supplies and Services,"1,700.00",Jan-24
Slough Borough Council,807442,Pantheon Care Ltd,M44F,AD People Strategy & Commissioning,Supplies and Services,"1,700.00",Jan-24
Slough Borough Council,807442,Pantheon Care Ltd,M44F,AD People Strategy & Commissioning,Supplies and Services,"1,700.00",Jan-24
Slough Borough Council,807442,Pantheon Care Ltd,M44F,AD People Strategy & Commissioning,Supplies and Services,"1,600.00",Jan-24
Slough Borough Council,807442,Pantheon Care Ltd,M44F,AD People Strategy & Commissioning,Supplies and Services,"1,600.00",Jan-24
Slough Borough Council,804365,Paritor Ltd,F253,AD Children & Families,Supplies and Services,"2,016.75",Jan-24
Slough Borough Council,2461,PARK NOW LIMITED,D123,AD Place Operations,Supplies and Services,"6,778.65",Jan-24
Slough Borough Council,3271,Partnership In Care Ltd,M27F,AD Adult Social Care Operations,Supplies and Services,"2,178.95",Jan-24
Slough Borough Council,3271,Partnership In Care Ltd,M44F,AD People Strategy & Commissioning,Supplies and Services,"3,081.67",Jan-24
Slough Borough Council,3271,Partnership In Care Ltd,M44F,AD People Strategy & Commissioning,Supplies and Services,"3,081.67",Jan-24
Slough Borough Council,2509,Parvaaz Project,M44E,AD People Strategy & Commissioning,Supplies and Services,678.60,Jan-24
Slough Borough Council,2509,Parvaaz Project,M44E,AD People Strategy & Commissioning,Supplies and Services,513.60,Jan-24
Slough Borough Council,2509,Parvaaz Project,M44E,AD People Strategy & Commissioning,Supplies and Services,678.60,Jan-24
Slough Borough Council,2509,Parvaaz Project,M44E,AD People Strategy & Commissioning,Supplies and Services,678.60,Jan-24
Slough Borough Council,2509,Parvaaz Project,M44E,AD People Strategy & Commissioning,Supplies and Services,678.60,Jan-24
Slough Borough Council,2509,Parvaaz Project,M44E,AD People Strategy & Commissioning,Supplies and Services,678.60,Jan-24
Slough Borough Council,2509,Parvaaz Project,M44E,AD People Strategy & Commissioning,Supplies and Services,564.60,Jan-24
Slough Borough Council,2509,Parvaaz Project,M44E,AD People Strategy & Commissioning,Supplies and Services,564.60,Jan-24
Slough Borough Council,2509,Parvaaz Project,M44E,AD People Strategy & Commissioning,Supplies and Services,564.60,Jan-24
Slough Borough Council,2509,Parvaaz Project,M44E,AD People Strategy & Commissioning,Supplies and Services,513.60,Jan-24
Slough Borough Council,2509,Parvaaz Project,M44E,AD People Strategy & Commissioning,Supplies and Services,564.60,Jan-24
Slough Borough Council,2509,Parvaaz Project,M44E,AD People Strategy & Commissioning,Supplies and Services,564.60,Jan-24
Slough Borough Council,2509,Parvaaz Project,M44E,AD People Strategy & Commissioning,Supplies and Services,564.60,Jan-24
Slough Borough Council,2509,Parvaaz Project,M44E,AD People Strategy & Commissioning,Supplies and Services,564.60,Jan-24
Slough Borough Council,2509,Parvaaz Project,M44E,AD People Strategy & Commissioning,Supplies and Services,564.60,Jan-24
Slough Borough Council,2509,Parvaaz Project,M44E,AD People Strategy & Commissioning,Supplies and Services,-522.00,Jan-24
Slough Borough Council,2509,Parvaaz Project,M50E,AD People Strategy & Commissioning,Supplies and Services,800.40,Jan-24
Slough Borough Council,2509,Parvaaz Project,M50E,AD People Strategy & Commissioning,Supplies and Services,800.40,Jan-24
Slough Borough Council,2509,Parvaaz Project,M50E,AD People Strategy & Commissioning,Supplies and Services,800.40,Jan-24
Slough Borough Council,2509,Parvaaz Project,M50E,AD People Strategy & Commissioning,Supplies and Services,800.40,Jan-24
Slough Borough Council,2509,Parvaaz Project,M50E,AD People Strategy & Commissioning,Supplies and Services,800.40,Jan-24
Slough Borough Council,807405,PayPoint Network Ltd,H055,AD Deputy Director Corporate & Strategic Finance,Supplies and Services,"13,302.04",Jan-24
Slough Borough Council,807405,PayPoint Network Ltd,H055,AD Deputy Director Corporate & Strategic Finance,Supplies and Services,"14,139.60",Jan-24
Slough Borough Council,807405,PayPoint Network Ltd,H055,AD Deputy Director Corporate & Strategic Finance,Supplies and Services,556.72,Jan-24
Slough Borough Council,807405,PayPoint Network Ltd,H055,AD Deputy Director Corporate & Strategic Finance,Supplies and Services,"18,783.95",Jan-24
Slough Borough Council,807405,PayPoint Network Ltd,H055,AD Deputy Director Corporate & Strategic Finance,Supplies and Services,"6,295.80",Jan-24
Slough Borough Council,807405,PayPoint Network Ltd,H055,AD Deputy Director Corporate & Strategic Finance,Supplies and Services,"10,452.80",Jan-24
Slough Borough Council,806879,Pearce Recycling Ltd,D342,AD Place Operations,Supplies and Services,"1,370.40",Jan-24
Slough Borough Council,824,Penn Wood Primary and Nursery School,E450,AD Children & Families,Supplies and Services,"392,489.05",Jan-24
Slough Borough Council,807611,Peopletoo Ltd,A01D,AD People Strategy & Commissioning,Supplies and Services,"25,000.00",Jan-24
Slough Borough Council,1504,Permanent Futures Limited,F410,AD Children & Families,Agency Staff,"1,410.00",Jan-24
Slough Borough Council,1504,Permanent Futures Limited,F410,AD Children & Families,Agency Staff,"1,410.00",Jan-24
Slough Borough Council,1504,Permanent Futures Limited,F410,AD Children & Families,Agency Staff,"1,410.00",Jan-24
Slough Borough Council,1821,Phoenix Futures,A04C,AD Adult Social Care Operations,Supplies and Services,"15,600.00",Jan-24
Slough Borough Council,807727,Phoenix Infant Academy c/o Thames Learning Trust,E620,AD Children & Families,Supplies and Services,"13,090.19",Jan-24
Slough Borough Council,807727,Phoenix Infant Academy c/o Thames Learning Trust,F002,AD Public Protection & Communities - Public Health,Government Grants,"1,000.00",Jan-24
Slough Borough Council,803498,Phoenix Software,B342,AD Chief Digital & Information Officer,Supplies and Services,"4,520.21",Jan-24
Slough Borough Council,806949,Pinsent Masons LLP,P242,Capital,Capital Charges,"5,199.00",Jan-24
Slough Borough Council,806949,Pinsent Masons LLP,P242,Capital,Capital Charges,"9,921.60",Jan-24
Slough Borough Council,809272,Pioneer Educational Trust,F002,AD Public Protection & Communities - Public Health,Government Grants,"1,000.00",Jan-24
Slough Borough Council,3359,Pippins School,E370,AD Children & Families,Supplies and Services,"30,618.29",Jan-24
Slough Borough Council,904,Pitney Bowes Finance Plc,K077,AD Customer,Supplies and Services,504.00,Jan-24
Slough Borough Council,904,Pitney Bowes Finance Plc,K077,AD Customer,Supplies and Services,652.42,Jan-24
Slough Borough Council,904,Pitney Bowes Finance Plc,K077,AD Customer,Supplies and Services,583.87,Jan-24
Slough Borough Council,904,Pitney Bowes Finance Plc,K077,AD Customer,Supplies and Services,"5,315.26",Jan-24
Slough Borough Council,904,Pitney Bowes Finance Plc,K077,AD Customer,Supplies and Services,652.42,Jan-24
Slough Borough Council,904,Pitney Bowes Finance Plc,K077,AD Customer,Supplies and Services,"10,821.21",Jan-24
Slough Borough Council,808881,PKB MANAGEMENT LTD,H205,AD Housing,Supplies and Services,"85,504.00",Jan-24
Slough Borough Council,2628,Platinum Residential Property Management,H218,AD Housing,Supplies and Services,"14,000.00",Jan-24
Slough Borough Council,3147,Poke-A-Dog,C406,AD Public Protection & Communities - Children Services,Supplies and Services,"2,000.00",Jan-24
Slough Borough Council,803188,Pre Paid Financial Services Ltd,A05C,AD People Strategy & Commissioning,Supplies and Services,"1,710.00",Jan-24
Slough Borough Council,2537,Pre School Stars,F909,AD Children & Families,Supplies and Services,"6,268.59",Jan-24
Slough Borough Council,849,Priory Primary School,E380,AD Children & Families,Supplies and Services,"426,690.42",Jan-24
Slough Borough Council,808921,PROUD INVESTMENTS LTD,H205,AD Housing,Supplies and Services,"1,260.00",Jan-24
Slough Borough Council,808921,PROUD INVESTMENTS LTD,H205,AD Housing,Supplies and Services,"2,325.00",Jan-24
Slough Borough Council,808921,PROUD INVESTMENTS LTD,H205,AD Housing,Supplies and Services,"2,325.00",Jan-24
Slough Borough Council,1138,Qed Slough Ltd,F868,AD Children & Families,Supplies and Services,"4,332.48",Jan-24
Slough Borough Council,1138,Qed Slough Ltd,F868,AD Children & Families,Supplies and Services,"632,355.66",Jan-24
Slough Borough Council,1138,Qed Slough Ltd,F868,AD Children & Families,Supplies and Services,"5,400.00",Jan-24
Slough Borough Council,805746,Qfree (Bristol) UK Ltd,P243,Capital,Capital Charges,"1,658.00",Jan-24
Slough Borough Council,808200,Quest Recovery Services Ltd,A07R,AD Adult Social Care Operations,Supplies and Services,629.16,Jan-24
Slough Borough Council,808200,Quest Recovery Services Ltd,A07R,AD Adult Social Care Operations,Supplies and Services,757.07,Jan-24
Slough Borough Council,808200,Quest Recovery Services Ltd,A07R,AD Adult Social Care Operations,Supplies and Services,808.92,Jan-24
Slough Borough Council,808200,Quest Recovery Services Ltd,M44C,AD Adult Social Care Operations,Supplies and Services,"1,078.56",Jan-24
Slough Borough Council,808200,Quest Recovery Services Ltd,M44C,AD Adult Social Care Operations,Supplies and Services,"1,112.80",Jan-24
Slough Borough Council,808200,Quest Recovery Services Ltd,M44C,AD Adult Social Care Operations,Supplies and Services,590.64,Jan-24
Slough Borough Council,808200,Quest Recovery Services Ltd,M44C,AD Adult Social Care Operations,Supplies and Services,864.56,Jan-24
Slough Borough Council,808200,Quest Recovery Services Ltd,M44C,AD Adult Social Care Operations,Supplies and Services,903.08,Jan-24
Slough Borough Council,808200,Quest Recovery Services Ltd,M44C,AD Adult Social Care Operations,Supplies and Services,924.48,Jan-24
Slough Borough Council,808200,Quest Recovery Services Ltd,M44C,AD Adult Social Care Operations,Supplies and Services,"1,369.60",Jan-24
Slough Borough Council,808200,Quest Recovery Services Ltd,M44C,AD Adult Social Care Operations,Supplies and Services,997.24,Jan-24
Slough Borough Council,808200,Quest Recovery Services Ltd,M44C,AD Adult Social Care Operations,Supplies and Services,770.40,Jan-24
Slough Borough Council,808200,Quest Recovery Services Ltd,M44C,AD Adult Social Care Operations,Supplies and Services,667.68,Jan-24
Slough Borough Council,808200,Quest Recovery Services Ltd,M44C,AD Adult Social Care Operations,Supplies and Services,"1,232.64",Jan-24
Slough Borough Council,808200,Quest Recovery Services Ltd,M44C,AD Adult Social Care Operations,Supplies and Services,"1,078.56",Jan-24
Slough Borough Council,808200,Quest Recovery Services Ltd,M44C,AD Adult Social Care Operations,Supplies and Services,924.48,Jan-24
Slough Borough Council,808200,Quest Recovery Services Ltd,M44D,AD Adult Social Care Operations,Supplies and Services,"1,082.84",Jan-24
Slough Borough Council,808200,Quest Recovery Services Ltd,M44D,AD Adult Social Care Operations,Supplies and Services,941.60,Jan-24
Slough Borough Council,808200,Quest Recovery Services Ltd,M44E,AD People Strategy & Commissioning,Supplies and Services,"1,917.44",Jan-24
Slough Borough Council,808200,Quest Recovery Services Ltd,M44F,AD People Strategy & Commissioning,Supplies and Services,599.20,Jan-24
Slough Borough Council,808200,Quest Recovery Services Ltd,M44F,AD People Strategy & Commissioning,Supplies and Services,"1,095.68",Jan-24
Slough Borough Council,808200,Quest Recovery Services Ltd,M45C,AD Adult Social Care Operations,Supplies and Services,"1,001.52",Jan-24
Slough Borough Council,808200,Quest Recovery Services Ltd,M45C,AD Adult Social Care Operations,Supplies and Services,573.52,Jan-24
Slough Borough Council,808200,Quest Recovery Services Ltd,M45C,AD Adult Social Care Operations,Supplies and Services,"1,531.73",Jan-24
Slough Borough Council,808200,Quest Recovery Services Ltd,M45C,AD Adult Social Care Operations,Supplies and Services,547.84,Jan-24
Slough Borough Council,808200,Quest Recovery Services Ltd,M45C,AD Adult Social Care Operations,Supplies and Services,654.84,Jan-24
Slough Borough Council,808200,Quest Recovery Services Ltd,M45C,AD Adult Social Care Operations,Supplies and Services,"1,797.60",Jan-24
Slough Borough Council,808200,Quest Recovery Services Ltd,M45C,AD Adult Social Care Operations,Supplies and Services,534.88,Jan-24
Slough Borough Council,808200,Quest Recovery Services Ltd,M45C,AD Adult Social Care Operations,Supplies and Services,"1,078.56",Jan-24
Slough Borough Council,808200,Quest Recovery Services Ltd,M48C,AD Adult Social Care Operations,Supplies and Services,"1,198.40",Jan-24
Slough Borough Council,808200,Quest Recovery Services Ltd,M48C,AD Adult Social Care Operations,Supplies and Services,911.64,Jan-24
Slough Borough Council,808200,Quest Recovery Services Ltd,M48C,AD Adult Social Care Operations,Supplies and Services,654.84,Jan-24
Slough Borough Council,808200,Quest Recovery Services Ltd,M48C,AD Adult Social Care Operations,Supplies and Services,"2,670.72",Jan-24
Slough Borough Council,2685,R.E.A.C.H,M26E,AD Adult Social Care Operations,Supplies and Services,536.68,Jan-24
Slough Borough Council,2685,R.E.A.C.H,M26E,AD Adult Social Care Operations,Supplies and Services,536.68,Jan-24
Slough Borough Council,2685,R.E.A.C.H,M26E,AD Adult Social Care Operations,Supplies and Services,536.68,Jan-24
Slough Borough Council,2685,R.E.A.C.H,M26E,AD Adult Social Care Operations,Supplies and Services,536.68,Jan-24
Slough Borough Council,2685,R.E.A.C.H,M26E,AD Adult Social Care Operations,Supplies and Services,536.68,Jan-24
Slough Borough Council,2685,R.E.A.C.H,M26E,AD Adult Social Care Operations,Supplies and Services,536.68,Jan-24
Slough Borough Council,2685,R.E.A.C.H,M26E,AD Adult Social Care Operations,Supplies and Services,"8,203.64",Jan-24
Slough Borough Council,2685,R.E.A.C.H,M26E,AD Adult Social Care Operations,Supplies and Services,"1,806.72",Jan-24
Slough Borough Council,2685,R.E.A.C.H,M26E,AD Adult Social Care Operations,Supplies and Services,"7,632.56",Jan-24
Slough Borough Council,2685,R.E.A.C.H,M26E,AD Adult Social Care Operations,Supplies and Services,536.68,Jan-24
Slough Borough Council,2685,R.E.A.C.H,M26E,AD Adult Social Care Operations,Supplies and Services,"8,711.32",Jan-24
Slough Borough Council,2685,R.E.A.C.H,M26E,AD Adult Social Care Operations,Supplies and Services,"11,332.80",Jan-24
Slough Borough Council,2685,R.E.A.C.H,M26E,AD Adult Social Care Operations,Supplies and Services,"5,850.72",Jan-24
Slough Borough Council,2685,R.E.A.C.H,M26E,AD Adult Social Care Operations,External Receipts,-630.80,Jan-24
Slough Borough Council,2685,R.E.A.C.H,M26E,AD Adult Social Care Operations,External Receipts,-564.40,Jan-24
Slough Borough Council,808822,Raj Desaur,H205,AD Housing,Supplies and Services,"1,705.00",Jan-24
Slough Borough Council,805444,Reading Transport Ltd,D512,AD Place Operations,Supplies and Services,"7,307.28",Jan-24
Slough Borough Council,806766,Red Brick Care Ltd,A07R,AD Adult Social Care Operations,Supplies and Services,527.00,Jan-24
Slough Borough Council,806766,Red Brick Care Ltd,A07R,AD Adult Social Care Operations,Supplies and Services,"1,453.00",Jan-24
Slough Borough Council,806766,Red Brick Care Ltd,M44C,AD Adult Social Care Operations,Supplies and Services,"5,440.00",Jan-24
Slough Borough Council,806766,Red Brick Care Ltd,M44C,AD Adult Social Care Operations,Supplies and Services,"2,618.00",Jan-24
Slough Borough Council,806766,Red Brick Care Ltd,M44C,AD Adult Social Care Operations,Supplies and Services,"2,142.00",Jan-24
Slough Borough Council,806766,Red Brick Care Ltd,M44C,AD Adult Social Care Operations,Supplies and Services,612.00,Jan-24
Slough Borough Council,806766,Red Brick Care Ltd,M44C,AD Adult Social Care Operations,Supplies and Services,"2,142.00",Jan-24
Slough Borough Council,806766,Red Brick Care Ltd,M44C,AD Adult Social Care Operations,Supplies and Services,629.00,Jan-24
Slough Borough Council,806766,Red Brick Care Ltd,M44C,AD Adult Social Care Operations,Supplies and Services,"1,428.00",Jan-24
Slough Borough Council,806766,Red Brick Care Ltd,M44C,AD Adult Social Care Operations,Supplies and Services,"1,836.00",Jan-24
Slough Borough Council,806766,Red Brick Care Ltd,M44C,AD Adult Social Care Operations,Supplies and Services,"1,275.00",Jan-24
Slough Borough Council,806766,Red Brick Care Ltd,M44C,AD Adult Social Care Operations,Supplies and Services,"2,142.00",Jan-24
Slough Borough Council,806766,Red Brick Care Ltd,M44C,AD Adult Social Care Operations,Supplies and Services,"5,440.00",Jan-24
Slough Borough Council,806766,Red Brick Care Ltd,M44C,AD Adult Social Care Operations,Supplies and Services,"4,828.00",Jan-24
Slough Borough Council,806766,Red Brick Care Ltd,M44C,AD Adult Social Care Operations,Supplies and Services,"4,148.00",Jan-24
Slough Borough Council,806766,Red Brick Care Ltd,M44D,AD Adult Social Care Operations,Supplies and Services,833.00,Jan-24
Slough Borough Council,806766,Red Brick Care Ltd,M44D,AD Adult Social Care Operations,Supplies and Services,"1,122.00",Jan-24
Slough Borough Council,806766,Red Brick Care Ltd,M45C,AD Adult Social Care Operations,Supplies and Services,"1,071.00",Jan-24
Slough Borough Council,806766,Red Brick Care Ltd,M45C,AD Adult Social Care Operations,Supplies and Services,918.00,Jan-24
Slough Borough Council,806766,Red Brick Care Ltd,M45C,AD Adult Social Care Operations,Supplies and Services,"1,071.00",Jan-24
Slough Borough Council,806766,Red Brick Care Ltd,M45C,AD Adult Social Care Operations,Supplies and Services,"1,394.00",Jan-24
Slough Borough Council,806766,Red Brick Care Ltd,M45C,AD Adult Social Care Operations,Supplies and Services,"2,142.00",Jan-24
Slough Borough Council,806766,Red Brick Care Ltd,M45C,AD Adult Social Care Operations,Supplies and Services,"1,666.00",Jan-24
Slough Borough Council,806766,Red Brick Care Ltd,M45C,AD Adult Social Care Operations,Supplies and Services,"1,793.50",Jan-24
Slough Borough Council,806766,Red Brick Care Ltd,M45C,AD Adult Social Care Operations,Supplies and Services,"1,004.00",Jan-24
Slough Borough Council,806766,Red Brick Care Ltd,M45C,AD Adult Social Care Operations,Supplies and Services,"1,428.00",Jan-24
Slough Borough Council,806766,Red Brick Care Ltd,M48C,AD Adult Social Care Operations,Supplies and Services,901.00,Jan-24
Slough Borough Council,806541,Redacted,F909,AD Children & Families,Supplies and Services,965.88,Jan-24
Slough Borough Council,806541,Redacted,F909,AD Children & Families,Supplies and Services,"1,499.46",Jan-24
Slough Borough Council,806541,Redacted,F909,AD Children & Families,Supplies and Services,"13,123.12",Jan-24
Slough Borough Council,806541,Redacted,F909,AD Children & Families,Supplies and Services,"12,507.88",Jan-24
Slough Borough Council,1928,Redacted,F909,AD Children & Families,Supplies and Services,639.10,Jan-24
Slough Borough Council,3173,Redacted,F909,AD Children & Families,Supplies and Services,639.10,Jan-24
Slough Borough Council,3934,Redacted,F909,AD Children & Families,Supplies and Services,639.10,Jan-24
Slough Borough Council,806720,Redacted,F909,AD Children & Families,Supplies and Services,793.54,Jan-24
Slough Borough Council,3209,Redacted,F909,AD Children & Families,Supplies and Services,"1,437.98",Jan-24
Slough Borough Council,804932,Redacted,F909,AD Children & Families,Supplies and Services,639.10,Jan-24
Slough Borough Council,808045,Redacted,F909,AD Children & Families,Supplies and Services,"2,556.40",Jan-24
Slough Borough Council,805779,Redacted,F909,AD Children & Families,Supplies and Services,678.15,Jan-24
Slough Borough Council,803824,Redacted,F909,AD Children & Families,Supplies and Services,"1,510.60",Jan-24
Slough Borough Council,807475,Redacted,F909,AD Children & Families,Supplies and Services,"1,356.30",Jan-24
